Organisation Code,Organisation Label,Effective Date,Organisational Unit,Service Division Label,Category Internal Name,Purpose,Detailed Expenditure Code,Payment Date,Transaction Number,Irrecoverable VAT Amount,Amount,Capital Or Revenue,Benificiary Name,Procurement Card
Http://opendatacommunities.org/id/metropolitan-district-council/leeds,Leeds City Council,31/03/2018,Resources and Housing,Leeds Building Services,Supplies and Services,Operational Materials,205,09/03/2018,1803-00001,0.00,584.30,R,A & A Electrical Distributors Ltd,No
Http://opendatacommunities.org/id/metropolitan-district-council/leeds,Leeds City Council,31/03/2018,Resources and Housing,Leeds Building Services,Supplies and Services,Operational Materials,205,09/03/2018,1803-00002,0.00,80.40,R,A & A Electrical Distributors Ltd,No
Http://opendatacommunities.org/id/metropolitan-district-council/leeds,Leeds City Council,31/03/2018,Resources and Housing,Commercial Services  ,Supplies and Services,Operational Materials,205,20/02/2018,1803-00003,0.00,228.63,R,A & D-S W Supplies,Yes
Http://opendatacommunities.org/id/metropolitan-district-council/leeds,Leeds City Council,31/03/2018,Resources and Housing,Leeds Building Services,Supplies and Services,Operational Materials,205,02/03/2018,1803-00004,0.00,16.57,R,A Andrews & Sons (Marbles & Tiles),No
Http://opendatacommunities.org/id/metropolitan-district-council/leeds,Leeds City Council,31/03/2018,Resources and Housing,Leeds Building Services,Supplies and Services,Operational Materials,205,02/03/2018,1803-00005,0.00,114.16,R,A Andrews & Sons (Marbles & Tiles),No
Http://opendatacommunities.org/id/metropolitan-district-council/leeds,Leeds City Council,31/03/2018,Resources and Housing,Leeds Building Services,Supplies and Services,Operational Materials,205,02/03/2018,1803-00006,0.00,31.89,R,A Andrews & Sons (Marbles & Tiles),No
Http://opendatacommunities.org/id/metropolitan-district-council/leeds,Leeds City Council,31/03/2018,Children and Families,Safeguarding Targeted & Specialist,Third Party Payments,Services Rendered By Other Organisations,511,09/03/2018,1803-00007,0.00,333.30,R,REDACTED PERSONAL DATA,No
Http://opendatacommunities.org/id/metropolitan-district-council/leeds,Leeds City Council,31/03/2018,Children and Families,Safeguarding Targeted & Specialist,Third Party Payments,Services Rendered By Other Organisations,511,16/03/2018,1803-00008,0.00,554.40,R,REDACTED PERSONAL DATA,No
Http://opendatacommunities.org/id/metropolitan-district-council/leeds,Leeds City Council,31/03/2018,Children and Families,Safeguarding Targeted & Specialist,Third Party Payments,Services Rendered By Other Organisations,511,09/03/2018,1803-00009,0.00,166.65,R,A Clarkson,No
Http://opendatacommunities.org/id/metropolitan-district-council/leeds,Leeds City Council,31/03/2018,Children and Families,Safeguarding Targeted & Specialist,Third Party Payments,Services Rendered By Other Organisations,511,16/03/2018,1803-00010,0.00,212.52,R,A Clarkson,No
Http://opendatacommunities.org/id/metropolitan-district-council/leeds,Leeds City Council,31/03/2018,Resources and Housing,HRA Housing Leeds,Capital,Other Costs,7,29/03/2018,1803-00011,0.00,350.00,C,REDACTED PERSONAL DATA,No
Http://opendatacommunities.org/id/metropolitan-district-council/leeds,Leeds City Council,31/03/2018,Children and Families,Safeguarding Targeted & Specialist,Third Party Payments,Services Rendered By Voluntary Sector,505,09/03/2018,1803-00012,0.00,1999.80,R,REDACTED PERSONAL DATA,No
Http://opendatacommunities.org/id/metropolitan-district-council/leeds,Leeds City Council,31/03/2018,Children and Families,Safeguarding Targeted & Specialist,Third Party Payments,Services Rendered By Voluntary Sector,505,16/03/2018,1803-00013,0.00,2993.76,R,REDACTED PERSONAL DATA,No
Http://opendatacommunities.org/id/metropolitan-district-council/leeds,Leeds City Council,31/03/2018,Children and Families,Safeguarding Targeted & Specialist,Third Party Payments,Services Rendered By Voluntary Sector,505,16/03/2018,1803-00014,0.00,349.80,R,REDACTED PERSONAL DATA,No
Http://opendatacommunities.org/id/metropolitan-district-council/leeds,Leeds City Council,31/03/2018,City Development,Highways,Capital,Construction,3,19/03/2018,1803-00015,0.00,173442.82,C,A E Yates Ltd,No
Http://opendatacommunities.org/id/metropolitan-district-council/leeds,Leeds City Council,31/03/2018,Resources and Housing,HRA Housing Leeds,Capital,Other Costs,7,22/03/2018,1803-00016,0.00,60.00,C,REDACTED PERSONAL DATA,No
Http://opendatacommunities.org/id/metropolitan-district-council/leeds,Leeds City Council,31/03/2018,Children and Families,Safeguarding Targeted & Specialist,Third Party Payments,Services Rendered By Other Organisations,511,09/03/2018,1803-00017,0.00,166.65,R,REDACTED PERSONAL DATA,No
Http://opendatacommunities.org/id/metropolitan-district-council/leeds,Leeds City Council,31/03/2018,Children and Families,Safeguarding Targeted & Specialist,Third Party Payments,Services Rendered By Other Organisations,511,16/03/2018,1803-00018,0.00,693.00,R,REDACTED PERSONAL DATA,No
Http://opendatacommunities.org/id/metropolitan-district-council/leeds,Leeds City Council,31/03/2018,Children and Families,Safeguarding Targeted & Specialist,Third Party Payments,Services Rendered By Other Organisations,511,16/03/2018,1803-00019,0.00,258.72,R,REDACTED PERSONAL DATA,No
Http://opendatacommunities.org/id/metropolitan-district-council/leeds,Leeds City Council,31/03/2018,Communities and Environment,Customer Access,Supplies and Services,Bought In Professional Services,277,08/03/2018,1803-00020,0.00,109.60,R,A Haythornthwaite,No
Http://opendatacommunities.org/id/metropolitan-district-council/leeds,Leeds City Council,31/03/2018,Communities and Environment,Customer Access,Supplies and Services,Bought In Professional Services,277,29/03/2018,1803-00021,0.00,110.80,R,A Haythornthwaite,No
Http://opendatacommunities.org/id/metropolitan-district-council/leeds,Leeds City Council,31/03/2018,Children and Families,Safeguarding Targeted & Specialist,Third Party Payments,Services Rendered By Other Organisations,511,16/03/2018,1803-00022,0.00,614.46,R,A Hodgson,No
Http://opendatacommunities.org/id/metropolitan-district-council/leeds,Leeds City Council,31/03/2018,Children and Families,Safeguarding Targeted & Specialist,Third Party Payments,Services Rendered By Other Organisations,511,16/03/2018,1803-00023,0.00,535.92,R,REDACTED PERSONAL DATA,No
Http://opendatacommunities.org/id/metropolitan-district-council/leeds,Leeds City Council,31/03/2018,Children and Families,Safeguarding Targeted & Specialist,Third Party Payments,Services Rendered By Other Organisations,511,09/03/2018,1803-00024,0.00,166.65,R,REDACTED PERSONAL DATA,No
Http://opendatacommunities.org/id/metropolitan-district-council/leeds,Leeds City Council,31/03/2018,Children and Families,Safeguarding Targeted & Specialist,Third Party Payments,Services Rendered By Other Organisations,511,16/03/2018,1803-00025,0.00,277.20,R,REDACTED PERSONAL DATA,No
Http://opendatacommunities.org/id/metropolitan-district-council/leeds,Leeds City Council,31/03/2018,City Development,Libraries  Arts & Heritage,Supplies and Services,Other Hired And Contracted Services,265,01/03/2018,1803-00026,0.00,307.50,R,REDACTED COMMERCIAL CONFIDENTIALITY,No
Http://opendatacommunities.org/id/metropolitan-district-council/leeds,Leeds City Council,31/03/2018,Resources and Housing,Leeds Building Services,Supplies and Services,Operational Materials,205,02/03/2018,1803-00027,0.00,195.00,R,A J H  Pump Supply & Repair Ltd,No
Http://opendatacommunities.org/id/metropolitan-district-council/leeds,Leeds City Council,31/03/2018,Resources and Housing,Leeds Building Services,Supplies and Services,Operational Furniture And Equipment,203,02/03/2018,1803-00028,0.00,155.00,R,A J H  Pump Supply & Repair Ltd,No
Http://opendatacommunities.org/id/metropolitan-district-council/leeds,Leeds City Council,31/03/2018,Resources and Housing,Leeds Building Services,Supplies and Services,Operational Furniture And Equipment,203,02/03/2018,1803-00029,0.00,155.00,R,A J H  Pump Supply & Repair Ltd,No
Http://opendatacommunities.org/id/metropolitan-district-council/leeds,Leeds City Council,31/03/2018,Resources and Housing,Leeds Building Services,Supplies and Services,Operational Materials,205,02/03/2018,1803-00030,0.00,750.00,R,A J H  Pump Supply & Repair Ltd,No
Http://opendatacommunities.org/id/metropolitan-district-council/leeds,Leeds City Council,31/03/2018,Resources and Housing,Leeds Building Services,Supplies and Services,Operational Materials,205,02/03/2018,1803-00031,0.00,473.00,R,A J H  Pump Supply & Repair Ltd,No
Http://opendatacommunities.org/id/metropolitan-district-council/leeds,Leeds City Council,31/03/2018,Resources and Housing,Leeds Building Services,Supplies and Services,Operational Materials,205,02/03/2018,1803-00032,0.00,35.02,R,A J H  Pump Supply & Repair Ltd,No
Http://opendatacommunities.org/id/metropolitan-district-council/leeds,Leeds City Council,31/03/2018,Resources and Housing,Leeds Building Services,Supplies and Services,Operational Materials,205,02/03/2018,1803-00033,0.00,146.00,R,A J H  Pump Supply & Repair Ltd,No
Http://opendatacommunities.org/id/metropolitan-district-council/leeds,Leeds City Council,31/03/2018,Resources and Housing,Leeds Building Services,Supplies and Services,Operational Materials,205,02/03/2018,1803-00034,0.00,350.94,R,A J H  Pump Supply & Repair Ltd,No
Http://opendatacommunities.org/id/metropolitan-district-council/leeds,Leeds City Council,31/03/2018,Resources and Housing,Leeds Building Services,Supplies and Services,Operational Materials,205,02/03/2018,1803-00035,0.00,825.00,R,A J H  Pump Supply & Repair Ltd,No
Http://opendatacommunities.org/id/metropolitan-district-council/leeds,Leeds City Council,31/03/2018,Resources and Housing,Leeds Building Services,Supplies and Services,Operational Materials,205,02/03/2018,1803-00036,0.00,24.25,R,A J H  Pump Supply & Repair Ltd,No
Http://opendatacommunities.org/id/metropolitan-district-council/leeds,Leeds City Council,31/03/2018,Resources and Housing,Leeds Building Services,Supplies and Services,Operational Materials,205,02/03/2018,1803-00037,0.00,22.50,R,A J H  Pump Supply & Repair Ltd,No
Http://opendatacommunities.org/id/metropolitan-district-council/leeds,Leeds City Council,31/03/2018,Resources and Housing,Leeds Building Services,Supplies and Services,Operational Furniture And Equipment,203,02/03/2018,1803-00038,0.00,155.00,R,A J H  Pump Supply & Repair Ltd,No
Http://opendatacommunities.org/id/metropolitan-district-council/leeds,Leeds City Council,31/03/2018,Resources and Housing,Leeds Building Services,Supplies and Services,Operational Furniture And Equipment,203,02/03/2018,1803-00039,0.00,155.00,R,A J H  Pump Supply & Repair Ltd,No
Http://opendatacommunities.org/id/metropolitan-district-council/leeds,Leeds City Council,31/03/2018,Resources and Housing,Leeds Building Services,Supplies and Services,Operational Materials,205,02/03/2018,1803-00040,0.00,129.50,R,A J H  Pump Supply & Repair Ltd,No
Http://opendatacommunities.org/id/metropolitan-district-council/leeds,Leeds City Council,31/03/2018,Resources and Housing,Leeds Building Services,Supplies and Services,Operational Materials,205,02/03/2018,1803-00041,0.00,259.55,R,A J H  Pump Supply & Repair Ltd,No
Http://opendatacommunities.org/id/metropolitan-district-council/leeds,Leeds City Council,31/03/2018,Resources and Housing,Leeds Building Services,Supplies and Services,Operational Materials,205,02/03/2018,1803-00042,0.00,103.00,R,A J H  Pump Supply & Repair Ltd,No
Http://opendatacommunities.org/id/metropolitan-district-council/leeds,Leeds City Council,31/03/2018,Resources and Housing,Leeds Building Services,Supplies and Services,Operational Materials,205,02/03/2018,1803-00043,0.00,24.90,R,A J H  Pump Supply & Repair Ltd,No
Http://opendatacommunities.org/id/metropolitan-district-council/leeds,Leeds City Council,31/03/2018,Resources and Housing,Leeds Building Services,Supplies and Services,Operational Materials,205,02/03/2018,1803-00044,0.00,580.00,R,A J H  Pump Supply & Repair Ltd,No
Http://opendatacommunities.org/id/metropolitan-district-council/leeds,Leeds City Council,31/03/2018,Resources and Housing,Leeds Building Services,Supplies and Services,Operational Materials,205,02/03/2018,1803-00045,0.00,60.00,R,A J H  Pump Supply & Repair Ltd,No
Http://opendatacommunities.org/id/metropolitan-district-council/leeds,Leeds City Council,31/03/2018,Resources and Housing,Leeds Building Services,Supplies and Services,Operational Materials,205,02/03/2018,1803-00046,0.00,270.00,R,A J H  Pump Supply & Repair Ltd,No
Http://opendatacommunities.org/id/metropolitan-district-council/leeds,Leeds City Council,31/03/2018,Resources and Housing,Leeds Building Services,Supplies and Services,Operational Materials,205,02/03/2018,1803-00047,0.00,450.00,R,A J H  Pump Supply & Repair Ltd,No
Http://opendatacommunities.org/id/metropolitan-district-council/leeds,Leeds City Council,31/03/2018,Resources and Housing,Leeds Building Services,Supplies and Services,Operational Materials,205,02/03/2018,1803-00048,0.00,582.49,R,A J H  Pump Supply & Repair Ltd,No
Http://opendatacommunities.org/id/metropolitan-district-council/leeds,Leeds City Council,31/03/2018,Resources and Housing,Leeds Building Services,Supplies and Services,Operational Materials,205,02/03/2018,1803-00049,0.00,20.60,R,A J H  Pump Supply & Repair Ltd,No
Http://opendatacommunities.org/id/metropolitan-district-council/leeds,Leeds City Council,31/03/2018,Resources and Housing,Leeds Building Services,Supplies and Services,Operational Materials,205,02/03/2018,1803-00050,0.00,28.00,R,A J H  Pump Supply & Repair Ltd,No
Http://opendatacommunities.org/id/metropolitan-district-council/leeds,Leeds City Council,31/03/2018,Resources and Housing,Leeds Building Services,Supplies and Services,Operational Materials,205,02/03/2018,1803-00051,0.00,560.70,R,A J H  Pump Supply & Repair Ltd,No
Http://opendatacommunities.org/id/metropolitan-district-council/leeds,Leeds City Council,31/03/2018,Resources and Housing,Leeds Building Services,Supplies and Services,Operational Materials,205,02/03/2018,1803-00052,0.00,30.95,R,A J H  Pump Supply & Repair Ltd,No
Http://opendatacommunities.org/id/metropolitan-district-council/leeds,Leeds City Council,31/03/2018,Resources and Housing,Leeds Building Services,Supplies and Services,Operational Materials,205,02/03/2018,1803-00053,0.00,220.00,R,A J H  Pump Supply & Repair Ltd,No
Http://opendatacommunities.org/id/metropolitan-district-council/leeds,Leeds City Council,31/03/2018,Resources and Housing,Leeds Building Services,Supplies and Services,Operational Materials,205,02/03/2018,1803-00054,0.00,68.22,R,A J H  Pump Supply & Repair Ltd,No
Http://opendatacommunities.org/id/metropolitan-district-council/leeds,Leeds City Council,31/03/2018,Resources and Housing,Leeds Building Services,Supplies and Services,Operational Materials,205,02/03/2018,1803-00055,0.00,60.17,R,A J H  Pump Supply & Repair Ltd,No
Http://opendatacommunities.org/id/metropolitan-district-council/leeds,Leeds City Council,31/03/2018,Resources and Housing,Leeds Building Services,Supplies and Services,Operational Furniture And Equipment,203,02/03/2018,1803-00056,0.00,155.00,R,A J H  Pump Supply & Repair Ltd,No
Http://opendatacommunities.org/id/metropolitan-district-council/leeds,Leeds City Council,31/03/2018,Resources and Housing,Leeds Building Services,Supplies and Services,Operational Materials,205,02/03/2018,1803-00057,0.00,404.00,R,A J H  Pump Supply & Repair Ltd,No
Http://opendatacommunities.org/id/metropolitan-district-council/leeds,Leeds City Council,31/03/2018,Resources and Housing,Leeds Building Services,Supplies and Services,Operational Furniture And Equipment,203,02/03/2018,1803-00058,0.00,155.00,R,A J H  Pump Supply & Repair Ltd,No
Http://opendatacommunities.org/id/metropolitan-district-council/leeds,Leeds City Council,31/03/2018,Resources and Housing,Leeds Building Services,Supplies and Services,Operational Materials,205,02/03/2018,1803-00059,0.00,226.20,R,A J H  Pump Supply & Repair Ltd,No
Http://opendatacommunities.org/id/metropolitan-district-council/leeds,Leeds City Council,31/03/2018,Resources and Housing,Leeds Building Services,Supplies and Services,Operational Materials,205,02/03/2018,1803-00060,0.00,453.95,R,A J H  Pump Supply & Repair Ltd,No
Http://opendatacommunities.org/id/metropolitan-district-council/leeds,Leeds City Council,31/03/2018,Resources and Housing,Leeds Building Services,Supplies and Services,Operational Materials,205,02/03/2018,1803-00061,0.00,127.00,R,A J H  Pump Supply & Repair Ltd,No
Http://opendatacommunities.org/id/metropolitan-district-council/leeds,Leeds City Council,31/03/2018,Resources and Housing,Leeds Building Services,Supplies and Services,Operational Materials,205,02/03/2018,1803-00062,0.00,277.73,R,A J H  Pump Supply & Repair Ltd,No
Http://opendatacommunities.org/id/metropolitan-district-council/leeds,Leeds City Council,31/03/2018,Resources and Housing,Leeds Building Services,Supplies and Services,Operational Materials,205,02/03/2018,1803-00063,0.00,845.00,R,A J H  Pump Supply & Repair Ltd,No
Http://opendatacommunities.org/id/metropolitan-district-council/leeds,Leeds City Council,31/03/2018,Resources and Housing,Leeds Building Services,Supplies and Services,Other Hired And Contracted Services,265,05/03/2018,1803-00064,0.00,160.00,R,A J H  Pump Supply & Repair Ltd,No
Http://opendatacommunities.org/id/metropolitan-district-council/leeds,Leeds City Council,31/03/2018,Resources and Housing,Leeds Building Services,Supplies and Services,Operational Materials,205,09/03/2018,1803-00065,0.00,20.00,R,A J H  Pump Supply & Repair Ltd,No
Http://opendatacommunities.org/id/metropolitan-district-council/leeds,Leeds City Council,31/03/2018,Resources and Housing,Leeds Building Services,Supplies and Services,Operational Materials,205,09/03/2018,1803-00066,0.00,121.48,R,A J H  Pump Supply & Repair Ltd,No
Http://opendatacommunities.org/id/metropolitan-district-council/leeds,Leeds City Council,31/03/2018,Resources and Housing,Leeds Building Services,Supplies and Services,Operational Materials,205,09/03/2018,1803-00067,0.00,195.00,R,A J H  Pump Supply & Repair Ltd,No
Http://opendatacommunities.org/id/metropolitan-district-council/leeds,Leeds City Council,31/03/2018,Resources and Housing,Leeds Building Services,Supplies and Services,Operational Materials,205,09/03/2018,1803-00068,0.00,150.00,R,A J H  Pump Supply & Repair Ltd,No
Http://opendatacommunities.org/id/metropolitan-district-council/leeds,Leeds City Council,31/03/2018,Resources and Housing,Leeds Building Services,Supplies and Services,Operational Materials,205,09/03/2018,1803-00069,0.00,195.00,R,A J H  Pump Supply & Repair Ltd,No
Http://opendatacommunities.org/id/metropolitan-district-council/leeds,Leeds City Council,31/03/2018,Resources and Housing,Leeds Building Services,Supplies and Services,Operational Materials,205,09/03/2018,1803-00070,0.00,195.00,R,A J H  Pump Supply & Repair Ltd,No
Http://opendatacommunities.org/id/metropolitan-district-council/leeds,Leeds City Council,31/03/2018,Resources and Housing,Leeds Building Services,Supplies and Services,Operational Materials,205,09/03/2018,1803-00071,0.00,30.01,R,A J H  Pump Supply & Repair Ltd,No
Http://opendatacommunities.org/id/metropolitan-district-council/leeds,Leeds City Council,31/03/2018,Resources and Housing,Leeds Building Services,Supplies and Services,Operational Materials,205,13/03/2018,1803-00072,0.00,1662.00,R,A J H  Pump Supply & Repair Ltd,No
Http://opendatacommunities.org/id/metropolitan-district-council/leeds,Leeds City Council,31/03/2018,Resources and Housing,Leeds Building Services,Supplies and Services,Operational Materials,205,13/03/2018,1803-00073,0.00,1505.00,R,A J H  Pump Supply & Repair Ltd,No
Http://opendatacommunities.org/id/metropolitan-district-council/leeds,Leeds City Council,31/03/2018,Resources and Housing,Leeds Building Services,Supplies and Services,Operational Furniture And Equipment,203,16/03/2018,1803-00074,0.00,155.00,R,A J H  Pump Supply & Repair Ltd,No
Http://opendatacommunities.org/id/metropolitan-district-council/leeds,Leeds City Council,31/03/2018,Resources and Housing,Leeds Building Services,Supplies and Services,Operational Materials,205,16/03/2018,1803-00075,0.00,78.62,R,A J H  Pump Supply & Repair Ltd,No
Http://opendatacommunities.org/id/metropolitan-district-council/leeds,Leeds City Council,31/03/2018,Resources and Housing,Leeds Building Services,Supplies and Services,Operational Materials,205,16/03/2018,1803-00076,0.00,162.00,R,A J H  Pump Supply & Repair Ltd,No
Http://opendatacommunities.org/id/metropolitan-district-council/leeds,Leeds City Council,31/03/2018,Resources and Housing,Leeds Building Services,Supplies and Services,Operational Materials,205,16/03/2018,1803-00077,0.00,16.50,R,A J H  Pump Supply & Repair Ltd,No
Http://opendatacommunities.org/id/metropolitan-district-council/leeds,Leeds City Council,31/03/2018,Resources and Housing,Leeds Building Services,Supplies and Services,Operational Furniture And Equipment,203,16/03/2018,1803-00078,0.00,175.00,R,A J H  Pump Supply & Repair Ltd,No
Http://opendatacommunities.org/id/metropolitan-district-council/leeds,Leeds City Council,31/03/2018,Resources and Housing,Leeds Building Services,Supplies and Services,Operational Materials,205,16/03/2018,1803-00079,0.00,48.69,R,A J H  Pump Supply & Repair Ltd,No
Http://opendatacommunities.org/id/metropolitan-district-council/leeds,Leeds City Council,31/03/2018,Resources and Housing,Leeds Building Services,Supplies and Services,Operational Materials,205,16/03/2018,1803-00080,0.00,143.41,R,A J H  Pump Supply & Repair Ltd,No
Http://opendatacommunities.org/id/metropolitan-district-council/leeds,Leeds City Council,31/03/2018,Resources and Housing,Leeds Building Services,Supplies and Services,Operational Materials,205,16/03/2018,1803-00081,0.00,84.25,R,A J H  Pump Supply & Repair Ltd,No
Http://opendatacommunities.org/id/metropolitan-district-council/leeds,Leeds City Council,31/03/2018,Resources and Housing,Leeds Building Services,Supplies and Services,Operational Materials,205,16/03/2018,1803-00082,0.00,575.00,R,A J H  Pump Supply & Repair Ltd,No
Http://opendatacommunities.org/id/metropolitan-district-council/leeds,Leeds City Council,31/03/2018,Resources and Housing,Leeds Building Services,Supplies and Services,Operational Materials,205,16/03/2018,1803-00083,0.00,35.00,R,A J H  Pump Supply & Repair Ltd,No
Http://opendatacommunities.org/id/metropolitan-district-council/leeds,Leeds City Council,31/03/2018,Resources and Housing,Leeds Building Services,Supplies and Services,Operational Materials,205,16/03/2018,1803-00084,0.00,45.00,R,A J H  Pump Supply & Repair Ltd,No
Http://opendatacommunities.org/id/metropolitan-district-council/leeds,Leeds City Council,31/03/2018,Resources and Housing,Leeds Building Services,Supplies and Services,Operational Materials,205,16/03/2018,1803-00085,0.00,24.50,R,A J H  Pump Supply & Repair Ltd,No
Http://opendatacommunities.org/id/metropolitan-district-council/leeds,Leeds City Council,31/03/2018,Resources and Housing,Leeds Building Services,Supplies and Services,Operational Materials,205,16/03/2018,1803-00086,0.00,231.00,R,A J H  Pump Supply & Repair Ltd,No
Http://opendatacommunities.org/id/metropolitan-district-council/leeds,Leeds City Council,31/03/2018,Resources and Housing,Leeds Building Services,Supplies and Services,Operational Materials,205,16/03/2018,1803-00087,0.00,60.82,R,A J H  Pump Supply & Repair Ltd,No
Http://opendatacommunities.org/id/metropolitan-district-council/leeds,Leeds City Council,31/03/2018,Resources and Housing,Leeds Building Services,Supplies and Services,Operational Materials,205,16/03/2018,1803-00088,0.00,209.85,R,A J H  Pump Supply & Repair Ltd,No
Http://opendatacommunities.org/id/metropolitan-district-council/leeds,Leeds City Council,31/03/2018,Resources and Housing,Leeds Building Services,Supplies and Services,Operational Materials,205,16/03/2018,1803-00089,0.00,8.50,R,A J H  Pump Supply & Repair Ltd,No
Http://opendatacommunities.org/id/metropolitan-district-council/leeds,Leeds City Council,31/03/2018,Resources and Housing,Leeds Building Services,Supplies and Services,Operational Materials,205,16/03/2018,1803-00090,0.00,18.70,R,A J H  Pump Supply & Repair Ltd,No
Http://opendatacommunities.org/id/metropolitan-district-council/leeds,Leeds City Council,31/03/2018,Resources and Housing,Leeds Building Services,Supplies and Services,Operational Materials,205,16/03/2018,1803-00091,0.00,61.45,R,A J H  Pump Supply & Repair Ltd,No
Http://opendatacommunities.org/id/metropolitan-district-council/leeds,Leeds City Council,31/03/2018,Resources and Housing,Leeds Building Services,Supplies and Services,Operational Materials,205,16/03/2018,1803-00092,0.00,125.99,R,A J H  Pump Supply & Repair Ltd,No
Http://opendatacommunities.org/id/metropolitan-district-council/leeds,Leeds City Council,31/03/2018,Resources and Housing,Leeds Building Services,Supplies and Services,Operational Materials,205,16/03/2018,1803-00093,0.00,155.85,R,A J H  Pump Supply & Repair Ltd,No
Http://opendatacommunities.org/id/metropolitan-district-council/leeds,Leeds City Council,31/03/2018,Resources and Housing,Leeds Building Services,Supplies and Services,Operational Materials,205,16/03/2018,1803-00094,0.00,159.09,R,A J H  Pump Supply & Repair Ltd,No
Http://opendatacommunities.org/id/metropolitan-district-council/leeds,Leeds City Council,31/03/2018,Resources and Housing,Leeds Building Services,Supplies and Services,Operational Materials,205,16/03/2018,1803-00095,0.00,325.59,R,A J H  Pump Supply & Repair Ltd,No
Http://opendatacommunities.org/id/metropolitan-district-council/leeds,Leeds City Council,31/03/2018,Resources and Housing,Leeds Building Services,Supplies and Services,Operational Materials,205,16/03/2018,1803-00096,0.00,1450.00,R,A J H  Pump Supply & Repair Ltd,No
Http://opendatacommunities.org/id/metropolitan-district-council/leeds,Leeds City Council,31/03/2018,Resources and Housing,Leeds Building Services,Supplies and Services,Operational Materials,205,16/03/2018,1803-00097,0.00,127.50,R,A J H  Pump Supply & Repair Ltd,No
Http://opendatacommunities.org/id/metropolitan-district-council/leeds,Leeds City Council,31/03/2018,Resources and Housing,Leeds Building Services,Supplies and Services,Operational Materials,205,16/03/2018,1803-00098,0.00,254.75,R,A J H  Pump Supply & Repair Ltd,No
Http://opendatacommunities.org/id/metropolitan-district-council/leeds,Leeds City Council,31/03/2018,Resources and Housing,Leeds Building Services,Supplies and Services,Operational Materials,205,16/03/2018,1803-00099,0.00,108.05,R,A J H  Pump Supply & Repair Ltd,No
Http://opendatacommunities.org/id/metropolitan-district-council/leeds,Leeds City Council,31/03/2018,Resources and Housing,Leeds Building Services,Supplies and Services,Operational Materials,205,16/03/2018,1803-00100,0.00,167.90,R,A J H  Pump Supply & Repair Ltd,No
Http://opendatacommunities.org/id/metropolitan-district-council/leeds,Leeds City Council,31/03/2018,Resources and Housing,Leeds Building Services,Supplies and Services,Operational Materials,205,16/03/2018,1803-00101,0.00,421.75,R,A J H  Pump Supply & Repair Ltd,No
Http://opendatacommunities.org/id/metropolitan-district-council/leeds,Leeds City Council,31/03/2018,Resources and Housing,Leeds Building Services,Supplies and Services,Operational Materials,205,16/03/2018,1803-00102,0.00,2045.00,R,A J H  Pump Supply & Repair Ltd,No
Http://opendatacommunities.org/id/metropolitan-district-council/leeds,Leeds City Council,31/03/2018,Resources and Housing,Leeds Building Services,Supplies and Services,Operational Materials,205,16/03/2018,1803-00103,0.00,17.76,R,A J H  Pump Supply & Repair Ltd,No
Http://opendatacommunities.org/id/metropolitan-district-council/leeds,Leeds City Council,31/03/2018,Communities and Environment,Customer Access,Supplies and Services,Resaleable Materials,204,12/03/2018,1803-00104,0.00,67.50,R,A J Promotions,No
Http://opendatacommunities.org/id/metropolitan-district-council/leeds,Leeds City Council,31/03/2018,City Development,Libraries  Arts & Heritage,Supplies and Services,Other Hired And Contracted Services,265,26/03/2018,1803-00105,0.00,460.00,R,A J Wightman,No
Http://opendatacommunities.org/id/metropolitan-district-council/leeds,Leeds City Council,31/03/2018,Resources and Housing,HRA Housing Leeds,Capital,Other Costs,7,22/03/2018,1803-00106,0.00,20.00,C,REDACTED PERSONAL DATA,No
Http://opendatacommunities.org/id/metropolitan-district-council/leeds,Leeds City Council,31/03/2018,Children and Families,Safeguarding Targeted & Specialist,Third Party Payments,Services Rendered By Other Organisations,511,09/03/2018,1803-00107,0.00,1166.55,R,A K Walsh,No
Http://opendatacommunities.org/id/metropolitan-district-council/leeds,Leeds City Council,31/03/2018,Children and Families,Safeguarding Targeted & Specialist,Third Party Payments,Services Rendered By Other Organisations,511,16/03/2018,1803-00108,0.00,554.40,R,A K Walsh,No
Http://opendatacommunities.org/id/metropolitan-district-council/leeds,Leeds City Council,31/03/2018,Children and Families,Safeguarding Targeted & Specialist,Third Party Payments,Services Rendered By Voluntary Sector,505,09/03/2018,1803-00109,0.00,350.00,R,A Little Something Extra Ltd,No
Http://opendatacommunities.org/id/metropolitan-district-council/leeds,Leeds City Council,31/03/2018,Children and Families,Safeguarding Targeted & Specialist,Third Party Payments,Services Rendered By Voluntary Sector,505,23/03/2018,1803-00110,0.00,60.00,R,A Little Something Extra Ltd,No
Http://opendatacommunities.org/id/metropolitan-district-council/leeds,Leeds City Council,31/03/2018,Children and Families,Safeguarding Targeted & Specialist,Third Party Payments,Services Rendered By Voluntary Sector,505,27/03/2018,1803-00111,0.00,560.00,R,A Little Something Extra Ltd,No
Http://opendatacommunities.org/id/metropolitan-district-council/leeds,Leeds City Council,31/03/2018,City Development,Libraries  Arts & Heritage,Supplies and Services,Other Hired And Contracted Services,265,22/03/2018,1803-00112,0.00,10000.00,R,A M Miller/Euco,No
Http://opendatacommunities.org/id/metropolitan-district-council/leeds,Leeds City Council,31/03/2018,Communities and Environment,Customer Access,Supplies and Services,Other Hired And Contracted Services,265,06/03/2018,1803-00113,0.00,792.15,R,A Mohammed,No
Http://opendatacommunities.org/id/metropolitan-district-council/leeds,Leeds City Council,31/03/2018,Children and Families,Safeguarding Targeted & Specialist,Third Party Payments,Services Rendered By Other Organisations,511,16/03/2018,1803-00114,0.00,138.60,R,REDACTED PERSONAL DATA,No
Http://opendatacommunities.org/id/metropolitan-district-council/leeds,Leeds City Council,31/03/2018,Communities and Environment,Parks and Countryside,Supplies and Services,Operational Materials,205,07/03/2018,1803-00115,0.00,264.00,R,A Newton,No
Http://opendatacommunities.org/id/metropolitan-district-council/leeds,Leeds City Council,31/03/2018,Resources and Housing,HRA Housing Leeds,Capital,Other Costs,7,08/03/2018,1803-00116,0.00,400.00,C,REDACTED PERSONAL DATA,No
Http://opendatacommunities.org/id/metropolitan-district-council/leeds,Leeds City Council,31/03/2018,Resources and Housing,HRA Housing Leeds,Capital,Other Costs,7,08/03/2018,1803-00117,0.00,300.00,C,REDACTED PERSONAL DATA,No
Http://opendatacommunities.org/id/metropolitan-district-council/leeds,Leeds City Council,31/03/2018,Children and Families,Safeguarding Targeted & Specialist,Third Party Payments,Services Rendered By Other Organisations,511,16/03/2018,1803-00118,0.00,415.80,R,REDACTED PERSONAL DATA,No
Http://opendatacommunities.org/id/metropolitan-district-council/leeds,Leeds City Council,31/03/2018,Resources and Housing,Shared Services,Supplies and Services,Other Hired And Contracted Services,265,08/03/2018,1803-00119,0.00,46.25,R,A Star Couriers Ltd,No
Http://opendatacommunities.org/id/metropolitan-district-council/leeds,Leeds City Council,31/03/2018,Resources and Housing,Shared Services,Supplies and Services,Other Hired And Contracted Services,265,23/03/2018,1803-00120,0.00,35.00,R,A Star Couriers Ltd,No
Http://opendatacommunities.org/id/metropolitan-district-council/leeds,Leeds City Council,31/03/2018,City Development,Economic Development,Supplies and Services,Publication And Promotion,267,15/03/2018,1803-00121,0.00,200.00,R,A T Graphics Limited,No
Http://opendatacommunities.org/id/metropolitan-district-council/leeds,Leeds City Council,31/03/2018,City Development,Economic Development,Supplies and Services,Publication And Promotion,267,29/03/2018,1803-00122,0.00,250.00,R,A T Graphics Limited,No
Http://opendatacommunities.org/id/metropolitan-district-council/leeds,Leeds City Council,31/03/2018,City Development,Libraries  Arts & Heritage,Supplies and Services,Operational Furniture And Equipment,203,28/03/2018,1803-00123,0.00,528.99,R,A V Parts Master Ltd,No
Http://opendatacommunities.org/id/metropolitan-district-council/leeds,Leeds City Council,31/03/2018,Children and Families,Safeguarding Targeted & Specialist,Third Party Payments,Services Rendered By Other Organisations,511,09/03/2018,1803-00124,0.00,166.65,R,REDACTED PERSONAL DATA,No
Http://opendatacommunities.org/id/metropolitan-district-council/leeds,Leeds City Council,31/03/2018,Children and Families,Safeguarding Targeted & Specialist,Third Party Payments,Services Rendered By Other Organisations,511,16/03/2018,1803-00125,0.00,1801.80,R,REDACTED PERSONAL DATA,No
Http://opendatacommunities.org/id/metropolitan-district-council/leeds,Leeds City Council,31/03/2018,Children and Families,Safeguarding Targeted & Specialist,Third Party Payments,Services Rendered By Other Organisations,511,09/03/2018,1803-00126,0.00,144.43,R,REDACTED PERSONAL DATA,No
Http://opendatacommunities.org/id/metropolitan-district-council/leeds,Leeds City Council,31/03/2018,Children and Families,Safeguarding Targeted & Specialist,Third Party Payments,Services Rendered By Other Organisations,511,16/03/2018,1803-00127,0.00,240.24,R,REDACTED PERSONAL DATA,No
Http://opendatacommunities.org/id/metropolitan-district-council/leeds,Leeds City Council,31/03/2018,Children and Families,Safeguarding Targeted & Specialist,Third Party Payments,Services Rendered By Other Organisations,511,16/03/2018,1803-00128,0.00,138.60,R,REDACTED PERSONAL DATA,No
Http://opendatacommunities.org/id/metropolitan-district-council/leeds,Leeds City Council,31/03/2018,Communities and Environment,Waste Management,Capital,Furniture And Equipment,5,19/03/2018,1803-00129,0.00,11632.50,C,A&C Weber Uk Ltd,No
Http://opendatacommunities.org/id/metropolitan-district-council/leeds,Leeds City Council,31/03/2018,Resources and Housing,Shared Services,Supplies and Services,Licences,266,19/03/2018,1803-00130,0.00,-6105.60,R,A&C Weber Uk Ltd,No
Http://opendatacommunities.org/id/metropolitan-district-council/leeds,Leeds City Council,31/03/2018,Communities and Environment,Waste Management,Capital,Furniture And Equipment,5,19/03/2018,1803-00131,0.00,895.00,C,A&C Weber Uk Ltd,No
Http://opendatacommunities.org/id/metropolitan-district-council/leeds,Leeds City Council,31/03/2018,Resources and Housing,Strategic Housing Partnership & Support,Supplies and Services,Other Hired And Contracted Services,265,13/03/2018,1803-00132,0.00,1207.94,R,A. A. Watson,No
Http://opendatacommunities.org/id/metropolitan-district-council/leeds,Leeds City Council,31/03/2018,Resources and Housing,Commercial Services,Transport,Private Hire,360,08/03/2018,1803-00133,0.00,968.00,R,A1 Ossett Cars,No
Http://opendatacommunities.org/id/metropolitan-district-council/leeds,Leeds City Council,31/03/2018,Resources and Housing,Commercial Services,Transport,Private Hire,360,08/03/2018,1803-00134,0.00,484.00,R,A1 Ossett Cars,No
Http://opendatacommunities.org/id/metropolitan-district-council/leeds,Leeds City Council,31/03/2018,Resources and Housing,Commercial Services,Transport,Private Hire,360,16/03/2018,1803-00135,0.00,506.00,R,A1 Ossett Cars,No
Http://opendatacommunities.org/id/metropolitan-district-council/leeds,Leeds City Council,31/03/2018,City Development,Libraries  Arts & Heritage  ,Supplies and Services,Teaching Furniture & Equipment,207,26/02/2018,1803-00136,0.00,87.94,R,A2b Office Technol,Yes
Http://opendatacommunities.org/id/metropolitan-district-council/leeds,Leeds City Council,31/03/2018,Children and Families,Safeguarding Targeted & Specialist  ,Supplies and Services,Subsistence,256,03/02/2018,1803-00137,0.00,6.67,R,Aagrah Restaurants,Yes
Http://opendatacommunities.org/id/metropolitan-district-council/leeds,Leeds City Council,31/03/2018,Children and Families,Safeguarding Targeted & Specialist  ,Supplies and Services,Subsistence,256,03/02/2018,1803-00138,0.00,49.83,R,Aagrah Restaurants,Yes
Http://opendatacommunities.org/id/metropolitan-district-council/leeds,Leeds City Council as Accountable Body,31/03/2018,Social Services Pooled Budgets,Leeds Community Equip Store Pooled Budgt,Supplies and Services,Other Equipment,203,09/03/2018,1803-00139,0.00,664.00,R,Aat (Gb) Ltd,No
Http://opendatacommunities.org/id/metropolitan-district-council/leeds,Leeds City Council as Accountable Body,31/03/2018,Social Services Pooled Budgets,Leeds Community Equip Store Pooled Budgt,Supplies and Services,Other Equipment,203,16/03/2018,1803-00140,0.00,110.00,R,Aat (Gb) Ltd,No
Http://opendatacommunities.org/id/metropolitan-district-council/leeds,Leeds City Council as Accountable Body,31/03/2018,Social Services Pooled Budgets,Leeds Community Equip Store Pooled Budgt,Supplies and Services,Other Equipment,203,29/03/2018,1803-00141,0.00,444.00,R,Aat (Gb) Ltd,No
Http://opendatacommunities.org/id/metropolitan-district-council/leeds,Leeds City Council,31/03/2018,Adults and Health,Social Services Support Services,Transport,Public Transport Expenses,310,09/03/2018,1803-00142,0.00,476.00,R,Ab Cars (Garforth) Ltd,No
Http://opendatacommunities.org/id/metropolitan-district-council/leeds,Leeds City Council,31/03/2018,Communities and Environment,Car Parking Services  ,Supplies and Services,Postages,212,07/02/2018,1803-00143,0.00,14.50,R,Abacus Express,Yes
Http://opendatacommunities.org/id/metropolitan-district-council/leeds,Leeds City Council,31/03/2018,City Development,Planning & Sustainable Development,Supplies and Services,Other Hired And Contracted Services,265,02/03/2018,1803-00144,0.00,17.74,R,Abacus Express Limited,No
Http://opendatacommunities.org/id/metropolitan-district-council/leeds,Leeds City Council,31/03/2018,Children and Families,Safeguarding Targeted & Specialist,Support Services,Legal Disbursements,411,08/03/2018,1803-00145,0.00,31.02,R,Abacus Express Limited,No
Http://opendatacommunities.org/id/metropolitan-district-council/leeds,Leeds City Council,31/03/2018,Children and Families,Safeguarding Targeted & Specialist,Support Services,Legal Disbursements,411,08/03/2018,1803-00146,0.00,31.02,R,Abacus Express Limited,No
Http://opendatacommunities.org/id/metropolitan-district-council/leeds,Leeds City Council,31/03/2018,Children and Families,Safeguarding Targeted & Specialist,Support Services,Legal Disbursements,411,08/03/2018,1803-00147,0.00,41.77,R,Abacus Express Limited,No
Http://opendatacommunities.org/id/metropolitan-district-council/leeds,Leeds City Council,31/03/2018,Children and Families,Safeguarding Targeted & Specialist,Support Services,Legal Disbursements,411,08/03/2018,1803-00148,0.00,31.02,R,Abacus Express Limited,No
Http://opendatacommunities.org/id/metropolitan-district-council/leeds,Leeds City Council,31/03/2018,Children and Families,Safeguarding Targeted & Specialist,Support Services,Legal Disbursements,411,09/03/2018,1803-00149,0.00,31.02,R,Abacus Express Limited,No
Http://opendatacommunities.org/id/metropolitan-district-council/leeds,Leeds City Council,31/03/2018,Children and Families,Safeguarding Targeted & Specialist,Support Services,Legal Disbursements,411,28/03/2018,1803-00150,0.00,31.02,R,Abacus Express Limited,No
Http://opendatacommunities.org/id/metropolitan-district-council/leeds,Leeds City Council,31/03/2018,Children and Families,Safeguarding Targeted & Specialist,Support Services,Legal Disbursements,411,28/03/2018,1803-00151,0.00,31.02,R,Abacus Express Limited,No
Http://opendatacommunities.org/id/metropolitan-district-council/leeds,Leeds City Council,31/03/2018,Adults and Health,Services For Older People - 65 And Over,Third Party Payments,Nursing Care Dementia,574,07/03/2018,1803-00152,0.00,1556.00,R,Abbendon Nursing Home,No
Http://opendatacommunities.org/id/metropolitan-district-council/leeds,Leeds City Council,31/03/2018,Insurance,Insurance,Supplies and Services,Insurance Claims,248,01/03/2018,1803-00153,0.00,456.00,R,Abbey Court Solicitors,No
Http://opendatacommunities.org/id/metropolitan-district-council/leeds,Leeds City Council,31/03/2018,Insurance,Insurance,Supplies and Services,Insurance Claims,248,29/03/2018,1803-00154,0.00,360.00,R,Abbey Court Solicitors,No
Http://opendatacommunities.org/id/metropolitan-district-council/leeds,Leeds City Council,31/03/2018,Children and Families,Learning Skills & Universal,Supplies and Services,Other Hired And Contracted Services,265,06/03/2018,1803-00155,0.00,500.00,R,Abbey Grange C Of E Academy Trust,No
Http://opendatacommunities.org/id/metropolitan-district-council/leeds,Leeds City Council,31/03/2018,Children and Families,Learning Skills & Universal,Supplies and Services,Other Hired And Contracted Services,265,26/03/2018,1803-00156,0.00,50.00,R,Abbey Grange C Of E Academy Trust,No
Http://opendatacommunities.org/id/metropolitan-district-council/leeds,Leeds City Council,31/03/2018,Adults and Health,Services For Adults Under 65 Mental/Dis,Third Party Payments,Nursing Home,570,07/03/2018,1803-00157,0.00,1732.00,R,Abbey Grange Nursing Home,No
Http://opendatacommunities.org/id/metropolitan-district-council/leeds,Leeds City Council,31/03/2018,City Development,Libraries  Arts & Heritage  ,Supplies and Services,Teaching Materials,202,31/01/2018,1803-00158,0.00,4.49,R,Abbey House Museum,Yes
Http://opendatacommunities.org/id/metropolitan-district-council/leeds,Leeds City Council,31/03/2018,Communities and Environment,Parks and Countryside,Capital,Construction,3,23/03/2018,1803-00159,0.00,7450.00,C,Abbotts Memorials,No
Http://opendatacommunities.org/id/metropolitan-district-council/leeds,Leeds City Council,31/03/2018,Children and Families,Safeguarding Targeted & Specialist,Third Party Payments,Services Rendered By Other Organisations,511,09/03/2018,1803-00160,0.00,1755.38,R,Abc Daycare And Ozone Out Of School,No
Http://opendatacommunities.org/id/metropolitan-district-council/leeds,Leeds City Council,31/03/2018,Children and Families,Safeguarding Targeted & Specialist,Third Party Payments,Services Rendered By Other Organisations,511,16/03/2018,1803-00161,0.00,5721.66,R,Abc Daycare And Ozone Out Of School,No
Http://opendatacommunities.org/id/metropolitan-district-council/leeds,Leeds City Council,31/03/2018,Children and Families,Safeguarding Targeted & Specialist,Third Party Payments,Services Rendered By Other Organisations,511,09/03/2018,1803-00162,0.00,666.60,R,Abc Nursery At Lufc,No
Http://opendatacommunities.org/id/metropolitan-district-council/leeds,Leeds City Council,31/03/2018,Children and Families,Safeguarding Targeted & Specialist,Third Party Payments,Services Rendered By Other Organisations,511,16/03/2018,1803-00163,0.00,3057.60,R,Abc Nursery At Lufc,No
Http://opendatacommunities.org/id/metropolitan-district-council/leeds,Leeds City Council,31/03/2018,Children and Families,Safeguarding Targeted & Specialist,Third Party Payments,Services Rendered By Other Organisations,511,16/03/2018,1803-00164,0.00,349.80,R,Abc Nursery At Lufc,No
Http://opendatacommunities.org/id/metropolitan-district-council/leeds,Leeds City Council,31/03/2018,Children and Families,Safeguarding Targeted & Specialist,Third Party Payments,Services Rendered By Other Organisations,511,09/03/2018,1803-00165,0.00,1166.55,R,Abc@D'S Childcare Services,No
Http://opendatacommunities.org/id/metropolitan-district-council/leeds,Leeds City Council,31/03/2018,Children and Families,Safeguarding Targeted & Specialist,Third Party Payments,Services Rendered By Other Organisations,511,16/03/2018,1803-00166,0.00,2161.50,R,Abc@D'S Childcare Services,No
Http://opendatacommunities.org/id/metropolitan-district-council/leeds,Leeds City Council,31/03/2018,Communities and Environment,Customer Access,Supplies and Services,Other Hired And Contracted Services,265,06/03/2018,1803-00167,0.00,88.75,R,Abdul Wadood Kazizadha,No
Http://opendatacommunities.org/id/metropolitan-district-council/leeds,Leeds City Council,31/03/2018,Children and Families,Safeguarding Targeted & Specialist,Transfer Payments,Leaving Care Allowances,634,02/03/2018,1803-00168,0.00,20.00,R,REDACTED PERSONAL DATA,No
Http://opendatacommunities.org/id/metropolitan-district-council/leeds,Leeds City Council,31/03/2018,Children and Families,Safeguarding Targeted & Specialist,Transfer Payments,16 Plus Top Up Allowance,625,09/03/2018,1803-00169,0.00,20.00,R,REDACTED PERSONAL DATA,No
Http://opendatacommunities.org/id/metropolitan-district-council/leeds,Leeds City Council,31/03/2018,Children and Families,Safeguarding Targeted & Specialist,Transfer Payments,16 Plus Top Up Allowance,625,16/03/2018,1803-00170,0.00,20.00,R,REDACTED PERSONAL DATA,No
Http://opendatacommunities.org/id/metropolitan-district-council/leeds,Leeds City Council,31/03/2018,Children and Families,Safeguarding Targeted & Specialist,Transfer Payments,Leaving Care Allowances,634,23/03/2018,1803-00171,0.00,20.00,R,REDACTED PERSONAL DATA,No
Http://opendatacommunities.org/id/metropolitan-district-council/leeds,Leeds City Council,31/03/2018,Children and Families,Safeguarding Targeted & Specialist,Transfer Payments,Leaving Care Allowances,634,29/03/2018,1803-00172,0.00,20.00,R,REDACTED PERSONAL DATA,No
Http://opendatacommunities.org/id/metropolitan-district-council/leeds,Leeds City Council,31/03/2018,Adults and Health,Services For Older People - 65 And Over,Third Party Payments,Nursing Home,570,07/03/2018,1803-00173,0.00,13350.96,R,Aberford Hall,No
Http://opendatacommunities.org/id/metropolitan-district-council/leeds,Leeds City Council,31/03/2018,Adults and Health,Services For Older People - 65 And Over,Third Party Payments,Nursing Care Dementia,574,07/03/2018,1803-00174,0.00,5774.34,R,Aberford Hall,No
Http://opendatacommunities.org/id/metropolitan-district-council/leeds,Leeds City Council,31/03/2018,Adults and Health,Services For Older People - 65 And Over,Third Party Payments,Residential,580,07/03/2018,1803-00175,0.00,2314.54,R,Aberford Hall,No
Http://opendatacommunities.org/id/metropolitan-district-council/leeds,Leeds City Council,31/03/2018,Adults and Health,Services For Older People - 65 And Over,Third Party Payments,Nursing Home,570,20/03/2018,1803-00176,0.00,5634.13,R,Aberford Hall,No
Http://opendatacommunities.org/id/metropolitan-district-council/leeds,Leeds City Council,31/03/2018,Resources and Housing,Leeds Building Services,Supplies and Services,Operational Materials,205,02/03/2018,1803-00177,0.00,250.45,R,Abi Garage Doors Ltd,No
Http://opendatacommunities.org/id/metropolitan-district-council/leeds,Leeds City Council,31/03/2018,Resources and Housing,Leeds Building Services,Supplies and Services,Operational Materials,205,12/03/2018,1803-00178,0.00,250.45,R,Abi Garage Doors Ltd,No
Http://opendatacommunities.org/id/metropolitan-district-council/leeds,Leeds City Council,31/03/2018,Resources and Housing,Leeds Building Services,Supplies and Services,Operational Materials,205,12/03/2018,1803-00179,0.00,250.45,R,Abi Garage Doors Ltd,No
Http://opendatacommunities.org/id/metropolitan-district-council/leeds,Leeds City Council,31/03/2018,Resources and Housing,Leeds Building Services,Supplies and Services,Operational Materials,205,15/03/2018,1803-00180,0.00,6.67,R,Abi Garage Doors Ltd,No
Http://opendatacommunities.org/id/metropolitan-district-council/leeds,Leeds City Council,31/03/2018,Resources and Housing,Leeds Building Services,Supplies and Services,Operational Materials,205,16/03/2018,1803-00181,0.00,10.00,R,Abi Garage Doors Ltd,No
Http://opendatacommunities.org/id/metropolitan-district-council/leeds,Leeds City Council,31/03/2018,Resources and Housing,Leeds Building Services,Supplies and Services,Operational Materials,205,16/03/2018,1803-00182,0.00,250.45,R,Abi Garage Doors Ltd,No
Http://opendatacommunities.org/id/metropolitan-district-council/leeds,Leeds City Council,31/03/2018,Resources and Housing,Leeds Building Services,Supplies and Services,Operational Materials,205,19/03/2018,1803-00183,0.00,250.45,R,Abi Garage Doors Ltd,No
Http://opendatacommunities.org/id/metropolitan-district-council/leeds,Leeds City Council,31/03/2018,Resources and Housing,Leeds Building Services,Supplies and Services,Operational Materials,205,19/03/2018,1803-00184,0.00,250.37,R,Abi Garage Doors Ltd,No
Http://opendatacommunities.org/id/metropolitan-district-council/leeds,Leeds City Council,31/03/2018,Resources and Housing,Human Resources,Employees,Occupational Health,85,02/03/2018,1803-00185,0.00,45.00,R,Abie Hector-Goma,No
Http://opendatacommunities.org/id/metropolitan-district-council/leeds,Leeds City Council,31/03/2018,Insurance,Insurance,Supplies and Services,Insurance Claims,248,05/03/2018,1803-00186,0.00,384.00,R,REDACTED PERSONAL DATA,No
Http://opendatacommunities.org/id/metropolitan-district-council/leeds,Leeds City Council,31/03/2018,Children and Families,Safeguarding Targeted & Specialist,Supplies and Services,Telephones,213,06/03/2018,1803-00187,0.00,3.20,R,REDACTED PERSONAL DATA,No
Http://opendatacommunities.org/id/metropolitan-district-council/leeds,Leeds City Council,31/03/2018,Children and Families,Safeguarding Targeted & Specialist,Supplies and Services,Food & Drink,231,06/03/2018,1803-00188,0.00,30.31,R,REDACTED PERSONAL DATA,No
Http://opendatacommunities.org/id/metropolitan-district-council/leeds,Leeds City Council,31/03/2018,Children and Families,Safeguarding Targeted & Specialist,Transport,Public Transport Expenses,310,06/03/2018,1803-00189,0.00,6.30,R,REDACTED PERSONAL DATA,No
Http://opendatacommunities.org/id/metropolitan-district-council/leeds,Leeds City Council,31/03/2018,Children and Families,Safeguarding Targeted & Specialist,Transport,Car & Motorcycle Allowances,311,06/03/2018,1803-00190,0.00,13.05,R,REDACTED PERSONAL DATA,No
Http://opendatacommunities.org/id/metropolitan-district-council/leeds,Leeds City Council,31/03/2018,Communities and Environment,Customer Access,Supplies and Services,Computer Software & Equipment,214,22/03/2018,1803-00191,0.00,955.00,R,Ability Smart Limited,No
Http://opendatacommunities.org/id/metropolitan-district-council/leeds,Leeds City Council,31/03/2018,Children and Families,Safeguarding Targeted & Specialist,Supplies and Services,Bought In Professional Services,277,26/03/2018,1803-00192,0.00,1320.00,R,Ability Smart Limited,No
Http://opendatacommunities.org/id/metropolitan-district-council/leeds,Leeds City Council,31/03/2018,Children and Families,Safeguarding Targeted & Specialist,Employees,Agency Staff,8,28/03/2018,1803-00193,0.00,995.00,R,Academic Appointments Ltd,No
Http://opendatacommunities.org/id/metropolitan-district-council/leeds,Leeds City Council,31/03/2018,Children and Families,Safeguarding Targeted & Specialist,Employees,Agency Staff,8,28/03/2018,1803-00194,0.00,995.00,R,Academic Appointments Ltd,No
Http://opendatacommunities.org/id/metropolitan-district-council/leeds,Leeds City Council,31/03/2018,Children and Families,Safeguarding Targeted & Specialist,Employees,Agency Staff,8,28/03/2018,1803-00195,0.00,199.00,R,Academic Appointments Ltd,No
Http://opendatacommunities.org/id/metropolitan-district-council/leeds,Leeds City Council,31/03/2018,Resources and Housing,Strategic Housing Partnerships,Capital,Construction,3,29/03/2018,1803-00196,0.00,2268.00,C,Accent Homes Ltd,No
Http://opendatacommunities.org/id/metropolitan-district-council/leeds,Leeds City Council,31/03/2018,Communities and Environment,Community Safety,Transport,Hire Of Movable Plant & Machinery,315,29/03/2018,1803-00197,0.00,1184.00,R,Access Hire Nationwide Ltd,No
Http://opendatacommunities.org/id/metropolitan-district-council/leeds,Leeds City Council,31/03/2018,Resources and Housing,Leeds Building Services,Supplies and Services,Operational Materials,205,06/03/2018,1803-00198,0.00,2169.80,R,Access Lift Consultants Ltd,No
Http://opendatacommunities.org/id/metropolitan-district-council/leeds,Leeds City Council,31/03/2018,Resources and Housing,Leeds Building Services,Supplies and Services,Operational Materials,205,02/03/2018,1803-00199,0.00,66.81,R,Access Locksmiths (Leeds) Limited,No
Http://opendatacommunities.org/id/metropolitan-district-council/leeds,Leeds City Council,31/03/2018,Resources and Housing,Leeds Building Services,Supplies and Services,Operational Materials,205,02/03/2018,1803-00200,0.00,6.75,R,Access Locksmiths (Leeds) Limited,No
Http://opendatacommunities.org/id/metropolitan-district-council/leeds,Leeds City Council,31/03/2018,Resources and Housing,Leeds Building Services,Supplies and Services,Operational Materials,205,02/03/2018,1803-00201,0.00,98.58,R,Access Locksmiths (Leeds) Limited,No
Http://opendatacommunities.org/id/metropolitan-district-council/leeds,Leeds City Council,31/03/2018,Resources and Housing,Leeds Building Services,Supplies and Services,Operational Materials,205,02/03/2018,1803-00202,0.00,105.00,R,Access Locksmiths (Leeds) Limited,No
Http://opendatacommunities.org/id/metropolitan-district-council/leeds,Leeds City Council,31/03/2018,Resources and Housing,Leeds Building Services,Supplies and Services,Operational Materials,205,02/03/2018,1803-00203,0.00,15.80,R,Access Locksmiths (Leeds) Limited,No
Http://opendatacommunities.org/id/metropolitan-district-council/leeds,Leeds City Council,31/03/2018,Resources and Housing,Leeds Building Services,Supplies and Services,Operational Materials,205,02/03/2018,1803-00204,0.00,30.98,R,Access Locksmiths (Leeds) Limited,No
Http://opendatacommunities.org/id/metropolitan-district-council/leeds,Leeds City Council,31/03/2018,Resources and Housing,Leeds Building Services,Supplies and Services,Operational Materials,205,02/03/2018,1803-00205,0.00,417.60,R,Access Locksmiths (Leeds) Limited,No
Http://opendatacommunities.org/id/metropolitan-district-council/leeds,Leeds City Council,31/03/2018,Resources and Housing,Leeds Building Services,Supplies and Services,Operational Materials,205,02/03/2018,1803-00206,0.00,271.34,R,Access Locksmiths (Leeds) Limited,No
Http://opendatacommunities.org/id/metropolitan-district-council/leeds,Leeds City Council,31/03/2018,Strategic Landlord,Property and Contracts,Premises,General Maintenance,104,07/03/2018,1803-00207,0.00,288.72,R,Access Locksmiths (Leeds) Limited,No
Http://opendatacommunities.org/id/metropolitan-district-council/leeds,Leeds City Council,31/03/2018,Strategic Landlord,Property and Contracts,Supplies and Services,Resaleable Materials,204,07/03/2018,1803-00208,0.00,20.18,R,Access Locksmiths (Leeds) Limited,No
Http://opendatacommunities.org/id/metropolitan-district-council/leeds,Leeds City Council,31/03/2018,Strategic Landlord,Housing Management,Supplies and Services,Resaleable Materials,204,07/03/2018,1803-00209,0.00,10.00,R,Access Locksmiths (Leeds) Limited,No
Http://opendatacommunities.org/id/metropolitan-district-council/leeds,Leeds City Council,31/03/2018,Strategic Landlord,Housing Management,Premises,Fixtures & Fittings,131,07/03/2018,1803-00210,0.00,114.00,R,Access Locksmiths (Leeds) Limited,No
Http://opendatacommunities.org/id/metropolitan-district-council/leeds,Leeds City Council,31/03/2018,Strategic Landlord,Housing Management,Premises,Fixtures & Fittings,131,07/03/2018,1803-00211,0.00,114.00,R,Access Locksmiths (Leeds) Limited,No
Http://opendatacommunities.org/id/metropolitan-district-council/leeds,Leeds City Council,31/03/2018,Strategic Landlord,Housing Management,Supplies and Services,Resaleable Materials,204,07/03/2018,1803-00212,0.00,57.00,R,Access Locksmiths (Leeds) Limited,No
Http://opendatacommunities.org/id/metropolitan-district-council/leeds,Leeds City Council,31/03/2018,Strategic Landlord,Property and Contracts,Supplies and Services,Office Consumables,210,07/03/2018,1803-00213,0.00,13.30,R,Access Locksmiths (Leeds) Limited,No
Http://opendatacommunities.org/id/metropolitan-district-council/leeds,Leeds City Council,31/03/2018,Strategic Landlord,Property and Contracts,Supplies and Services,Office Consumables,210,07/03/2018,1803-00214,0.00,14.40,R,Access Locksmiths (Leeds) Limited,No
Http://opendatacommunities.org/id/metropolitan-district-council/leeds,Leeds City Council,31/03/2018,Resources and Housing,Leeds Building Services,Supplies and Services,Operational Furniture And Equipment,203,07/03/2018,1803-00215,0.00,175.00,R,Access Locksmiths (Leeds) Limited,No
Http://opendatacommunities.org/id/metropolitan-district-council/leeds,Leeds City Council,31/03/2018,Resources and Housing,Leeds Building Services,Supplies and Services,Operational Materials,205,09/03/2018,1803-00216,0.00,93.17,R,Access Locksmiths (Leeds) Limited,No
Http://opendatacommunities.org/id/metropolitan-district-council/leeds,Leeds City Council,31/03/2018,Resources and Housing,Leeds Building Services,Supplies and Services,Operational Materials,205,09/03/2018,1803-00217,0.00,325.68,R,Access Locksmiths (Leeds) Limited,No
Http://opendatacommunities.org/id/metropolitan-district-council/leeds,Leeds City Council,31/03/2018,Strategic Landlord,Housing Management,Supplies and Services,Resaleable Materials,204,14/03/2018,1803-00218,0.00,45.00,R,Access Locksmiths (Leeds) Limited,No
Http://opendatacommunities.org/id/metropolitan-district-council/leeds,Leeds City Council,31/03/2018,Strategic Landlord,Housing Management,Supplies and Services,Resaleable Materials,204,14/03/2018,1803-00219,0.00,410.40,R,Access Locksmiths (Leeds) Limited,No
Http://opendatacommunities.org/id/metropolitan-district-council/leeds,Leeds City Council,31/03/2018,Strategic Landlord,Housing Management,Supplies and Services,Resaleable Materials,204,14/03/2018,1803-00220,0.00,228.00,R,Access Locksmiths (Leeds) Limited,No
Http://opendatacommunities.org/id/metropolitan-district-council/leeds,Leeds City Council,31/03/2018,Strategic Landlord,Housing Management,Supplies and Services,Resaleable Materials,204,14/03/2018,1803-00221,0.00,228.00,R,Access Locksmiths (Leeds) Limited,No
Http://opendatacommunities.org/id/metropolitan-district-council/leeds,Leeds City Council,31/03/2018,Resources and Housing,Leeds Building Services,Supplies and Services,Operational Materials,205,15/03/2018,1803-00222,0.00,11.70,R,Access Locksmiths (Leeds) Limited,No
Http://opendatacommunities.org/id/metropolitan-district-council/leeds,Leeds City Council,31/03/2018,Resources and Housing,Leeds Building Services,Supplies and Services,Operational Materials,205,15/03/2018,1803-00223,0.00,5.00,R,Access Locksmiths (Leeds) Limited,No
Http://opendatacommunities.org/id/metropolitan-district-council/leeds,Leeds City Council,31/03/2018,Resources and Housing,Leeds Building Services,Supplies and Services,Operational Materials,205,15/03/2018,1803-00224,0.00,13.50,R,Access Locksmiths (Leeds) Limited,No
Http://opendatacommunities.org/id/metropolitan-district-council/leeds,Leeds City Council,31/03/2018,Resources and Housing,Leeds Building Services,Supplies and Services,Operational Materials,205,15/03/2018,1803-00225,0.00,98.58,R,Access Locksmiths (Leeds) Limited,No
Http://opendatacommunities.org/id/metropolitan-district-council/leeds,Leeds City Council,31/03/2018,Resources and Housing,Leeds Building Services,Supplies and Services,Operational Materials,205,19/03/2018,1803-00226,0.00,23.85,R,Access Locksmiths (Leeds) Limited,No
Http://opendatacommunities.org/id/metropolitan-district-council/leeds,Leeds City Council,31/03/2018,Resources and Housing,Leeds Building Services,Supplies and Services,Operational Materials,205,19/03/2018,1803-00227,0.00,2.98,R,Access Locksmiths (Leeds) Limited,No
Http://opendatacommunities.org/id/metropolitan-district-council/leeds,Leeds City Council,31/03/2018,Strategic Landlord,Property and Contracts,Premises,General Maintenance,104,22/03/2018,1803-00228,0.00,126.81,R,Access Locksmiths (Leeds) Limited,No
Http://opendatacommunities.org/id/metropolitan-district-council/leeds,Leeds City Council,31/03/2018,Communities and Environment,Cleaner Neighbourhood Teams,Supplies and Services,Operational Furniture And Equipment,203,28/03/2018,1803-00229,0.00,74.49,R,Access Locksmiths (Leeds) Limited,No
Http://opendatacommunities.org/id/metropolitan-district-council/leeds,Leeds City Council,31/03/2018,Resources and Housing,HRA Housing Leeds,Capital,Construction,3,28/03/2018,1803-00230,0.00,37.50,C,Access Locksmiths (Leeds) Limited,No
Http://opendatacommunities.org/id/metropolitan-district-council/leeds,Leeds City Council,31/03/2018,Strategic Landlord,Housing Management,Supplies and Services,Resaleable Materials,204,28/03/2018,1803-00231,0.00,50.00,R,Access Locksmiths (Leeds) Limited,No
Http://opendatacommunities.org/id/metropolitan-district-council/leeds,Leeds City Council,31/03/2018,Strategic Landlord,Housing Management,Supplies and Services,Resaleable Materials,204,28/03/2018,1803-00232,0.00,34.20,R,Access Locksmiths (Leeds) Limited,No
Http://opendatacommunities.org/id/metropolitan-district-council/leeds,Leeds City Council,31/03/2018,Resources and Housing,HRA Housing Leeds,Capital,Other Costs,7,28/03/2018,1803-00233,0.00,22.80,C,Access Locksmiths (Leeds) Limited,No
Http://opendatacommunities.org/id/metropolitan-district-council/leeds,Leeds City Council,31/03/2018,Strategic Landlord,Property and Contracts,Supplies and Services,Office Consumables,210,28/03/2018,1803-00234,0.00,28.00,R,Access Locksmiths (Leeds) Limited,No
Http://opendatacommunities.org/id/metropolitan-district-council/leeds,Leeds City Council,31/03/2018,Resources and Housing,HRA Housing Leeds,Capital,Construction,3,29/03/2018,1803-00235,0.00,157.90,C,Access Locksmiths (Leeds) Limited,No
Http://opendatacommunities.org/id/metropolitan-district-council/leeds,Leeds City Council,31/03/2018,Communities and Environment,Cleaner Neighbourhood Teams,Premises,Maintenance Of Buildings,101,29/03/2018,1803-00236,0.00,18.75,R,Access Locksmiths (Leeds) Limited,No
Http://opendatacommunities.org/id/metropolitan-district-council/leeds,Leeds City Council,31/03/2018,City Development,Libraries  Arts & Heritage,Supplies and Services,Bought In Professional Services,277,13/03/2018,1803-00237,0.00,780.44,R,Access Moving Image Ltd,No
Http://opendatacommunities.org/id/metropolitan-district-council/leeds,Leeds City Council,31/03/2018,City Development,Recreation,Supplies and Services,Other Hired And Contracted Services,265,02/03/2018,1803-00238,0.00,84.00,R,Ace Container Services Limited,No
Http://opendatacommunities.org/id/metropolitan-district-council/leeds,Leeds City Council,31/03/2018,City Development,Recreation,Transport,External Hire -Occasional,304,02/03/2018,1803-00239,0.00,116.20,R,Ace Container Services Limited,No
Http://opendatacommunities.org/id/metropolitan-district-council/leeds,Leeds City Council,31/03/2018,City Development,Libraries  Arts & Heritage,Supplies and Services,Other Hired And Contracted Services,265,02/03/2018,1803-00240,0.00,42.00,R,Ace Container Services Limited,No
Http://opendatacommunities.org/id/metropolitan-district-council/leeds,Leeds City Council,31/03/2018,City Development,Recreation,Transport,External Hire -Occasional,304,29/03/2018,1803-00241,0.00,128.65,R,Ace Container Services Limited,No
Http://opendatacommunities.org/id/metropolitan-district-council/leeds,Leeds City Council,31/03/2018,City Development,Libraries  Arts & Heritage,Transport,Hire Of Movable Plant & Machinery,315,29/03/2018,1803-00242,0.00,46.50,R,Ace Container Services Limited,No
Http://opendatacommunities.org/id/metropolitan-district-council/leeds,Leeds City Council,31/03/2018,City Development,Highways,Capital,Other Costs,7,23/03/2018,1803-00243,0.00,280.00,C,Ace Leaflet Distribution & Print Ltd,No
Http://opendatacommunities.org/id/metropolitan-district-council/leeds,Leeds City Council,31/03/2018,Resources and Housing,Strategic Housing Partnership & Support,Supplies and Services,Other Hired And Contracted Services,265,22/03/2018,1803-00244,0.00,400.00,R,Acj Properties,No
Http://opendatacommunities.org/id/metropolitan-district-council/leeds,Leeds City Council,31/03/2018,Resources and Housing,Leeds Building Services,Supplies and Services,Other Hired And Contracted Services,265,02/03/2018,1803-00245,0.00,1440.00,R,Acme Facilities Group Ltd,No
Http://opendatacommunities.org/id/metropolitan-district-council/leeds,Leeds City Council,31/03/2018,Resources and Housing,Commercial Services,Supplies and Services,Operational Furniture And Equipment,203,16/03/2018,1803-00246,0.00,1110.00,R,Acme Facilities Group Ltd,No
Http://opendatacommunities.org/id/metropolitan-district-council/leeds,Leeds City Council,31/03/2018,Resources and Housing,Commercial Services,Supplies and Services,Operational Furniture And Equipment,203,16/03/2018,1803-00247,0.00,1110.00,R,Acme Facilities Group Ltd,No
Http://opendatacommunities.org/id/metropolitan-district-council/leeds,Leeds City Council,31/03/2018,Resources and Housing,Commercial Services,Supplies and Services,Operational Furniture And Equipment,203,23/03/2018,1803-00248,0.00,1198.00,R,Acme Facilities Group Ltd,No
Http://opendatacommunities.org/id/metropolitan-district-council/leeds,Leeds City Council,31/03/2018,Adults and Health,Services For Older People - 65 And Over,Third Party Payments,Nursing Care Dementia,574,07/03/2018,1803-00249,0.00,1546.28,R,Acorn Nursing Home,No
Http://opendatacommunities.org/id/metropolitan-district-council/leeds,Leeds City Council,31/03/2018,City Development,Libraries  Arts & Heritage,Transport,Fuel (Non LCC Supplies),321,27/03/2018,1803-00250,0.00,90.00,R,Acorn Scaffolding (Yorkshire) Ltd,No
Http://opendatacommunities.org/id/metropolitan-district-council/leeds,Leeds City Council,31/03/2018,City Development,Libraries  Arts & Heritage,Supplies and Services,Other Hired And Contracted Services,265,29/03/2018,1803-00251,0.00,556.20,R,Acorn Scaffolding (Yorkshire) Ltd,No
Http://opendatacommunities.org/id/metropolitan-district-council/leeds,Leeds City Council,31/03/2018,Adults and Health,Other Adult Services,Third Party Payments,Residential - Drugs & Alcohol,583,16/03/2018,1803-00252,0.00,2121.43,R,Acorn Treatment & Housing,No
Http://opendatacommunities.org/id/metropolitan-district-council/leeds,Leeds City Council,31/03/2018,Children and Families,Safeguarding Targeted & Specialist,Third Party Payments,Services Rendered By Other Organisations,511,09/03/2018,1803-00253,0.00,33.33,R,Acorns Nursery,No
Http://opendatacommunities.org/id/metropolitan-district-council/leeds,Leeds City Council,31/03/2018,Adults and Health,Services For Older People - 65 And Over,Third Party Payments,Nursing Home,570,07/03/2018,1803-00254,0.00,21738.86,R,Acre Green,No
Http://opendatacommunities.org/id/metropolitan-district-council/leeds,Leeds City Council,31/03/2018,Adults and Health,Services For Older People Under 65 P/Dis,Third Party Payments,Nursing Home,570,07/03/2018,1803-00255,0.00,2283.43,R,Acre Green,No
Http://opendatacommunities.org/id/metropolitan-district-council/leeds,Leeds City Council,31/03/2018,Adults and Health,Services For Older People - 65 And Over,Third Party Payments,Nursing Care Dementia,574,07/03/2018,1803-00256,0.00,1912.33,R,Acre Green,No
Http://opendatacommunities.org/id/metropolitan-district-council/leeds,Leeds City Council,31/03/2018,Adults and Health,Services For Older People - 65 And Over,Third Party Payments,Residential,580,07/03/2018,1803-00257,0.00,6255.83,R,Acre Green,No
Http://opendatacommunities.org/id/metropolitan-district-council/leeds,Leeds City Council,31/03/2018,Adults and Health,Services For Older People Under 65 P/Dis,Third Party Payments,Residential,580,07/03/2018,1803-00258,0.00,3502.62,R,Acre Green,No
Http://opendatacommunities.org/id/metropolitan-district-council/leeds,Leeds City Council,31/03/2018,Children and Families,Safeguarding Targeted & Specialist,Third Party Payments,Services Rendered By Other Organisations,511,26/03/2018,1803-00259,0.00,615.00,R,Acre Wood Day Nursery,No
Http://opendatacommunities.org/id/metropolitan-district-council/leeds,Leeds City Council,31/03/2018,City Development,Libraries  Arts & Heritage  ,Supplies and Services,Operational Furniture And Equipment,203,26/02/2018,1803-00260,0.00,160.01,R,Acrylic Design UK Ltd,Yes
Http://opendatacommunities.org/id/metropolitan-district-council/leeds,Leeds City Council as Accountable Body,31/03/2018,Social Services Pooled Budgets,Jcs For People With Learning Disabilitie,Third Party Payments,Residential,580,29/03/2018,1803-00261,0.00,12301.14,R,Action 4 Care Ltd,No
Http://opendatacommunities.org/id/metropolitan-district-council/leeds,Leeds City Council as Accountable Body,31/03/2018,Social Services Pooled Budgets,Jcs For People With Learning Disabilitie,Supplies and Services,Other Equipment,203,02/03/2018,1803-00262,0.00,165.00,R,Action Assist Ltd,No
Http://opendatacommunities.org/id/metropolitan-district-council/leeds,Leeds City Council as Accountable Body,31/03/2018,Social Services Pooled Budgets,Jcs For People With Learning Disabilitie,Supplies and Services,Other Equipment,203,02/03/2018,1803-00263,0.00,165.00,R,Action Assist Ltd,No
Http://opendatacommunities.org/id/metropolitan-district-council/leeds,Leeds City Council as Accountable Body,31/03/2018,Social Services Pooled Budgets,Leeds Community Equip Store Pooled Budgt,Supplies and Services,Other Equipment,203,14/03/2018,1803-00264,0.00,175.00,R,Action Assist Ltd,No
Http://opendatacommunities.org/id/metropolitan-district-council/leeds,Leeds City Council,31/03/2018,Adults and Health,Services For Adults Under 65 Mental/Dis,Third Party Payments,Fees - Level 4,520,02/03/2018,1803-00265,0.00,250.00,R,Action First Recruitment Ltd,No
Http://opendatacommunities.org/id/metropolitan-district-council/leeds,Leeds City Council,31/03/2018,Adults and Health,Services For Adults Under 65 Mental/Dis,Third Party Payments,Fees - Level 4,520,02/03/2018,1803-00266,0.00,250.00,R,Action First Recruitment Ltd,No
Http://opendatacommunities.org/id/metropolitan-district-council/leeds,Leeds City Council,31/03/2018,Adults and Health,Services For Adults Under 65 Mental/Dis,Third Party Payments,Fees - Level 4,520,02/03/2018,1803-00267,0.00,250.00,R,Action First Recruitment Ltd,No
Http://opendatacommunities.org/id/metropolitan-district-council/leeds,Leeds City Council,31/03/2018,Adults and Health,Services For Adults Under 65 Mental/Dis,Third Party Payments,Fees - Level 4,520,02/03/2018,1803-00268,0.00,250.00,R,Action First Recruitment Ltd,No
Http://opendatacommunities.org/id/metropolitan-district-council/leeds,Leeds City Council,31/03/2018,Adults and Health,Services For Adults Under 65 Mental/Dis,Third Party Payments,Fees - Level 4,520,02/03/2018,1803-00269,0.00,250.00,R,Action First Recruitment Ltd,No
Http://opendatacommunities.org/id/metropolitan-district-council/leeds,Leeds City Council,31/03/2018,Adults and Health,Services For Adults Under 65 Mental/Dis,Third Party Payments,Fees - Level 4,520,02/03/2018,1803-00270,0.00,250.00,R,Action First Recruitment Ltd,No
Http://opendatacommunities.org/id/metropolitan-district-council/leeds,Leeds City Council,31/03/2018,Adults and Health,Services For Adults Under 65 Mental/Dis,Third Party Payments,Fees - Level 4,520,02/03/2018,1803-00271,0.00,250.00,R,Action First Recruitment Ltd,No
Http://opendatacommunities.org/id/metropolitan-district-council/leeds,Leeds City Council,31/03/2018,Adults and Health,Services For Adults Under 65 Mental/Dis,Third Party Payments,Fees - Level 4,520,02/03/2018,1803-00272,0.00,250.00,R,Action First Recruitment Ltd,No
Http://opendatacommunities.org/id/metropolitan-district-council/leeds,Leeds City Council,31/03/2018,Adults and Health,Services For Adults Under 65 Mental/Dis,Third Party Payments,Fees - Level 4,520,02/03/2018,1803-00273,0.00,250.00,R,Action First Recruitment Ltd,No
Http://opendatacommunities.org/id/metropolitan-district-council/leeds,Leeds City Council,31/03/2018,Adults and Health,Services For Adults Under 65 Mental/Dis,Third Party Payments,Fees - Level 4,520,02/03/2018,1803-00274,0.00,250.00,R,Action First Recruitment Ltd,No
Http://opendatacommunities.org/id/metropolitan-district-council/leeds,Leeds City Council,31/03/2018,Adults and Health,Services For Adults Under 65 Mental/Dis,Third Party Payments,Fees - Level 4,520,02/03/2018,1803-00275,0.00,250.00,R,Action First Recruitment Ltd,No
Http://opendatacommunities.org/id/metropolitan-district-council/leeds,Leeds City Council,31/03/2018,Adults and Health,Services For Adults Under 65 Mental/Dis,Third Party Payments,Fees - Level 4,520,02/03/2018,1803-00276,0.00,250.00,R,Action First Recruitment Ltd,No
Http://opendatacommunities.org/id/metropolitan-district-council/leeds,Leeds City Council,31/03/2018,Adults and Health,Services For Adults Under 65 Mental/Dis,Third Party Payments,Fees - Level 4,520,02/03/2018,1803-00277,0.00,250.00,R,Action First Recruitment Ltd,No
Http://opendatacommunities.org/id/metropolitan-district-council/leeds,Leeds City Council,31/03/2018,Adults and Health,Services For Adults Under 65 Mental/Dis,Third Party Payments,Fees - Level 4,520,02/03/2018,1803-00278,0.00,250.00,R,Action First Recruitment Ltd,No
Http://opendatacommunities.org/id/metropolitan-district-council/leeds,Leeds City Council,31/03/2018,Adults and Health,Services For Adults Under 65 Mental/Dis,Third Party Payments,Fees - Level 4,520,02/03/2018,1803-00279,0.00,220.00,R,Action First Recruitment Ltd,No
Http://opendatacommunities.org/id/metropolitan-district-council/leeds,Leeds City Council,31/03/2018,Adults and Health,Services For Adults Under 65 Mental/Dis,Third Party Payments,Fees - Level 4,520,02/03/2018,1803-00280,0.00,220.00,R,Action First Recruitment Ltd,No
Http://opendatacommunities.org/id/metropolitan-district-council/leeds,Leeds City Council,31/03/2018,Adults and Health,Services For Adults Under 65 Mental/Dis,Third Party Payments,Fees - Level 4,520,02/03/2018,1803-00281,0.00,220.00,R,Action First Recruitment Ltd,No
Http://opendatacommunities.org/id/metropolitan-district-council/leeds,Leeds City Council,31/03/2018,Adults and Health,Services For Adults Under 65 Mental/Dis,Third Party Payments,Fees - Level 4,520,02/03/2018,1803-00282,0.00,220.00,R,Action First Recruitment Ltd,No
Http://opendatacommunities.org/id/metropolitan-district-council/leeds,Leeds City Council,31/03/2018,Adults and Health,Services For Adults Under 65 Mental/Dis,Third Party Payments,Fees - Level 4,520,02/03/2018,1803-00283,0.00,220.00,R,Action First Recruitment Ltd,No
Http://opendatacommunities.org/id/metropolitan-district-council/leeds,Leeds City Council,31/03/2018,Adults and Health,Services For Adults Under 65 Mental/Dis,Third Party Payments,Fees - Level 4,520,02/03/2018,1803-00284,0.00,220.00,R,Action First Recruitment Ltd,No
Http://opendatacommunities.org/id/metropolitan-district-council/leeds,Leeds City Council,31/03/2018,Adults and Health,Services For Adults Under 65 Mental/Dis,Third Party Payments,Fees - Level 4,520,02/03/2018,1803-00285,0.00,220.00,R,Action First Recruitment Ltd,No
Http://opendatacommunities.org/id/metropolitan-district-council/leeds,Leeds City Council,31/03/2018,Adults and Health,Services For Adults Under 65 Mental/Dis,Third Party Payments,Fees - Level 4,520,02/03/2018,1803-00286,0.00,220.00,R,Action First Recruitment Ltd,No
Http://opendatacommunities.org/id/metropolitan-district-council/leeds,Leeds City Council,31/03/2018,Adults and Health,Services For Adults Under 65 Mental/Dis,Third Party Payments,Fees - Level 4,520,02/03/2018,1803-00287,0.00,220.00,R,Action First Recruitment Ltd,No
Http://opendatacommunities.org/id/metropolitan-district-council/leeds,Leeds City Council,31/03/2018,Adults and Health,Services For Adults Under 65 Mental/Dis,Third Party Payments,Fees - Level 4,520,02/03/2018,1803-00288,0.00,220.00,R,Action First Recruitment Ltd,No
Http://opendatacommunities.org/id/metropolitan-district-council/leeds,Leeds City Council,31/03/2018,Adults and Health,Services For Adults Under 65 Mental/Dis,Third Party Payments,Fees - Level 4,520,02/03/2018,1803-00289,0.00,220.00,R,Action First Recruitment Ltd,No
Http://opendatacommunities.org/id/metropolitan-district-council/leeds,Leeds City Council,31/03/2018,Adults and Health,Services For Adults Under 65 Mental/Dis,Third Party Payments,Fees - Level 4,520,02/03/2018,1803-00290,0.00,220.00,R,Action First Recruitment Ltd,No
Http://opendatacommunities.org/id/metropolitan-district-council/leeds,Leeds City Council,31/03/2018,Adults and Health,Services For Adults Under 65 Mental/Dis,Third Party Payments,Fees - Level 4,520,02/03/2018,1803-00291,0.00,250.00,R,Action First Recruitment Ltd,No
Http://opendatacommunities.org/id/metropolitan-district-council/leeds,Leeds City Council,31/03/2018,Adults and Health,Services For Adults Under 65 Mental/Dis,Third Party Payments,Fees - Level 4,520,02/03/2018,1803-00292,0.00,220.00,R,Action First Recruitment Ltd,No
Http://opendatacommunities.org/id/metropolitan-district-council/leeds,Leeds City Council,31/03/2018,Adults and Health,Services For Adults Under 65 Mental/Dis,Third Party Payments,Fees - Level 4,520,02/03/2018,1803-00293,0.00,220.00,R,Action First Recruitment Ltd,No
Http://opendatacommunities.org/id/metropolitan-district-council/leeds,Leeds City Council,31/03/2018,Adults and Health,Services For Adults Under 65 Mental/Dis,Third Party Payments,Fees - Level 4,520,13/03/2018,1803-00294,0.00,250.00,R,Action First Recruitment Ltd,No
Http://opendatacommunities.org/id/metropolitan-district-council/leeds,Leeds City Council,31/03/2018,Adults and Health,Services For Adults Under 65 Mental/Dis,Third Party Payments,Fees - Level 4,520,13/03/2018,1803-00295,0.00,250.00,R,Action First Recruitment Ltd,No
Http://opendatacommunities.org/id/metropolitan-district-council/leeds,Leeds City Council,31/03/2018,Adults and Health,Services For Adults Under 65 Mental/Dis,Third Party Payments,Fees - Level 4,520,13/03/2018,1803-00296,0.00,250.00,R,Action First Recruitment Ltd,No
Http://opendatacommunities.org/id/metropolitan-district-council/leeds,Leeds City Council,31/03/2018,Adults and Health,Services For Adults Under 65 Mental/Dis,Third Party Payments,Fees - Level 4,520,13/03/2018,1803-00297,0.00,250.00,R,Action First Recruitment Ltd,No
Http://opendatacommunities.org/id/metropolitan-district-council/leeds,Leeds City Council,31/03/2018,Adults and Health,Services For Adults Under 65 Mental/Dis,Third Party Payments,Fees - Level 4,520,13/03/2018,1803-00298,0.00,250.00,R,Action First Recruitment Ltd,No
Http://opendatacommunities.org/id/metropolitan-district-council/leeds,Leeds City Council,31/03/2018,Adults and Health,Services For Adults Under 65 Mental/Dis,Third Party Payments,Fees - Level 4,520,13/03/2018,1803-00299,0.00,250.00,R,Action First Recruitment Ltd,No
Http://opendatacommunities.org/id/metropolitan-district-council/leeds,Leeds City Council,31/03/2018,Adults and Health,Services For Adults Under 65 Mental/Dis,Third Party Payments,Fees - Level 4,520,13/03/2018,1803-00300,0.00,250.00,R,Action First Recruitment Ltd,No
Http://opendatacommunities.org/id/metropolitan-district-council/leeds,Leeds City Council,31/03/2018,Adults and Health,Services For Adults Under 65 Mental/Dis,Third Party Payments,Fees - Level 4,520,13/03/2018,1803-00301,0.00,250.00,R,Action First Recruitment Ltd,No
Http://opendatacommunities.org/id/metropolitan-district-council/leeds,Leeds City Council,31/03/2018,Adults and Health,Services For Adults Under 65 Mental/Dis,Third Party Payments,Fees - Level 4,520,13/03/2018,1803-00302,0.00,220.00,R,Action First Recruitment Ltd,No
Http://opendatacommunities.org/id/metropolitan-district-council/leeds,Leeds City Council,31/03/2018,Adults and Health,Services For Adults Under 65 Mental/Dis,Third Party Payments,Fees - Level 4,520,13/03/2018,1803-00303,0.00,220.00,R,Action First Recruitment Ltd,No
Http://opendatacommunities.org/id/metropolitan-district-council/leeds,Leeds City Council,31/03/2018,Adults and Health,Services For Adults Under 65 Mental/Dis,Third Party Payments,Fees - Level 4,520,13/03/2018,1803-00304,0.00,250.00,R,Action First Recruitment Ltd,No
Http://opendatacommunities.org/id/metropolitan-district-council/leeds,Leeds City Council,31/03/2018,Adults and Health,Services For Adults Under 65 Mental/Dis,Third Party Payments,Fees - Level 4,520,13/03/2018,1803-00305,0.00,250.00,R,Action First Recruitment Ltd,No
Http://opendatacommunities.org/id/metropolitan-district-council/leeds,Leeds City Council,31/03/2018,Adults and Health,Services For Adults Under 65 Mental/Dis,Third Party Payments,Fees - Level 4,520,13/03/2018,1803-00306,0.00,250.00,R,Action First Recruitment Ltd,No
Http://opendatacommunities.org/id/metropolitan-district-council/leeds,Leeds City Council,31/03/2018,Adults and Health,Services For Adults Under 65 Mental/Dis,Third Party Payments,Fees - Level 4,520,13/03/2018,1803-00307,0.00,250.00,R,Action First Recruitment Ltd,No
Http://opendatacommunities.org/id/metropolitan-district-council/leeds,Leeds City Council,31/03/2018,Adults and Health,Services For Adults Under 65 Mental/Dis,Third Party Payments,Fees - Level 4,520,13/03/2018,1803-00308,0.00,250.00,R,Action First Recruitment Ltd,No
Http://opendatacommunities.org/id/metropolitan-district-council/leeds,Leeds City Council,31/03/2018,Adults and Health,Services For Adults Under 65 Mental/Dis,Third Party Payments,Fees - Level 4,520,13/03/2018,1803-00309,0.00,250.00,R,Action First Recruitment Ltd,No
Http://opendatacommunities.org/id/metropolitan-district-council/leeds,Leeds City Council,31/03/2018,Adults and Health,Services For Adults Under 65 Mental/Dis,Third Party Payments,Fees - Level 4,520,13/03/2018,1803-00310,0.00,220.00,R,Action First Recruitment Ltd,No
Http://opendatacommunities.org/id/metropolitan-district-council/leeds,Leeds City Council,31/03/2018,Adults and Health,Services For Adults Under 65 Mental/Dis,Third Party Payments,Fees - Level 4,520,13/03/2018,1803-00311,0.00,220.00,R,Action First Recruitment Ltd,No
Http://opendatacommunities.org/id/metropolitan-district-council/leeds,Leeds City Council,31/03/2018,Adults and Health,Services For Adults Under 65 Mental/Dis,Third Party Payments,Fees - Level 4,520,13/03/2018,1803-00312,0.00,220.00,R,Action First Recruitment Ltd,No
Http://opendatacommunities.org/id/metropolitan-district-council/leeds,Leeds City Council,31/03/2018,Adults and Health,Services For Adults Under 65 Mental/Dis,Third Party Payments,Fees - Level 4,520,13/03/2018,1803-00313,0.00,220.00,R,Action First Recruitment Ltd,No
Http://opendatacommunities.org/id/metropolitan-district-council/leeds,Leeds City Council,31/03/2018,Adults and Health,Services For Adults Under 65 Mental/Dis,Third Party Payments,Fees - Level 4,520,13/03/2018,1803-00314,0.00,220.00,R,Action First Recruitment Ltd,No
Http://opendatacommunities.org/id/metropolitan-district-council/leeds,Leeds City Council,31/03/2018,Adults and Health,Services For Adults Under 65 Mental/Dis,Third Party Payments,Fees - Level 4,520,13/03/2018,1803-00315,0.00,220.00,R,Action First Recruitment Ltd,No
Http://opendatacommunities.org/id/metropolitan-district-council/leeds,Leeds City Council,31/03/2018,Adults and Health,Services For Adults Under 65 Mental/Dis,Third Party Payments,Fees - Level 4,520,13/03/2018,1803-00316,0.00,220.00,R,Action First Recruitment Ltd,No
Http://opendatacommunities.org/id/metropolitan-district-council/leeds,Leeds City Council,31/03/2018,Adults and Health,Services For Adults Under 65 Mental/Dis,Third Party Payments,Fees - Level 4,520,13/03/2018,1803-00317,0.00,220.00,R,Action First Recruitment Ltd,No
Http://opendatacommunities.org/id/metropolitan-district-council/leeds,Leeds City Council,31/03/2018,Adults and Health,Services For Adults Under 65 Mental/Dis,Third Party Payments,Fees - Level 4,520,13/03/2018,1803-00318,0.00,220.00,R,Action First Recruitment Ltd,No
Http://opendatacommunities.org/id/metropolitan-district-council/leeds,Leeds City Council,31/03/2018,Adults and Health,Services For Adults Under 65 Mental/Dis,Third Party Payments,Fees - Level 4,520,13/03/2018,1803-00319,0.00,250.00,R,Action First Recruitment Ltd,No
Http://opendatacommunities.org/id/metropolitan-district-council/leeds,Leeds City Council,31/03/2018,Adults and Health,Services For Adults Under 65 Mental/Dis,Third Party Payments,Fees - Level 4,520,13/03/2018,1803-00320,0.00,250.00,R,Action First Recruitment Ltd,No
Http://opendatacommunities.org/id/metropolitan-district-council/leeds,Leeds City Council,31/03/2018,Adults and Health,Services For Adults Under 65 Mental/Dis,Third Party Payments,Fees - Level 4,520,13/03/2018,1803-00321,0.00,250.00,R,Action First Recruitment Ltd,No
Http://opendatacommunities.org/id/metropolitan-district-council/leeds,Leeds City Council,31/03/2018,Adults and Health,Services For Adults Under 65 Mental/Dis,Third Party Payments,Fees - Level 4,520,13/03/2018,1803-00322,0.00,250.00,R,Action First Recruitment Ltd,No
Http://opendatacommunities.org/id/metropolitan-district-council/leeds,Leeds City Council,31/03/2018,Adults and Health,Services For Adults Under 65 Mental/Dis,Third Party Payments,Fees - Level 4,520,13/03/2018,1803-00323,0.00,250.00,R,Action First Recruitment Ltd,No
Http://opendatacommunities.org/id/metropolitan-district-council/leeds,Leeds City Council,31/03/2018,Adults and Health,Services For Adults Under 65 Mental/Dis,Third Party Payments,Fees - Level 4,520,13/03/2018,1803-00324,0.00,250.00,R,Action First Recruitment Ltd,No
Http://opendatacommunities.org/id/metropolitan-district-council/leeds,Leeds City Council,31/03/2018,Adults and Health,Services For Adults Under 65 Mental/Dis,Third Party Payments,Fees - Level 4,520,13/03/2018,1803-00325,0.00,220.00,R,Action First Recruitment Ltd,No
Http://opendatacommunities.org/id/metropolitan-district-council/leeds,Leeds City Council,31/03/2018,Adults and Health,Services For Adults Under 65 Mental/Dis,Third Party Payments,Fees - Level 4,520,13/03/2018,1803-00326,0.00,220.00,R,Action First Recruitment Ltd,No
Http://opendatacommunities.org/id/metropolitan-district-council/leeds,Leeds City Council,31/03/2018,Adults and Health,Services For Adults Under 65 Mental/Dis,Third Party Payments,Fees - Level 4,520,13/03/2018,1803-00327,0.00,220.00,R,Action First Recruitment Ltd,No
Http://opendatacommunities.org/id/metropolitan-district-council/leeds,Leeds City Council,31/03/2018,Adults and Health,Services For Adults Under 65 Mental/Dis,Third Party Payments,Fees - Level 4,520,13/03/2018,1803-00328,0.00,220.00,R,Action First Recruitment Ltd,No
Http://opendatacommunities.org/id/metropolitan-district-council/leeds,Leeds City Council,31/03/2018,Adults and Health,Services For Adults Under 65 Mental/Dis,Third Party Payments,Fees - Level 4,520,13/03/2018,1803-00329,0.00,220.00,R,Action First Recruitment Ltd,No
Http://opendatacommunities.org/id/metropolitan-district-council/leeds,Leeds City Council,31/03/2018,Adults and Health,Services For Adults Under 65 Mental/Dis,Third Party Payments,Fees - Level 4,520,13/03/2018,1803-00330,0.00,220.00,R,Action First Recruitment Ltd,No
Http://opendatacommunities.org/id/metropolitan-district-council/leeds,Leeds City Council,31/03/2018,Adults and Health,Services For Adults Under 65 Mental/Dis,Third Party Payments,Fees - Level 4,520,13/03/2018,1803-00331,0.00,220.00,R,Action First Recruitment Ltd,No
Http://opendatacommunities.org/id/metropolitan-district-council/leeds,Leeds City Council,31/03/2018,Adults and Health,Services For Adults Under 65 Mental/Dis,Third Party Payments,Fees - Level 4,520,13/03/2018,1803-00332,0.00,220.00,R,Action First Recruitment Ltd,No
Http://opendatacommunities.org/id/metropolitan-district-council/leeds,Leeds City Council,31/03/2018,Adults and Health,Services For Adults Under 65 Mental/Dis,Third Party Payments,Fees - Level 4,520,13/03/2018,1803-00333,0.00,220.00,R,Action First Recruitment Ltd,No
Http://opendatacommunities.org/id/metropolitan-district-council/leeds,Leeds City Council,31/03/2018,Adults and Health,Services For Adults Under 65 Mental/Dis,Third Party Payments,Fees - Level 4,520,20/03/2018,1803-00334,0.00,250.00,R,Action First Recruitment Ltd,No
Http://opendatacommunities.org/id/metropolitan-district-council/leeds,Leeds City Council,31/03/2018,Adults and Health,Services For Adults Under 65 Mental/Dis,Third Party Payments,Fees - Level 4,520,20/03/2018,1803-00335,0.00,250.00,R,Action First Recruitment Ltd,No
Http://opendatacommunities.org/id/metropolitan-district-council/leeds,Leeds City Council,31/03/2018,Adults and Health,Services For Adults Under 65 Mental/Dis,Third Party Payments,Fees - Level 4,520,20/03/2018,1803-00336,0.00,220.00,R,Action First Recruitment Ltd,No
Http://opendatacommunities.org/id/metropolitan-district-council/leeds,Leeds City Council,31/03/2018,Adults and Health,Services For Adults Under 65 Mental/Dis,Third Party Payments,Fees - Level 4,520,20/03/2018,1803-00337,0.00,220.00,R,Action First Recruitment Ltd,No
Http://opendatacommunities.org/id/metropolitan-district-council/leeds,Leeds City Council,31/03/2018,Adults and Health,Services For Adults Under 65 Mental/Dis,Third Party Payments,Fees - Level 4,520,20/03/2018,1803-00338,0.00,250.00,R,Action First Recruitment Ltd,No
Http://opendatacommunities.org/id/metropolitan-district-council/leeds,Leeds City Council,31/03/2018,Adults and Health,Services For Adults Under 65 Mental/Dis,Third Party Payments,Fees - Level 4,520,20/03/2018,1803-00339,0.00,250.00,R,Action First Recruitment Ltd,No
Http://opendatacommunities.org/id/metropolitan-district-council/leeds,Leeds City Council,31/03/2018,Adults and Health,Services For Adults Under 65 Mental/Dis,Third Party Payments,Fees - Level 4,520,20/03/2018,1803-00340,0.00,250.00,R,Action First Recruitment Ltd,No
Http://opendatacommunities.org/id/metropolitan-district-council/leeds,Leeds City Council,31/03/2018,Adults and Health,Services For Adults Under 65 Mental/Dis,Third Party Payments,Fees - Level 4,520,20/03/2018,1803-00341,0.00,250.00,R,Action First Recruitment Ltd,No
Http://opendatacommunities.org/id/metropolitan-district-council/leeds,Leeds City Council,31/03/2018,Adults and Health,Services For Adults Under 65 Mental/Dis,Third Party Payments,Fees - Level 4,520,20/03/2018,1803-00342,0.00,250.00,R,Action First Recruitment Ltd,No
Http://opendatacommunities.org/id/metropolitan-district-council/leeds,Leeds City Council,31/03/2018,Adults and Health,Services For Adults Under 65 Mental/Dis,Third Party Payments,Fees - Level 4,520,20/03/2018,1803-00343,0.00,250.00,R,Action First Recruitment Ltd,No
Http://opendatacommunities.org/id/metropolitan-district-council/leeds,Leeds City Council,31/03/2018,Adults and Health,Services For Adults Under 65 Mental/Dis,Third Party Payments,Fees - Level 4,520,20/03/2018,1803-00344,0.00,220.00,R,Action First Recruitment Ltd,No
Http://opendatacommunities.org/id/metropolitan-district-council/leeds,Leeds City Council,31/03/2018,Adults and Health,Services For Adults Under 65 Mental/Dis,Third Party Payments,Fees - Level 4,520,20/03/2018,1803-00345,0.00,220.00,R,Action First Recruitment Ltd,No
Http://opendatacommunities.org/id/metropolitan-district-council/leeds,Leeds City Council,31/03/2018,Adults and Health,Services For Adults Under 65 Mental/Dis,Third Party Payments,Fees - Level 4,520,20/03/2018,1803-00346,0.00,220.00,R,Action First Recruitment Ltd,No
Http://opendatacommunities.org/id/metropolitan-district-council/leeds,Leeds City Council,31/03/2018,Children and Families,Safeguarding Targeted & Specialist,Third Party Payments,Independent Fostering Agencies,509,22/03/2018,1803-00347,0.00,4314.24,R,Action For Children,No
Http://opendatacommunities.org/id/metropolitan-district-council/leeds,Leeds City Council,31/03/2018,Children and Families,Safeguarding Targeted & Specialist,Third Party Payments,Independent Fostering Agencies,509,22/03/2018,1803-00348,0.00,4314.24,R,Action For Children,No
Http://opendatacommunities.org/id/metropolitan-district-council/leeds,Leeds City Council,31/03/2018,Children and Families,Safeguarding Targeted & Specialist,Third Party Payments,Independent Fostering Agencies,509,23/03/2018,1803-00349,0.00,4314.24,R,Action For Children,No
Http://opendatacommunities.org/id/metropolitan-district-council/leeds,Leeds City Council,31/03/2018,Children and Families,Safeguarding Targeted & Specialist,Third Party Payments,Independent Fostering Agencies,509,23/03/2018,1803-00350,0.00,4314.24,R,Action For Children,No
Http://opendatacommunities.org/id/metropolitan-district-council/leeds,Leeds City Council,31/03/2018,Children and Families,Safeguarding Targeted & Specialist,Third Party Payments,Independent Fostering Agencies,509,23/03/2018,1803-00351,0.00,4776.48,R,Action For Children,No
Http://opendatacommunities.org/id/metropolitan-district-council/leeds,Leeds City Council,31/03/2018,Children and Families,Safeguarding Targeted & Specialist,Third Party Payments,Independent Fostering Agencies,509,22/03/2018,1803-00352,0.00,4663.96,R,Action For Children Services Ltd,No
Http://opendatacommunities.org/id/metropolitan-district-council/leeds,Leeds City Council,31/03/2018,Children and Families,Safeguarding Targeted & Specialist,Third Party Payments,Services Rendered By Other Organisations,511,09/03/2018,1803-00353,0.00,311.08,R,Active Kids Yeadon Llp,No
Http://opendatacommunities.org/id/metropolitan-district-council/leeds,Leeds City Council,31/03/2018,Children and Families,Safeguarding Targeted & Specialist,Third Party Payments,Services Rendered By Other Organisations,511,16/03/2018,1803-00354,0.00,3423.09,R,Active Kids Yeadon Llp,No
Http://opendatacommunities.org/id/metropolitan-district-council/leeds,Leeds City Council,31/03/2018,Communities and Environment,Cleaner Neighbourhood Teams,Premises,Removal Of Workplace Waste,126,01/03/2018,1803-00355,0.00,110.00,R,Acumen Waste Services Ltd,No
Http://opendatacommunities.org/id/metropolitan-district-council/leeds,Leeds City Council,31/03/2018,Communities and Environment,Waste Management,Supplies and Services,Recycling & Reuse Charges,234,01/03/2018,1803-00356,0.00,4797.20,R,Acumen Waste Services Ltd,No
Http://opendatacommunities.org/id/metropolitan-district-council/leeds,Leeds City Council,31/03/2018,Communities and Environment,Cleaner Neighbourhood Teams,Premises,Removal Of Workplace Waste,126,02/03/2018,1803-00357,0.00,110.00,R,Acumen Waste Services Ltd,No
Http://opendatacommunities.org/id/metropolitan-district-council/leeds,Leeds City Council,31/03/2018,Communities and Environment,Waste Management,Supplies and Services,Recycling & Reuse Charges,234,02/03/2018,1803-00358,0.00,5662.17,R,Acumen Waste Services Ltd,No
Http://opendatacommunities.org/id/metropolitan-district-council/leeds,Leeds City Council,31/03/2018,Communities and Environment,Cleaner Neighbourhood Teams,Premises,Removal Of Workplace Waste,126,06/03/2018,1803-00359,0.00,110.00,R,Acumen Waste Services Ltd,No
Http://opendatacommunities.org/id/metropolitan-district-council/leeds,Leeds City Council,31/03/2018,Communities and Environment,Cleaner Neighbourhood Teams,Premises,Removal Of Workplace Waste,126,06/03/2018,1803-00360,0.00,110.00,R,Acumen Waste Services Ltd,No
Http://opendatacommunities.org/id/metropolitan-district-council/leeds,Leeds City Council,31/03/2018,Communities and Environment,Cleaner Neighbourhood Teams,Premises,Removal Of Workplace Waste,126,13/03/2018,1803-00361,0.00,110.00,R,Acumen Waste Services Ltd,No
Http://opendatacommunities.org/id/metropolitan-district-council/leeds,Leeds City Council,31/03/2018,Communities and Environment,Waste Management,Supplies and Services,Recycling & Reuse Charges,234,13/03/2018,1803-00362,0.00,8558.58,R,Acumen Waste Services Ltd,No
Http://opendatacommunities.org/id/metropolitan-district-council/leeds,Leeds City Council,31/03/2018,Communities and Environment,Cleaner Neighbourhood Teams,Premises,Removal Of Workplace Waste,126,23/03/2018,1803-00363,0.00,110.00,R,Acumen Waste Services Ltd,No
Http://opendatacommunities.org/id/metropolitan-district-council/leeds,Leeds City Council,31/03/2018,Communities and Environment,Waste Management,Supplies and Services,Recycling & Reuse Charges,234,23/03/2018,1803-00364,0.00,5735.87,R,Acumen Waste Services Ltd,No
Http://opendatacommunities.org/id/metropolitan-district-council/leeds,Leeds City Council,31/03/2018,Communities and Environment,Cleaner Neighbourhood Teams,Premises,Removal Of Workplace Waste,126,23/03/2018,1803-00365,0.00,110.00,R,Acumen Waste Services Ltd,No
Http://opendatacommunities.org/id/metropolitan-district-council/leeds,Leeds City Council,31/03/2018,Communities and Environment,Cleaner Neighbourhood Teams,Premises,Removal Of Workplace Waste,126,23/03/2018,1803-00366,0.00,110.00,R,Acumen Waste Services Ltd,No
Http://opendatacommunities.org/id/metropolitan-district-council/leeds,Leeds City Council,31/03/2018,Communities and Environment,Cleaner Neighbourhood Teams,Premises,Removal Of Workplace Waste,126,23/03/2018,1803-00367,0.00,110.00,R,Acumen Waste Services Ltd,No
Http://opendatacommunities.org/id/metropolitan-district-council/leeds,Leeds City Council,31/03/2018,Communities and Environment,Cleaner Neighbourhood Teams,Premises,Removal Of Workplace Waste,126,23/03/2018,1803-00368,0.00,110.00,R,Acumen Waste Services Ltd,No
Http://opendatacommunities.org/id/metropolitan-district-council/leeds,Leeds City Council,31/03/2018,Communities and Environment,Cleaner Neighbourhood Teams,Premises,Removal Of Workplace Waste,126,23/03/2018,1803-00369,0.00,110.00,R,Acumen Waste Services Ltd,No
Http://opendatacommunities.org/id/metropolitan-district-council/leeds,Leeds City Council,31/03/2018,Communities and Environment,Cleaner Neighbourhood Teams,Premises,Removal Of Workplace Waste,126,23/03/2018,1803-00370,0.00,110.00,R,Acumen Waste Services Ltd,No
Http://opendatacommunities.org/id/metropolitan-district-council/leeds,Leeds City Council,31/03/2018,Communities and Environment,Waste Management,Supplies and Services,Recycling & Reuse Charges,234,28/03/2018,1803-00371,0.00,6675.21,R,Acumen Waste Services Ltd,No
Http://opendatacommunities.org/id/metropolitan-district-council/leeds,Leeds City Council,31/03/2018,Communities and Environment,Waste Management,Supplies and Services,Recycling & Reuse Charges,234,29/03/2018,1803-00372,0.00,2854.87,R,Acumen Waste Services Ltd,No
Http://opendatacommunities.org/id/metropolitan-district-council/leeds,Leeds City Council,31/03/2018,Resources and Housing,Shared Services,Supplies and Services,Other Hired And Contracted Services,265,02/03/2018,1803-00373,0.00,67.38,R,Ad3 Envelope Printers Limited,No
Http://opendatacommunities.org/id/metropolitan-district-council/leeds,Leeds City Council,31/03/2018,Resources and Housing,Shared Services,Supplies and Services,Operational Materials,205,02/03/2018,1803-00374,0.00,645.00,R,Ad3 Envelope Printers Limited,No
Http://opendatacommunities.org/id/metropolitan-district-council/leeds,Leeds City Council,31/03/2018,Resources and Housing,Shared Services,Supplies and Services,Operational Materials,205,23/03/2018,1803-00375,0.00,645.00,R,Ad3 Envelope Printers Limited,No
Http://opendatacommunities.org/id/metropolitan-district-council/leeds,Leeds City Council,31/03/2018,City Development,Libraries  Arts & Heritage,Supplies and Services,Office Consumables,210,29/03/2018,1803-00376,0.00,898.00,R,Adare Sec Limited,No
Http://opendatacommunities.org/id/metropolitan-district-council/leeds,Leeds City Council,31/03/2018,Adults and Health,Services For Older People - 65 And Over,Third Party Payments,Nursing Home,570,07/03/2018,1803-00377,0.00,3786.24,R,Adbolton Hall,No
Http://opendatacommunities.org/id/metropolitan-district-council/leeds,Leeds City Council,31/03/2018,Resources and Housing,Sustainable Energy & Climate Change,Capital,Other Costs,7,02/03/2018,1803-00378,0.00,2816.48,C,Addleshaw Goddard Llp,No
Http://opendatacommunities.org/id/metropolitan-district-council/leeds,Leeds City Council,31/03/2018,Communities and Environment,Parks and Countryside,Supplies and Services,Other Hired And Contracted Services,265,20/03/2018,1803-00379,0.00,6776.00,R,Addlestone & Partners,No
Http://opendatacommunities.org/id/metropolitan-district-council/leeds,Leeds City Council,31/03/2018,Resources and Housing,Technology  ,Employees,Agency Staff,8,21/02/2018,1803-00380,0.00,56901.73,R,Adecco Alfred Marks,Yes
Http://opendatacommunities.org/id/metropolitan-district-council/leeds,Leeds City Council,31/03/2018,Communities and Environment,Elections  Licensing and Registration,Income,Admissions  Booking Fees & Ticket Sales,933,08/03/2018,1803-00381,0.00,25.00,R,REDACTED PERSONAL DATA,No
Http://opendatacommunities.org/id/metropolitan-district-council/leeds,Leeds City Council,31/03/2018,Strategic Accounts,Miscellaneous,Supplies and Services,Non-Recurring Grants,227,19/03/2018,1803-00382,0.00,4000.00,R,Adel Neighbourhood Forum,No
Http://opendatacommunities.org/id/metropolitan-district-council/leeds,Leeds City Council,31/03/2018,Strategic Accounts,Miscellaneous,Supplies and Services,Non-Recurring Grants,227,19/03/2018,1803-00383,0.00,100.00,R,Adel Parochial Church Council,No
Http://opendatacommunities.org/id/metropolitan-district-council/leeds,Leeds City Council,31/03/2018,Children and Families,Safeguarding Targeted & Specialist,Third Party Payments,Services Rendered By Voluntary Sector,505,16/03/2018,1803-00384,0.00,8454.60,R,Adel Pre School,No
Http://opendatacommunities.org/id/metropolitan-district-council/leeds,Leeds City Council,31/03/2018,Strategic Accounts,Miscellaneous,Supplies and Services,Non-Recurring Grants,227,19/03/2018,1803-00385,0.00,5200.00,R,Adel War Memorial Association,No
Http://opendatacommunities.org/id/metropolitan-district-council/leeds,Leeds City Council,31/03/2018,Children and Families,Safeguarding Targeted & Specialist,Third Party Payments,Services Rendered By Other Organisations,511,16/03/2018,1803-00386,0.00,970.20,R,REDACTED PERSONAL DATA,No
Http://opendatacommunities.org/id/metropolitan-district-council/leeds,Leeds City Council,31/03/2018,Children and Families,Safeguarding Targeted & Specialist,Third Party Payments,Services Rendered By Other Organisations,511,16/03/2018,1803-00387,0.00,166.32,R,REDACTED PERSONAL DATA,No
Http://opendatacommunities.org/id/metropolitan-district-council/leeds,Leeds City Council,31/03/2018,Children and Families,Safeguarding Targeted & Specialist,Third Party Payments,Services Rendered By Other Organisations,511,16/03/2018,1803-00388,0.00,579.60,R,Adele Thompson,No
Http://opendatacommunities.org/id/metropolitan-district-council/leeds,Leeds City Council,31/03/2018,Adults and Health,Services For Older People - 65 And Over,Third Party Payments,Nursing Home,570,07/03/2018,1803-00389,0.00,1157.68,R,Aden House,No
Http://opendatacommunities.org/id/metropolitan-district-council/leeds,Leeds City Council,31/03/2018,Resources and Housing,Leeds Building Services,Supplies and Services,Operational Materials,205,02/03/2018,1803-00390,0.00,1086.48,R,Adi Global,No
Http://opendatacommunities.org/id/metropolitan-district-council/leeds,Leeds City Council,31/03/2018,Resources and Housing,Leeds Building Services,Supplies and Services,Operational Materials,205,02/03/2018,1803-00391,0.00,49.68,R,Adi Global,No
Http://opendatacommunities.org/id/metropolitan-district-council/leeds,Leeds City Council,31/03/2018,Resources and Housing,Leeds Building Services,Supplies and Services,Operational Materials,205,02/03/2018,1803-00392,0.00,1322.04,R,Adi Global,No
Http://opendatacommunities.org/id/metropolitan-district-council/leeds,Leeds City Council,31/03/2018,Resources and Housing,Leeds Building Services,Supplies and Services,Operational Materials,205,02/03/2018,1803-00393,0.00,924.82,R,Adi Global,No
Http://opendatacommunities.org/id/metropolitan-district-council/leeds,Leeds City Council,31/03/2018,Resources and Housing,Leeds Building Services,Supplies and Services,Operational Materials,205,02/03/2018,1803-00394,0.00,30.60,R,Adi Global,No
Http://opendatacommunities.org/id/metropolitan-district-council/leeds,Leeds City Council,31/03/2018,Resources and Housing,Leeds Building Services,Supplies and Services,Operational Materials,205,02/03/2018,1803-00395,0.00,18.88,R,Adi Global,No
Http://opendatacommunities.org/id/metropolitan-district-council/leeds,Leeds City Council,31/03/2018,Resources and Housing,Leeds Building Services,Supplies and Services,Operational Materials,205,02/03/2018,1803-00396,0.00,131.82,R,Adi Global,No
Http://opendatacommunities.org/id/metropolitan-district-council/leeds,Leeds City Council,31/03/2018,Resources and Housing,Leeds Building Services,Supplies and Services,Operational Materials,205,02/03/2018,1803-00397,0.00,1538.68,R,Adi Global,No
Http://opendatacommunities.org/id/metropolitan-district-council/leeds,Leeds City Council,31/03/2018,Resources and Housing,Leeds Building Services,Supplies and Services,Operational Materials,205,02/03/2018,1803-00398,0.00,87.65,R,Adi Global,No
Http://opendatacommunities.org/id/metropolitan-district-council/leeds,Leeds City Council,31/03/2018,Resources and Housing,Leeds Building Services,Supplies and Services,Operational Materials,205,02/03/2018,1803-00399,0.00,84.85,R,Adi Global,No
Http://opendatacommunities.org/id/metropolitan-district-council/leeds,Leeds City Council,31/03/2018,Resources and Housing,Leeds Building Services,Supplies and Services,Operational Materials,205,02/03/2018,1803-00400,0.00,738.59,R,Adi Global,No
Http://opendatacommunities.org/id/metropolitan-district-council/leeds,Leeds City Council,31/03/2018,Resources and Housing,Leeds Building Services,Supplies and Services,Operational Materials,205,06/03/2018,1803-00401,0.00,436.57,R,Adi Global,No
Http://opendatacommunities.org/id/metropolitan-district-council/leeds,Leeds City Council,31/03/2018,Resources and Housing,Leeds Building Services,Supplies and Services,Operational Materials,205,06/03/2018,1803-00402,0.00,837.45,R,Adi Global,No
Http://opendatacommunities.org/id/metropolitan-district-council/leeds,Leeds City Council,31/03/2018,Resources and Housing,Leeds Building Services,Supplies and Services,Operational Materials,205,09/03/2018,1803-00403,0.00,99.06,R,Adi Global,No
Http://opendatacommunities.org/id/metropolitan-district-council/leeds,Leeds City Council,31/03/2018,Resources and Housing,Leeds Building Services,Supplies and Services,Operational Materials,205,09/03/2018,1803-00404,0.00,355.24,R,Adi Global,No
Http://opendatacommunities.org/id/metropolitan-district-council/leeds,Leeds City Council,31/03/2018,Insurance,Insurance,Supplies and Services,Insurance Claims,248,01/03/2018,1803-00405,0.00,6801.20,R,Admiral Insurance,No
Http://opendatacommunities.org/id/metropolitan-district-council/leeds,Leeds City Council,31/03/2018,Resources and Housing,Strategy And Improvement  ,Supplies and Services,Computer Software & Equipment,214,17/02/2018,1803-00406,0.00,496.94,R,Adobe Systems Software,Yes
Http://opendatacommunities.org/id/metropolitan-district-council/leeds,Leeds City Council,31/03/2018,Children and Families,Safeguarding Targeted & Specialist,Third Party Payments,Independent Fostering Agencies,509,26/03/2018,1803-00407,0.00,2945.00,R,Adolescent And Childrens Trust,No
Http://opendatacommunities.org/id/metropolitan-district-council/leeds,Leeds City Council,31/03/2018,Children and Families,Safeguarding Targeted & Specialist,Third Party Payments,Independent Fostering Agencies,509,26/03/2018,1803-00408,0.00,2945.00,R,Adolescent And Childrens Trust,No
Http://opendatacommunities.org/id/metropolitan-district-council/leeds,Leeds City Council,31/03/2018,Children and Families,Safeguarding Targeted & Specialist,Third Party Payments,Independent Fostering Agencies,509,26/03/2018,1803-00409,0.00,2945.00,R,Adolescent And Childrens Trust,No
Http://opendatacommunities.org/id/metropolitan-district-council/leeds,Leeds City Council,31/03/2018,Children and Families,Safeguarding Targeted & Specialist,Third Party Payments,Independent Fostering Agencies,509,26/03/2018,1803-00410,0.00,2945.00,R,Adolescent And Childrens Trust,No
Http://opendatacommunities.org/id/metropolitan-district-council/leeds,Leeds City Council as Accountable Body,31/03/2018,Social Services Pooled Budgets,Jcs For People With Learning Disabilitie,Third Party Payments,Residential,580,08/03/2018,1803-00411,0.00,2609.36,R,Adrian House,No
Http://opendatacommunities.org/id/metropolitan-district-council/leeds,Leeds City Council,31/03/2018,Resources and Housing,Facilities Management  ,Supplies and Services,Other Hired And Contracted Services,265,27/02/2018,1803-00412,0.00,702.99,R,Adt Aberdeen Cc,Yes
Http://opendatacommunities.org/id/metropolitan-district-council/leeds,Leeds City Council,31/03/2018,Resources and Housing,Corporate Property Management,Premises,Maintenance Of Buildings,101,07/03/2018,1803-00413,0.00,711.47,R,Adt Fire And Security Plc,No
Http://opendatacommunities.org/id/metropolitan-district-council/leeds,Leeds City Council,31/03/2018,Resources and Housing,Corporate Property Management,Premises,Maintenance Of Buildings,101,07/03/2018,1803-00414,0.00,-293.53,R,Adt Fire And Security Plc,No
Http://opendatacommunities.org/id/metropolitan-district-council/leeds,Leeds City Council,31/03/2018,Strategic Landlord,Housing Management,Premises,Premises Security Services,162,29/03/2018,1803-00415,0.00,280.00,R,Adt Fire And Security Plc,No
Http://opendatacommunities.org/id/metropolitan-district-council/leeds,Leeds City Council,31/03/2018,Strategic Landlord,Housing Management,Premises,Premises Security Services,162,29/03/2018,1803-00416,0.00,516.49,R,Adt Fire And Security Plc,No
Http://opendatacommunities.org/id/metropolitan-district-council/leeds,Leeds City Council,31/03/2018,Strategic Landlord,Housing Management,Premises,Premises Security Services,162,29/03/2018,1803-00417,0.00,142.20,R,Adt Fire And Security Plc,No
Http://opendatacommunities.org/id/metropolitan-district-council/leeds,Leeds City Council,31/03/2018,Resources and Housing,Facilities Management  ,Supplies and Services,Other Hired And Contracted Services,265,15/02/2018,1803-00418,0.00,394.10,R,Adt Leeds Cc,Yes
Http://opendatacommunities.org/id/metropolitan-district-council/leeds,Leeds City Council as Accountable Body,31/03/2018,Social Services Pooled Budgets,Jcs For People With Learning Disabilitie,Third Party Payments,Sheltered Accommodation,569,09/03/2018,1803-00419,0.00,197.73,R,Adult Placement Services,No
Http://opendatacommunities.org/id/metropolitan-district-council/leeds,Leeds City Council as Accountable Body,31/03/2018,Social Services Pooled Budgets,Jcs For People With Learning Disabilitie,Third Party Payments,Sheltered Accommodation,569,13/03/2018,1803-00420,0.00,263.83,R,Adult Placement Services,No
Http://opendatacommunities.org/id/metropolitan-district-council/leeds,Leeds City Council,31/03/2018,City Development,Libraries  Arts & Heritage,Supplies and Services,External Audit Fees,261,16/03/2018,1803-00421,0.00,90.00,R,Advance Stocks Ltd,No
Http://opendatacommunities.org/id/metropolitan-district-council/leeds,Leeds City Council,31/03/2018,City Development,Libraries  Arts & Heritage,Supplies and Services,External Audit Fees,261,23/03/2018,1803-00422,0.00,90.00,R,Advance Stocks Ltd,No
Http://opendatacommunities.org/id/metropolitan-district-council/leeds,Leeds City Council,31/03/2018,City Development,Recreation,Supplies and Services,External Audit Fees,261,23/03/2018,1803-00423,0.00,130.00,R,Advance Stocks Ltd,No
Http://opendatacommunities.org/id/metropolitan-district-council/leeds,Leeds City Council,31/03/2018,City Development,Recreation,Supplies and Services,External Audit Fees,261,23/03/2018,1803-00424,0.00,85.00,R,Advance Stocks Ltd,No
Http://opendatacommunities.org/id/metropolitan-district-council/leeds,Leeds City Council,31/03/2018,Resources and Housing,Leeds Building Services,Supplies and Services,Other Hired And Contracted Services,265,16/03/2018,1803-00425,0.00,3515.25,R,Advanced Diesel Engineering,No
Http://opendatacommunities.org/id/metropolitan-district-council/leeds,Leeds City Council,31/03/2018,City Development,Libraries  Arts & Heritage,Supplies and Services,Other Hired And Contracted Services,265,22/03/2018,1803-00426,0.00,850.00,R,Adverse Camber Productions,No
Http://opendatacommunities.org/id/metropolitan-district-council/leeds,Leeds City Council as Accountable Body,31/03/2018,Social Services Pooled Budgets,Jcs For People With Learning Disabilitie,Third Party Payments,Day Centre,564,09/03/2018,1803-00427,0.00,492.05,R,Advitam Ltd,No
Http://opendatacommunities.org/id/metropolitan-district-council/leeds,Leeds City Council,31/03/2018,Adults and Health,Services For Older People - 65 And Over,Third Party Payments,Payments To Voluntary Organisations,561,08/03/2018,1803-00428,0.00,83435.70,R,Advonet,No
Http://opendatacommunities.org/id/metropolitan-district-council/leeds,Leeds City Council,31/03/2018,Adults and Health,Services For Older People - 65 And Over,Third Party Payments,Payments To Voluntary Organisations,561,09/03/2018,1803-00429,0.00,83435.70,R,Advonet,No
Http://opendatacommunities.org/id/metropolitan-district-council/leeds,Leeds City Council,31/03/2018,Adults and Health,Services For Adults Under 65 Mental/Dis,Third Party Payments,Payments To Voluntary Organisations,561,20/03/2018,1803-00430,0.00,10671.30,R,Advonet,No
Http://opendatacommunities.org/id/metropolitan-district-council/leeds,Leeds City Council,31/03/2018,Adults and Health,Services For Adults Under 65 Mental/Dis,Third Party Payments,Payments To Voluntary Organisations,561,20/03/2018,1803-00431,0.00,571.41,R,Advonet,No
Http://opendatacommunities.org/id/metropolitan-district-council/leeds,Leeds City Council,31/03/2018,Adults and Health,Services For Adults Under 65 Mental/Dis,Third Party Payments,Payments To Voluntary Organisations,561,22/03/2018,1803-00432,0.00,16711.60,R,Advonet,No
Http://opendatacommunities.org/id/metropolitan-district-council/leeds,Leeds City Council,31/03/2018,City Development,Highways,Capital,Other Costs,7,14/03/2018,1803-00433,0.00,16143.82,C,Aecom Limited,No
Http://opendatacommunities.org/id/metropolitan-district-council/leeds,Leeds City Council,31/03/2018,Adults and Health,Services For Older People Under 65 P/Dis,Third Party Payments,Home Care,568,01/03/2018,1803-00434,0.00,223.72,R,Affinity Trust,No
Http://opendatacommunities.org/id/metropolitan-district-council/leeds,Leeds City Council as Accountable Body,31/03/2018,Social Services Pooled Budgets,Jcs For People With Learning Disabilitie,Third Party Payments,Day Centre,564,01/03/2018,1803-00435,0.00,1147.50,R,Affinity Trust,No
Http://opendatacommunities.org/id/metropolitan-district-council/leeds,Leeds City Council as Accountable Body,31/03/2018,Social Services Pooled Budgets,Jcs For People With Learning Disabilitie,Third Party Payments,Day Centre,564,01/03/2018,1803-00436,0.00,690.66,R,Affinity Trust,No
Http://opendatacommunities.org/id/metropolitan-district-council/leeds,Leeds City Council as Accountable Body,31/03/2018,Social Services Pooled Budgets,Jcs For People With Learning Disabilitie,Third Party Payments,Home Care,568,01/03/2018,1803-00437,0.00,347.31,R,Affinity Trust,No
Http://opendatacommunities.org/id/metropolitan-district-council/leeds,Leeds City Council as Accountable Body,31/03/2018,Social Services Pooled Budgets,Jcs For People With Learning Disabilitie,Third Party Payments,Home Care,568,01/03/2018,1803-00438,0.00,735.66,R,Affinity Trust,No
Http://opendatacommunities.org/id/metropolitan-district-council/leeds,Leeds City Council as Accountable Body,31/03/2018,Social Services Pooled Budgets,Jcs For People With Learning Disabilitie,Third Party Payments,Home Care,568,01/03/2018,1803-00439,0.00,2816.10,R,Affinity Trust,No
Http://opendatacommunities.org/id/metropolitan-district-council/leeds,Leeds City Council as Accountable Body,31/03/2018,Social Services Pooled Budgets,Jcs For People With Learning Disabilitie,Third Party Payments,Day Centre,564,01/03/2018,1803-00440,0.00,804.48,R,Affinity Trust,No
Http://opendatacommunities.org/id/metropolitan-district-council/leeds,Leeds City Council as Accountable Body,31/03/2018,Social Services Pooled Budgets,Jcs For People With Learning Disabilitie,Third Party Payments,Home Care,568,01/03/2018,1803-00441,0.00,358.91,R,Affinity Trust,No
Http://opendatacommunities.org/id/metropolitan-district-council/leeds,Leeds City Council as Accountable Body,31/03/2018,Social Services Pooled Budgets,Jcs For People With Learning Disabilitie,Third Party Payments,Day Centre,564,01/03/2018,1803-00442,0.00,2884.17,R,Affinity Trust,No
Http://opendatacommunities.org/id/metropolitan-district-council/leeds,Leeds City Council as Accountable Body,31/03/2018,Social Services Pooled Budgets,Jcs For People With Learning Disabilitie,Third Party Payments,Home Care,568,01/03/2018,1803-00443,0.00,553.08,R,Affinity Trust,No
Http://opendatacommunities.org/id/metropolitan-district-council/leeds,Leeds City Council as Accountable Body,31/03/2018,Social Services Pooled Budgets,Jcs For People With Learning Disabilitie,Third Party Payments,Home Care,568,01/03/2018,1803-00444,0.00,877.68,R,Affinity Trust,No
Http://opendatacommunities.org/id/metropolitan-district-council/leeds,Leeds City Council as Accountable Body,31/03/2018,Social Services Pooled Budgets,Jcs For People With Learning Disabilitie,Third Party Payments,Home Care,568,01/03/2018,1803-00445,0.00,1200.33,R,Affinity Trust,No
Http://opendatacommunities.org/id/metropolitan-district-council/leeds,Leeds City Council as Accountable Body,31/03/2018,Social Services Pooled Budgets,Jcs For People With Learning Disabilitie,Third Party Payments,Home Care,568,01/03/2018,1803-00446,0.00,838.00,R,Affinity Trust,No
Http://opendatacommunities.org/id/metropolitan-district-council/leeds,Leeds City Council as Accountable Body,31/03/2018,Social Services Pooled Budgets,Jcs For People With Learning Disabilitie,Third Party Payments,Home Care,568,01/03/2018,1803-00447,0.00,270.00,R,Affinity Trust,No
Http://opendatacommunities.org/id/metropolitan-district-council/leeds,Leeds City Council as Accountable Body,31/03/2018,Social Services Pooled Budgets,Jcs For People With Learning Disabilitie,Third Party Payments,Day Centre,564,01/03/2018,1803-00448,0.00,536.09,R,Affinity Trust,No
Http://opendatacommunities.org/id/metropolitan-district-council/leeds,Leeds City Council as Accountable Body,31/03/2018,Social Services Pooled Budgets,Jcs For People With Learning Disabilitie,Third Party Payments,Home Care,568,05/03/2018,1803-00449,0.00,958.80,R,Affinity Trust,No
Http://opendatacommunities.org/id/metropolitan-district-council/leeds,Leeds City Council as Accountable Body,31/03/2018,Social Services Pooled Budgets,Jcs For People With Learning Disabilitie,Third Party Payments,Home Care,568,05/03/2018,1803-00450,0.00,1342.32,R,Affinity Trust,No
Http://opendatacommunities.org/id/metropolitan-district-council/leeds,Leeds City Council as Accountable Body,31/03/2018,Social Services Pooled Budgets,Jcs For People With Learning Disabilitie,Third Party Payments,Home Care,568,05/03/2018,1803-00451,0.00,383.52,R,Affinity Trust,No
Http://opendatacommunities.org/id/metropolitan-district-council/leeds,Leeds City Council as Accountable Body,31/03/2018,Social Services Pooled Budgets,Jcs For People With Learning Disabilitie,Third Party Payments,Home Care,568,05/03/2018,1803-00452,0.00,620.50,R,Affinity Trust,No
Http://opendatacommunities.org/id/metropolitan-district-council/leeds,Leeds City Council as Accountable Body,31/03/2018,Social Services Pooled Budgets,Jcs For People With Learning Disabilitie,Third Party Payments,Day Centre,564,05/03/2018,1803-00453,0.00,416.64,R,Affinity Trust,No
Http://opendatacommunities.org/id/metropolitan-district-council/leeds,Leeds City Council as Accountable Body,31/03/2018,Social Services Pooled Budgets,Jcs For People With Learning Disabilitie,Third Party Payments,Home Care,568,05/03/2018,1803-00454,0.00,1072.50,R,Affinity Trust,No
Http://opendatacommunities.org/id/metropolitan-district-council/leeds,Leeds City Council as Accountable Body,31/03/2018,Social Services Pooled Budgets,Jcs For People With Learning Disabilitie,Third Party Payments,Home Care,568,05/03/2018,1803-00455,0.00,1211.04,R,Affinity Trust,No
Http://opendatacommunities.org/id/metropolitan-district-council/leeds,Leeds City Council as Accountable Body,31/03/2018,Social Services Pooled Budgets,Jcs For People With Learning Disabilitie,Third Party Payments,Home Care,568,05/03/2018,1803-00456,0.00,2476.90,R,Affinity Trust,No
Http://opendatacommunities.org/id/metropolitan-district-council/leeds,Leeds City Council as Accountable Body,31/03/2018,Social Services Pooled Budgets,Jcs For People With Learning Disabilitie,Third Party Payments,Home Care,568,05/03/2018,1803-00457,0.00,191.76,R,Affinity Trust,No
Http://opendatacommunities.org/id/metropolitan-district-council/leeds,Leeds City Council as Accountable Body,31/03/2018,Social Services Pooled Budgets,Jcs For People With Learning Disabilitie,Third Party Payments,Home Care,568,05/03/2018,1803-00458,0.00,639.20,R,Affinity Trust,No
Http://opendatacommunities.org/id/metropolitan-district-council/leeds,Leeds City Council as Accountable Body,31/03/2018,Social Services Pooled Budgets,Jcs For People With Learning Disabilitie,Third Party Payments,Home Care,568,05/03/2018,1803-00459,0.00,408.00,R,Affinity Trust,No
Http://opendatacommunities.org/id/metropolitan-district-council/leeds,Leeds City Council as Accountable Body,31/03/2018,Social Services Pooled Budgets,Jcs For People With Learning Disabilitie,Third Party Payments,Home Care,568,05/03/2018,1803-00460,0.00,1086.64,R,Affinity Trust,No
Http://opendatacommunities.org/id/metropolitan-district-council/leeds,Leeds City Council as Accountable Body,31/03/2018,Social Services Pooled Budgets,Jcs For People With Learning Disabilitie,Third Party Payments,Home Care,568,05/03/2018,1803-00461,0.00,2684.64,R,Affinity Trust,No
Http://opendatacommunities.org/id/metropolitan-district-council/leeds,Leeds City Council as Accountable Body,31/03/2018,Social Services Pooled Budgets,Jcs For People With Learning Disabilitie,Third Party Payments,Home Care,568,05/03/2018,1803-00462,0.00,204.32,R,Affinity Trust,No
Http://opendatacommunities.org/id/metropolitan-district-council/leeds,Leeds City Council as Accountable Body,31/03/2018,Social Services Pooled Budgets,Jcs For People With Learning Disabilitie,Third Party Payments,Home Care,568,05/03/2018,1803-00463,0.00,941.92,R,Affinity Trust,No
Http://opendatacommunities.org/id/metropolitan-district-council/leeds,Leeds City Council as Accountable Body,31/03/2018,Social Services Pooled Budgets,Jcs For People With Learning Disabilitie,Third Party Payments,Home Care,568,05/03/2018,1803-00464,0.00,255.68,R,Affinity Trust,No
Http://opendatacommunities.org/id/metropolitan-district-council/leeds,Leeds City Council as Accountable Body,31/03/2018,Social Services Pooled Budgets,Jcs For People With Learning Disabilitie,Third Party Payments,Home Care,568,05/03/2018,1803-00465,0.00,958.80,R,Affinity Trust,No
Http://opendatacommunities.org/id/metropolitan-district-council/leeds,Leeds City Council as Accountable Body,31/03/2018,Social Services Pooled Budgets,Jcs For People With Learning Disabilitie,Third Party Payments,Home Care,568,05/03/2018,1803-00466,0.00,383.52,R,Affinity Trust,No
Http://opendatacommunities.org/id/metropolitan-district-council/leeds,Leeds City Council,31/03/2018,Resources and Housing,Shared Services,Supplies and Services,Licences,266,22/03/2018,1803-00467,0.00,-1546.44,R,Affinity Trust,No
Http://opendatacommunities.org/id/metropolitan-district-council/leeds,Leeds City Council as Accountable Body,31/03/2018,Social Services Pooled Budgets,Jcs For People With Learning Disabilitie,Third Party Payments,Home Care,568,22/03/2018,1803-00468,0.00,862.92,R,Affinity Trust,No
Http://opendatacommunities.org/id/metropolitan-district-council/leeds,Leeds City Council,31/03/2018,Adults and Health,Services For Adults Under 65 Mental/Dis,Third Party Payments,Home Care,568,22/03/2018,1803-00469,0.00,95.88,R,Affinity Trust,No
Http://opendatacommunities.org/id/metropolitan-district-council/leeds,Leeds City Council,31/03/2018,Adults and Health,Services For Older People - 65 And Over,Third Party Payments,Home Care,568,22/03/2018,1803-00470,0.00,1587.84,R,Affinity Trust,No
Http://opendatacommunities.org/id/metropolitan-district-council/leeds,Leeds City Council,31/03/2018,Adults and Health,Services For Older People Under 65 P/Dis,Third Party Payments,Home Care,568,22/03/2018,1803-00471,0.00,1494.13,R,Affinity Trust,No
Http://opendatacommunities.org/id/metropolitan-district-council/leeds,Leeds City Council as Accountable Body,31/03/2018,Social Services Pooled Budgets,Jcs For People With Learning Disabilitie,Third Party Payments,Home Care,568,22/03/2018,1803-00472,0.00,407.49,R,Affinity Trust,No
Http://opendatacommunities.org/id/metropolitan-district-council/leeds,Leeds City Council as Accountable Body,31/03/2018,Social Services Pooled Budgets,Jcs For People With Learning Disabilitie,Third Party Payments,Day Centre,564,22/03/2018,1803-00473,0.00,1440.00,R,Affinity Trust,No
Http://opendatacommunities.org/id/metropolitan-district-council/leeds,Leeds City Council as Accountable Body,31/03/2018,Social Services Pooled Budgets,Jcs For People With Learning Disabilitie,Third Party Payments,Day Centre,564,22/03/2018,1803-00474,0.00,1035.99,R,Affinity Trust,No
Http://opendatacommunities.org/id/metropolitan-district-council/leeds,Leeds City Council as Accountable Body,31/03/2018,Social Services Pooled Budgets,Jcs For People With Learning Disabilitie,Third Party Payments,Home Care,568,22/03/2018,1803-00475,0.00,1050.00,R,Affinity Trust,No
Http://opendatacommunities.org/id/metropolitan-district-council/leeds,Leeds City Council as Accountable Body,31/03/2018,Social Services Pooled Budgets,Jcs For People With Learning Disabilitie,Third Party Payments,Home Care,568,22/03/2018,1803-00476,0.00,439.29,R,Affinity Trust,No
Http://opendatacommunities.org/id/metropolitan-district-council/leeds,Leeds City Council as Accountable Body,31/03/2018,Social Services Pooled Budgets,Jcs For People With Learning Disabilitie,Third Party Payments,Home Care,568,22/03/2018,1803-00477,0.00,1560.00,R,Affinity Trust,No
Http://opendatacommunities.org/id/metropolitan-district-council/leeds,Leeds City Council as Accountable Body,31/03/2018,Social Services Pooled Budgets,Jcs For People With Learning Disabilitie,Third Party Payments,Home Care,568,22/03/2018,1803-00478,0.00,2752.80,R,Affinity Trust,No
Http://opendatacommunities.org/id/metropolitan-district-council/leeds,Leeds City Council as Accountable Body,31/03/2018,Social Services Pooled Budgets,Jcs For People With Learning Disabilitie,Third Party Payments,Home Care,568,22/03/2018,1803-00479,0.00,1811.70,R,Affinity Trust,No
Http://opendatacommunities.org/id/metropolitan-district-council/leeds,Leeds City Council as Accountable Body,31/03/2018,Social Services Pooled Budgets,Jcs For People With Learning Disabilitie,Third Party Payments,Day Centre,564,22/03/2018,1803-00480,0.00,1065.33,R,Affinity Trust,No
Http://opendatacommunities.org/id/metropolitan-district-council/leeds,Leeds City Council as Accountable Body,31/03/2018,Social Services Pooled Budgets,Jcs For People With Learning Disabilitie,Third Party Payments,Home Care,568,22/03/2018,1803-00481,0.00,3446.80,R,Affinity Trust,No
Http://opendatacommunities.org/id/metropolitan-district-council/leeds,Leeds City Council as Accountable Body,31/03/2018,Social Services Pooled Budgets,Jcs For People With Learning Disabilitie,Third Party Payments,Day Centre,564,22/03/2018,1803-00482,0.00,938.56,R,Affinity Trust,No
Http://opendatacommunities.org/id/metropolitan-district-council/leeds,Leeds City Council as Accountable Body,31/03/2018,Social Services Pooled Budgets,Jcs For People With Learning Disabilitie,Third Party Payments,Home Care,568,22/03/2018,1803-00483,0.00,525.72,R,Affinity Trust,No
Http://opendatacommunities.org/id/metropolitan-district-council/leeds,Leeds City Council as Accountable Body,31/03/2018,Social Services Pooled Budgets,Jcs For People With Learning Disabilitie,Third Party Payments,Home Care,568,22/03/2018,1803-00484,0.00,804.48,R,Affinity Trust,No
Http://opendatacommunities.org/id/metropolitan-district-council/leeds,Leeds City Council as Accountable Body,31/03/2018,Social Services Pooled Budgets,Jcs For People With Learning Disabilitie,Third Party Payments,Home Care,568,22/03/2018,1803-00485,0.00,1458.17,R,Affinity Trust,No
Http://opendatacommunities.org/id/metropolitan-district-council/leeds,Leeds City Council as Accountable Body,31/03/2018,Social Services Pooled Budgets,Jcs For People With Learning Disabilitie,Third Party Payments,Home Care,568,22/03/2018,1803-00486,0.00,1726.65,R,Affinity Trust,No
Http://opendatacommunities.org/id/metropolitan-district-council/leeds,Leeds City Council as Accountable Body,31/03/2018,Social Services Pooled Budgets,Jcs For People With Learning Disabilitie,Third Party Payments,Home Care,568,22/03/2018,1803-00487,0.00,1005.60,R,Affinity Trust,No
Http://opendatacommunities.org/id/metropolitan-district-council/leeds,Leeds City Council as Accountable Body,31/03/2018,Social Services Pooled Budgets,Jcs For People With Learning Disabilitie,Third Party Payments,Home Care,568,22/03/2018,1803-00488,0.00,360.00,R,Affinity Trust,No
Http://opendatacommunities.org/id/metropolitan-district-council/leeds,Leeds City Council as Accountable Body,31/03/2018,Social Services Pooled Budgets,Jcs For People With Learning Disabilitie,Third Party Payments,Day Centre,564,22/03/2018,1803-00489,0.00,648.95,R,Affinity Trust,No
Http://opendatacommunities.org/id/metropolitan-district-council/leeds,Leeds City Council as Accountable Body,31/03/2018,Social Services Pooled Budgets,Jcs For People With Learning Disabilitie,Third Party Payments,Day Centre,564,22/03/2018,1803-00490,0.00,2346.40,R,Affinity Trust,No
Http://opendatacommunities.org/id/metropolitan-district-council/leeds,Leeds City Council as Accountable Body,31/03/2018,Social Services Pooled Budgets,Jcs For People With Learning Disabilitie,Third Party Payments,Day Centre,564,22/03/2018,1803-00491,0.00,1190.61,R,Affinity Trust,No
Http://opendatacommunities.org/id/metropolitan-district-council/leeds,Leeds City Council as Accountable Body,31/03/2018,Social Services Pooled Budgets,Jcs For People With Learning Disabilitie,Third Party Payments,Home Care,568,22/03/2018,1803-00492,0.00,1573.92,R,Affinity Trust,No
Http://opendatacommunities.org/id/metropolitan-district-council/leeds,Leeds City Council as Accountable Body,31/03/2018,Social Services Pooled Budgets,Jcs For People With Learning Disabilitie,Third Party Payments,Home Care,568,26/03/2018,1803-00493,0.00,127.84,R,Affinity Trust,No
Http://opendatacommunities.org/id/metropolitan-district-council/leeds,Leeds City Council,31/03/2018,Adults and Health,Services For Older People Under 65 P/Dis,Third Party Payments,Home Care,568,29/03/2018,1803-00494,0.00,319.60,R,Affinity Trust,No
Http://opendatacommunities.org/id/metropolitan-district-council/leeds,Leeds City Council,31/03/2018,Adults and Health,Assessment And Care Management,Third Party Payments,Home Care,568,29/03/2018,1803-00495,0.00,511.36,R,Affinity Trust,No
Http://opendatacommunities.org/id/metropolitan-district-council/leeds,Leeds City Council,31/03/2018,Adults and Health,Assessment And Care Management,Third Party Payments,Home Care,568,29/03/2018,1803-00496,0.00,511.36,R,Affinity Trust,No
Http://opendatacommunities.org/id/metropolitan-district-council/leeds,Leeds City Council as Accountable Body,31/03/2018,Social Services Pooled Budgets,Jcs For People With Learning Disabilitie,Third Party Payments,Day Centre,564,29/03/2018,1803-00497,0.00,3745.48,R,Affinity Trust,No
Http://opendatacommunities.org/id/metropolitan-district-council/leeds,Leeds City Council as Accountable Body,31/03/2018,Social Services Pooled Budgets,Jcs For People With Learning Disabilitie,Third Party Payments,Home Care,568,29/03/2018,1803-00498,0.00,1090.36,R,Affinity Trust,No
Http://opendatacommunities.org/id/metropolitan-district-council/leeds,Leeds City Council as Accountable Body,31/03/2018,Social Services Pooled Budgets,Jcs For People With Learning Disabilitie,Third Party Payments,Sheltered Accommodation,569,07/03/2018,1803-00499,0.00,129373.93,R,Affinity Trust North Divisional Office,No
Http://opendatacommunities.org/id/metropolitan-district-council/leeds,Leeds City Council,31/03/2018,Communities and Environment,Parks and Countryside,Transport,Hire Of Movable Plant & Machinery,315,06/03/2018,1803-00500,0.00,950.00,R,Afi-Uplift Limited,No
Http://opendatacommunities.org/id/metropolitan-district-council/leeds,Leeds City Council,31/03/2018,Communities and Environment,Parks and Countryside,Transport,Hire Of Movable Plant & Machinery,315,09/03/2018,1803-00501,0.00,950.00,R,Afi-Uplift Limited,No
Http://opendatacommunities.org/id/metropolitan-district-council/leeds,Leeds City Council,31/03/2018,Communities and Environment,Parks and Countryside,Transport,Hire Of Movable Plant & Machinery,315,09/03/2018,1803-00502,0.00,950.00,R,Afi-Uplift Limited,No
Http://opendatacommunities.org/id/metropolitan-district-council/leeds,Leeds City Council,31/03/2018,Communities and Environment,Parks and Countryside,Transport,Hire Of Movable Plant & Machinery,315,13/03/2018,1803-00503,0.00,950.00,R,Afi-Uplift Limited,No
Http://opendatacommunities.org/id/metropolitan-district-council/leeds,Leeds City Council,31/03/2018,Communities and Environment,Parks and Countryside,Transport,Hire Of Movable Plant & Machinery,315,20/03/2018,1803-00504,0.00,950.00,R,Afi-Uplift Limited,No
Http://opendatacommunities.org/id/metropolitan-district-council/leeds,Leeds City Council,31/03/2018,Communities and Environment,Parks and Countryside,Transport,Hire Of Movable Plant & Machinery,315,27/03/2018,1803-00505,0.00,950.00,R,Afi-Uplift Limited,No
Http://opendatacommunities.org/id/metropolitan-district-council/leeds,Leeds City Council,31/03/2018,City Development,Recreation,Supplies and Services,Other Hired And Contracted Services,265,01/03/2018,1803-00506,0.00,3209.86,R,Age Uk Leeds,No
Http://opendatacommunities.org/id/metropolitan-district-council/leeds,Leeds City Council,31/03/2018,City Development,Employment & Skills,Supplies and Services,College Contracts,276,16/03/2018,1803-00507,0.00,1505.73,R,Age Uk Leeds,No
Http://opendatacommunities.org/id/metropolitan-district-council/leeds,Leeds City Council,31/03/2018,City Development,Libraries  Arts & Heritage,Supplies and Services,Bought In Professional Services,277,29/03/2018,1803-00508,0.00,1000.00,R,Agere Learning,No
Http://opendatacommunities.org/id/metropolitan-district-council/leeds,Leeds City Council,31/03/2018,City Development,Libraries  Arts & Heritage,Supplies and Services,Non-Recurring Grants,227,01/03/2018,1803-00509,0.00,1000.00,R,Agnis Smallwood,No
Http://opendatacommunities.org/id/metropolitan-district-council/leeds,Leeds City Council,31/03/2018,Children and Families,Learning Skills & Universal,Supplies and Services,Teaching Materials,202,02/03/2018,1803-00510,0.00,35.96,R,Aid Training & Operations Ltd,No
Http://opendatacommunities.org/id/metropolitan-district-council/leeds,Leeds City Council,31/03/2018,Children and Families,Learning Skills & Universal,Supplies and Services,Teaching Materials,202,23/03/2018,1803-00511,0.00,33.46,R,Aid Training & Operations Ltd,No
Http://opendatacommunities.org/id/metropolitan-district-council/leeds,Leeds City Council as Accountable Body,31/03/2018,Social Services Pooled Budgets,Leeds Community Equip Store Pooled Budgt,Supplies and Services,Other Equipment,203,02/03/2018,1803-00512,0.00,256.50,R,Aidapt Bathrooms Ltd,No
Http://opendatacommunities.org/id/metropolitan-district-council/leeds,Leeds City Council as Accountable Body,31/03/2018,Social Services Pooled Budgets,Leeds Community Equip Store Pooled Budgt,Supplies and Services,Other Equipment,203,09/03/2018,1803-00513,0.00,245.50,R,Aidapt Bathrooms Ltd,No
Http://opendatacommunities.org/id/metropolitan-district-council/leeds,Leeds City Council as Accountable Body,31/03/2018,Social Services Pooled Budgets,Leeds Community Equip Store Pooled Budgt,Supplies and Services,Other Equipment,203,15/03/2018,1803-00514,0.00,-274.88,R,Aidapt Bathrooms Ltd,No
Http://opendatacommunities.org/id/metropolitan-district-council/leeds,Leeds City Council as Accountable Body,31/03/2018,Social Services Pooled Budgets,Leeds Community Equip Store Pooled Budgt,Supplies and Services,Other Equipment,203,15/03/2018,1803-00515,0.00,1194.55,R,Aidapt Bathrooms Ltd,No
Http://opendatacommunities.org/id/metropolitan-district-council/leeds,Leeds City Council as Accountable Body,31/03/2018,Social Services Pooled Budgets,Leeds Community Equip Store Pooled Budgt,Supplies and Services,Other Equipment,203,21/03/2018,1803-00516,0.00,509.80,R,Aidapt Bathrooms Ltd,No
Http://opendatacommunities.org/id/metropolitan-district-council/leeds,Leeds City Council as Accountable Body,31/03/2018,Social Services Pooled Budgets,Leeds Community Equip Store Pooled Budgt,Supplies and Services,Other Equipment,203,21/03/2018,1803-00517,0.00,704.30,R,Aidapt Bathrooms Ltd,No
Http://opendatacommunities.org/id/metropolitan-district-council/leeds,Leeds City Council as Accountable Body,31/03/2018,Social Services Pooled Budgets,Leeds Community Equip Store Pooled Budgt,Supplies and Services,Other Equipment,203,28/03/2018,1803-00518,0.00,1194.14,R,Aidapt Bathrooms Ltd,No
Http://opendatacommunities.org/id/metropolitan-district-council/leeds,Leeds City Council as Accountable Body,31/03/2018,Social Services Pooled Budgets,Leeds Community Equip Store Pooled Budgt,Supplies and Services,Other Equipment,203,29/03/2018,1803-00519,0.00,2109.20,R,Aidapt Bathrooms Ltd,No
Http://opendatacommunities.org/id/metropolitan-district-council/leeds,Leeds City Council,31/03/2018,Resources and Housing,Leeds Building Services,Supplies and Services,Operational Materials,205,01/03/2018,1803-00520,0.00,99.00,R,Air Conditioning Accessories,No
Http://opendatacommunities.org/id/metropolitan-district-council/leeds,Leeds City Council,31/03/2018,Resources and Housing,Leeds Building Services,Supplies and Services,Operational Materials,205,02/03/2018,1803-00521,0.00,90.57,R,Air Conditioning Accessories,No
Http://opendatacommunities.org/id/metropolitan-district-council/leeds,Leeds City Council,31/03/2018,Resources and Housing,Leeds Building Services,Supplies and Services,Operational Materials,205,02/03/2018,1803-00522,0.00,1490.97,R,Air Conditioning Accessories,No
Http://opendatacommunities.org/id/metropolitan-district-council/leeds,Leeds City Council,31/03/2018,Resources and Housing,Leeds Building Services,Supplies and Services,Operational Materials,205,02/03/2018,1803-00523,0.00,17.30,R,Air Conditioning Accessories,No
Http://opendatacommunities.org/id/metropolitan-district-council/leeds,Leeds City Council,31/03/2018,Resources and Housing,Leeds Building Services,Supplies and Services,Operational Materials,205,02/03/2018,1803-00524,0.00,129.00,R,Air Conditioning Accessories,No
Http://opendatacommunities.org/id/metropolitan-district-council/leeds,Leeds City Council,31/03/2018,Resources and Housing,Leeds Building Services,Supplies and Services,Operational Materials,205,09/03/2018,1803-00525,0.00,6.00,R,Air Conditioning Accessories,No
Http://opendatacommunities.org/id/metropolitan-district-council/leeds,Leeds City Council,31/03/2018,Resources and Housing,Leeds Building Services,Supplies and Services,Operational Materials,205,09/03/2018,1803-00526,0.00,160.00,R,Air Conditioning Accessories,No
Http://opendatacommunities.org/id/metropolitan-district-council/leeds,Leeds City Council,31/03/2018,Resources and Housing,Leeds Building Services,Supplies and Services,Operational Materials,205,09/03/2018,1803-00527,0.00,151.08,R,Air Conditioning Accessories,No
Http://opendatacommunities.org/id/metropolitan-district-council/leeds,Leeds City Council,31/03/2018,Resources and Housing,Leeds Building Services,Supplies and Services,Operational Materials,205,09/03/2018,1803-00528,0.00,129.55,R,Air Conditioning Accessories,No
Http://opendatacommunities.org/id/metropolitan-district-council/leeds,Leeds City Council,31/03/2018,Resources and Housing,Leeds Building Services,Supplies and Services,Operational Materials,205,09/03/2018,1803-00529,0.00,51.83,R,Air Conditioning Accessories,No
Http://opendatacommunities.org/id/metropolitan-district-council/leeds,Leeds City Council,31/03/2018,Resources and Housing,Leeds Building Services,Supplies and Services,Operational Materials,205,13/03/2018,1803-00530,0.00,213.53,R,Air Conditioning Accessories,No
Http://opendatacommunities.org/id/metropolitan-district-council/leeds,Leeds City Council,31/03/2018,Resources and Housing,Leeds Building Services,Supplies and Services,Operational Materials,205,16/03/2018,1803-00531,0.00,47.46,R,Air Conditioning Accessories,No
Http://opendatacommunities.org/id/metropolitan-district-council/leeds,Leeds City Council,31/03/2018,Resources and Housing,Leeds Building Services,Supplies and Services,Operational Materials,205,16/03/2018,1803-00532,0.00,13.60,R,Air Conditioning Accessories,No
Http://opendatacommunities.org/id/metropolitan-district-council/leeds,Leeds City Council,31/03/2018,Resources and Housing,Leeds Building Services,Supplies and Services,Operational Furniture And Equipment,203,27/03/2018,1803-00533,0.00,1989.62,R,Air Conditioning Accessories,No
Http://opendatacommunities.org/id/metropolitan-district-council/leeds,Leeds City Council,31/03/2018,Resources and Housing,Leeds Building Services,Supplies and Services,Operational Materials,205,27/03/2018,1803-00534,0.00,520.80,R,Air Conditioning Accessories,No
Http://opendatacommunities.org/id/metropolitan-district-council/leeds,Leeds City Council,31/03/2018,Resources and Housing,Leeds Building Services,Supplies and Services,Operational Materials,205,27/03/2018,1803-00535,0.00,2352.86,R,Air Conditioning Accessories,No
Http://opendatacommunities.org/id/metropolitan-district-council/leeds,Leeds City Council,31/03/2018,Resources and Housing,Leeds Building Services,Supplies and Services,Operational Materials,205,27/03/2018,1803-00536,0.00,2477.35,R,Air Conditioning Accessories,No
Http://opendatacommunities.org/id/metropolitan-district-council/leeds,Leeds City Council,31/03/2018,City Development,Libraries  Arts & Heritage  ,Supplies and Services,Operational Furniture And Equipment,203,19/02/2018,1803-00537,0.00,60.00,R,Air Force Pneumati,Yes
Http://opendatacommunities.org/id/metropolitan-district-council/leeds,Leeds City Council,31/03/2018,Resources and Housing,Leeds Building Services,Supplies and Services,Operational Materials,205,02/03/2018,1803-00538,0.00,181.10,R,Air Liquide Uk,No
Http://opendatacommunities.org/id/metropolitan-district-council/leeds,Leeds City Council,31/03/2018,Communities and Environment,Environmental Health,Supplies and Services,Other Hired And Contracted Services,265,02/03/2018,1803-00539,0.00,9.39,R,Air Liquide Uk,No
Http://opendatacommunities.org/id/metropolitan-district-council/leeds,Leeds City Council,31/03/2018,Communities and Environment,Environmental Health,Supplies and Services,Other Hired And Contracted Services,265,02/03/2018,1803-00540,0.00,75.12,R,Air Liquide Uk,No
Http://opendatacommunities.org/id/metropolitan-district-council/leeds,Leeds City Council,31/03/2018,Resources and Housing,Leeds Building Services,Supplies and Services,Operational Materials,205,09/03/2018,1803-00541,0.00,12.00,R,Air Liquide Uk,No
Http://opendatacommunities.org/id/metropolitan-district-council/leeds,Leeds City Council,31/03/2018,Communities and Environment,Environmental Health,Supplies and Services,Other Hired And Contracted Services,265,16/03/2018,1803-00542,0.00,14.31,R,Air Liquide Uk,No
Http://opendatacommunities.org/id/metropolitan-district-council/leeds,Leeds City Council,31/03/2018,Communities and Environment,Parks and Countryside,Supplies and Services,Operational Furniture And Equipment,203,08/03/2018,1803-00543,0.00,341.00,R,Air Solutions (Leeds) Ltd,No
Http://opendatacommunities.org/id/metropolitan-district-council/leeds,Leeds City Council,31/03/2018,Communities and Environment,Parks and Countryside,Supplies and Services,Other Hired And Contracted Services,265,12/03/2018,1803-00544,0.00,320.80,R,Air Solutions (Leeds) Ltd,No
Http://opendatacommunities.org/id/metropolitan-district-council/leeds,Leeds City Council,31/03/2018,Communities and Environment,Parks and Countryside,Supplies and Services,Other Hired And Contracted Services,265,12/03/2018,1803-00545,0.00,610.00,R,Air Solutions (Leeds) Ltd,No
Http://opendatacommunities.org/id/metropolitan-district-council/leeds,Leeds City Council,31/03/2018,Communities and Environment,Parks and Countryside,Supplies and Services,Other Hired And Contracted Services,265,02/03/2018,1803-00546,0.00,595.00,R,Aire Valley Tree Services Ltd,No
Http://opendatacommunities.org/id/metropolitan-district-council/leeds,Leeds City Council,31/03/2018,Communities and Environment,Parks and Countryside,Supplies and Services,Other Hired And Contracted Services,265,02/03/2018,1803-00547,0.00,325.00,R,Aire Valley Tree Services Ltd,No
Http://opendatacommunities.org/id/metropolitan-district-council/leeds,Leeds City Council,31/03/2018,Communities and Environment,Parks and Countryside,Supplies and Services,Other Hired And Contracted Services,265,02/03/2018,1803-00548,0.00,785.00,R,Aire Valley Tree Services Ltd,No
Http://opendatacommunities.org/id/metropolitan-district-council/leeds,Leeds City Council,31/03/2018,Adults and Health,Services For Older People - 65 And Over,Third Party Payments,Residential Care Dementia,571,07/03/2018,1803-00549,0.00,128270.30,R,Aire View Residential Home,No
Http://opendatacommunities.org/id/metropolitan-district-council/leeds,Leeds City Council,31/03/2018,Adults and Health,Services For Older People - 65 And Over,Third Party Payments,Residential,580,07/03/2018,1803-00550,0.00,32204.98,R,Aire View Residential Home,No
Http://opendatacommunities.org/id/metropolitan-district-council/leeds,Leeds City Council,31/03/2018,Strategic Accounts,Miscellaneous,Supplies and Services,Non-Recurring Grants,227,05/03/2018,1803-00551,0.00,245.53,R,Aireborough Supported Activities Scheme,No
Http://opendatacommunities.org/id/metropolitan-district-council/leeds,Leeds City Council,31/03/2018,Adults and Health,Services For Older People - 65 And Over,Third Party Payments,Residential Care Dementia,571,07/03/2018,1803-00552,0.00,9426.28,R,Airedale (Goldsborough),No
Http://opendatacommunities.org/id/metropolitan-district-council/leeds,Leeds City Council,31/03/2018,Adults and Health,Services For Older People - 65 And Over,Third Party Payments,Residential,580,07/03/2018,1803-00553,0.00,-107.01,R,Airedale (Goldsborough),No
Http://opendatacommunities.org/id/metropolitan-district-council/leeds,Leeds City Council,31/03/2018,Adults and Health,Services For Older People - 65 And Over,Third Party Payments,Residential Care Dementia,571,07/03/2018,1803-00554,0.00,5203.36,R,Airedale Care Home,No
Http://opendatacommunities.org/id/metropolitan-district-council/leeds,Leeds City Council,31/03/2018,Adults and Health,Services For Older People - 65 And Over,Third Party Payments,Residential,580,07/03/2018,1803-00555,0.00,22929.59,R,Airedale Care Home,No
Http://opendatacommunities.org/id/metropolitan-district-council/leeds,Leeds City Council,31/03/2018,Children and Families,Safeguarding Targeted & Specialist,Supplies and Services,Operational Furniture And Equipment,203,01/03/2018,1803-00556,0.00,4270.00,R,Airedale Catering Equipment Ltd,No
Http://opendatacommunities.org/id/metropolitan-district-council/leeds,Leeds City Council,31/03/2018,Adults and Health,Assessment And Care Management,Employees,Training Costs,71,14/03/2018,1803-00557,0.00,120.00,R,Airedale Community Trading (Act) Ltd,No
Http://opendatacommunities.org/id/metropolitan-district-council/leeds,Leeds City Council,31/03/2018,Resources and Housing,Commercial Services,Supplies and Services,Other Hired And Contracted Services,265,23/03/2018,1803-00558,0.00,495.00,R,Air-Weigh Europe Limited,No
Http://opendatacommunities.org/id/metropolitan-district-council/leeds,Leeds City Council,31/03/2018,Adults and Health,Services For Adults Under 65 Mental/Dis,Third Party Payments,Fees - Level 4,520,02/03/2018,1803-00559,0.00,175.00,R,Ait Mitra,No
Http://opendatacommunities.org/id/metropolitan-district-council/leeds,Leeds City Council,31/03/2018,Adults and Health,Services For Adults Under 65 Mental/Dis,Third Party Payments,Fees - Level 4,520,14/03/2018,1803-00560,0.00,175.00,R,Ait Mitra,No
Http://opendatacommunities.org/id/metropolitan-district-council/leeds,Leeds City Council,31/03/2018,Adults and Health,Services For Adults Under 65 Mental/Dis,Third Party Payments,Fees - Level 4,520,14/03/2018,1803-00561,0.00,175.00,R,Ait Mitra,No
Http://opendatacommunities.org/id/metropolitan-district-council/leeds,Leeds City Council,31/03/2018,Adults and Health,Services For Adults Under 65 Mental/Dis,Third Party Payments,Fees - Level 4,520,14/03/2018,1803-00562,0.00,175.00,R,Ait Mitra,No
Http://opendatacommunities.org/id/metropolitan-district-council/leeds,Leeds City Council,31/03/2018,Adults and Health,Services For Adults Under 65 Mental/Dis,Third Party Payments,Fees - Level 4,520,14/03/2018,1803-00563,0.00,211.00,R,Ait Mitra,No
Http://opendatacommunities.org/id/metropolitan-district-council/leeds,Leeds City Council as Accountable Body,31/03/2018,Social Services Pooled Budgets,Jcs For People With Learning Disabilitie,Third Party Payments,Residential,580,07/03/2018,1803-00564,0.00,6173.24,R,Aitch Care Homes,No
Http://opendatacommunities.org/id/metropolitan-district-council/leeds,Leeds City Council,31/03/2018,City Development,Recreation,Supplies and Services,Operational Materials,205,01/03/2018,1803-00565,0.00,70.55,R,Aitkens Sportsturf Ltd,No
Http://opendatacommunities.org/id/metropolitan-district-council/leeds,Leeds City Council,31/03/2018,Communities and Environment,Parks and Countryside,Supplies and Services,Operational Materials,205,29/03/2018,1803-00566,0.00,149.50,R,Aitkens Sportsturf Ltd,No
Http://opendatacommunities.org/id/metropolitan-district-council/leeds,Leeds City Council,31/03/2018,Resources and Housing,Commercial Services,Supplies and Services,Other Hired And Contracted Services,265,08/03/2018,1803-00567,0.00,600.00,R,REDACTED PERSONAL DATA,No
Http://opendatacommunities.org/id/metropolitan-district-council/leeds,Leeds City Council,31/03/2018,Adults and Health,Services For Older People Under 65 P/Dis,Third Party Payments,Home Care,568,09/03/2018,1803-00568,0.00,1036.87,R,Aj Community Care Ltd,No
Http://opendatacommunities.org/id/metropolitan-district-council/leeds,Leeds City Council,31/03/2018,Adults and Health,Services For Older People - 65 And Over,Third Party Payments,Home Care,568,09/03/2018,1803-00569,0.00,4213.86,R,Aj Community Care Ltd,No
Http://opendatacommunities.org/id/metropolitan-district-council/leeds,Leeds City Council,31/03/2018,Adults and Health,Services For Older People Under 65 P/Dis,Third Party Payments,Home Care,568,09/03/2018,1803-00570,0.00,5405.74,R,Aj Community Care Ltd,No
Http://opendatacommunities.org/id/metropolitan-district-council/leeds,Leeds City Council,31/03/2018,Adults and Health,Services For Older People - 65 And Over,Third Party Payments,Home Care,568,09/03/2018,1803-00571,0.00,14029.71,R,Aj Community Care Ltd,No
Http://opendatacommunities.org/id/metropolitan-district-council/leeds,Leeds City Council,31/03/2018,Adults and Health,Services For Older People - 65 And Over,Third Party Payments,Home Care,568,09/03/2018,1803-00572,0.00,48.56,R,Aj Community Care Ltd,No
Http://opendatacommunities.org/id/metropolitan-district-council/leeds,Leeds City Council,31/03/2018,Adults and Health,Services For Older People Under 65 P/Dis,Third Party Payments,Home Care,568,15/03/2018,1803-00573,0.00,24.89,R,Aj Community Care Ltd,No
Http://opendatacommunities.org/id/metropolitan-district-council/leeds,Leeds City Council,31/03/2018,Adults and Health,Services For Older People Under 65 P/Dis,Third Party Payments,Home Care,568,29/03/2018,1803-00574,0.00,24.89,R,Aj Community Care Ltd,No
Http://opendatacommunities.org/id/metropolitan-district-council/leeds,Leeds City Council,31/03/2018,Adults and Health,Services For Older People Under 65 P/Dis,Third Party Payments,Home Care,568,29/03/2018,1803-00575,0.00,24.89,R,Aj Community Care Ltd,No
Http://opendatacommunities.org/id/metropolitan-district-council/leeds,Leeds City Council,31/03/2018,City Development,Libraries  Arts & Heritage,Premises,Premises Security Services,162,21/03/2018,1803-00576,0.00,1267.00,R,Ajd Security,No
Http://opendatacommunities.org/id/metropolitan-district-council/leeds,Leeds City Council,31/03/2018,Resources and Housing,Leeds Building Services,Supplies and Services,Operational Furniture And Equipment,203,05/03/2018,1803-00577,0.00,3908.35,R,Ajm Fixings & Power Tools Ltd,No
Http://opendatacommunities.org/id/metropolitan-district-council/leeds,Leeds City Council,31/03/2018,Resources and Housing,Leeds Building Services,Supplies and Services,Operational Furniture And Equipment,203,06/03/2018,1803-00578,0.00,584.00,R,Ajm Fixings & Power Tools Ltd,No
Http://opendatacommunities.org/id/metropolitan-district-council/leeds,Leeds City Council,31/03/2018,Resources and Housing,Leeds Building Services,Supplies and Services,Stores - Central And Other Depots,005,08/03/2018,1803-00579,0.00,34.95,R,Ajm Fixings & Power Tools Ltd,No
Http://opendatacommunities.org/id/metropolitan-district-council/leeds,Leeds City Council,31/03/2018,Resources and Housing,Leeds Building Services,Supplies and Services,Operational Furniture And Equipment,203,09/03/2018,1803-00580,0.00,565.00,R,Ajm Fixings & Power Tools Ltd,No
Http://opendatacommunities.org/id/metropolitan-district-council/leeds,Leeds City Council,31/03/2018,Resources and Housing,Leeds Building Services,Supplies and Services,Operational Furniture And Equipment,203,09/03/2018,1803-00581,0.00,1144.00,R,Ajm Fixings & Power Tools Ltd,No
Http://opendatacommunities.org/id/metropolitan-district-council/leeds,Leeds City Council,31/03/2018,Resources and Housing,Leeds Building Services,Supplies and Services,Operational Furniture And Equipment,203,09/03/2018,1803-00582,0.00,8473.70,R,Ajm Fixings & Power Tools Ltd,No
Http://opendatacommunities.org/id/metropolitan-district-council/leeds,Leeds City Council,31/03/2018,Resources and Housing,Leeds Building Services,Supplies and Services,Operational Furniture And Equipment,203,09/03/2018,1803-00583,0.00,1800.00,R,Ajm Fixings & Power Tools Ltd,No
Http://opendatacommunities.org/id/metropolitan-district-council/leeds,Leeds City Council,31/03/2018,Resources and Housing,Leeds Building Services,Supplies and Services,Operational Furniture And Equipment,203,09/03/2018,1803-00584,0.00,860.00,R,Ajm Fixings & Power Tools Ltd,No
Http://opendatacommunities.org/id/metropolitan-district-council/leeds,Leeds City Council,31/03/2018,Resources and Housing,Leeds Building Services,Supplies and Services,Operational Furniture And Equipment,203,13/03/2018,1803-00585,0.00,254.00,R,Ajm Fixings & Power Tools Ltd,No
Http://opendatacommunities.org/id/metropolitan-district-council/leeds,Leeds City Council,31/03/2018,Resources and Housing,Leeds Building Services,Supplies and Services,Stores - Central And Other Depots,005,13/03/2018,1803-00586,0.00,232.08,R,Ajm Fixings & Power Tools Ltd,No
Http://opendatacommunities.org/id/metropolitan-district-council/leeds,Leeds City Council,31/03/2018,Resources and Housing,Leeds Building Services,Supplies and Services,Operational Furniture And Equipment,203,16/03/2018,1803-00587,0.00,301.38,R,Ajm Fixings & Power Tools Ltd,No
Http://opendatacommunities.org/id/metropolitan-district-council/leeds,Leeds City Council,31/03/2018,Resources and Housing,Leeds Building Services,Supplies and Services,Operational Furniture And Equipment,203,16/03/2018,1803-00588,0.00,167.50,R,Ajm Fixings & Power Tools Ltd,No
Http://opendatacommunities.org/id/metropolitan-district-council/leeds,Leeds City Council,31/03/2018,Resources and Housing,Leeds Building Services,Supplies and Services,Stores - Central And Other Depots,005,16/03/2018,1803-00589,0.00,72.36,R,Ajm Fixings & Power Tools Ltd,No
Http://opendatacommunities.org/id/metropolitan-district-council/leeds,Leeds City Council,31/03/2018,Resources and Housing,Leeds Building Services,Supplies and Services,Operational Furniture And Equipment,203,22/03/2018,1803-00590,0.00,943.00,R,Ajm Fixings & Power Tools Ltd,No
Http://opendatacommunities.org/id/metropolitan-district-council/leeds,Leeds City Council,31/03/2018,Resources and Housing,Leeds Building Services,Supplies and Services,Operational Furniture And Equipment,203,22/03/2018,1803-00591,0.00,49.37,R,Ajm Fixings & Power Tools Ltd,No
Http://opendatacommunities.org/id/metropolitan-district-council/leeds,Leeds City Council,31/03/2018,Resources and Housing,Leeds Building Services,Supplies and Services,Operational Furniture And Equipment,203,22/03/2018,1803-00592,0.00,5217.50,R,Ajm Fixings & Power Tools Ltd,No
Http://opendatacommunities.org/id/metropolitan-district-council/leeds,Leeds City Council,31/03/2018,Resources and Housing,Leeds Building Services,Supplies and Services,Operational Furniture And Equipment,203,22/03/2018,1803-00593,0.00,1356.00,R,Ajm Fixings & Power Tools Ltd,No
Http://opendatacommunities.org/id/metropolitan-district-council/leeds,Leeds City Council,31/03/2018,Resources and Housing,Leeds Building Services,Supplies and Services,Operational Furniture And Equipment,203,22/03/2018,1803-00594,0.00,894.00,R,Ajm Fixings & Power Tools Ltd,No
Http://opendatacommunities.org/id/metropolitan-district-council/leeds,Leeds City Council,31/03/2018,Resources and Housing,Leeds Building Services,Supplies and Services,Operational Furniture And Equipment,203,22/03/2018,1803-00595,0.00,105.00,R,Ajm Fixings & Power Tools Ltd,No
Http://opendatacommunities.org/id/metropolitan-district-council/leeds,Leeds City Council,31/03/2018,Resources and Housing,Leeds Building Services,Supplies and Services,Operational Furniture And Equipment,203,27/03/2018,1803-00596,0.00,60.00,R,Ajm Fixings & Power Tools Ltd,No
Http://opendatacommunities.org/id/metropolitan-district-council/leeds,Leeds City Council,31/03/2018,Resources and Housing,Leeds Building Services,Supplies and Services,Operational Furniture And Equipment,203,29/03/2018,1803-00597,0.00,575.13,R,Ajm Fixings & Power Tools Ltd,No
Http://opendatacommunities.org/id/metropolitan-district-council/leeds,Leeds City Council,31/03/2018,Resources and Housing,Leeds Building Services,Supplies and Services,Operational Furniture And Equipment,203,29/03/2018,1803-00598,0.00,335.00,R,Ajm Fixings & Power Tools Ltd,No
Http://opendatacommunities.org/id/metropolitan-district-council/leeds,Leeds City Council,31/03/2018,Resources and Housing,Leeds Building Services,Supplies and Services,Stores - Central And Other Depots,005,29/03/2018,1803-00599,0.00,270.70,R,Ajm Fixings & Power Tools Ltd,No
Http://opendatacommunities.org/id/metropolitan-district-council/leeds,Leeds City Council,31/03/2018,Adults and Health,Services For Older People - 65 And Over,Third Party Payments,Nursing Home,570,07/03/2018,1803-00600,0.00,1247.60,R,Akari Care Ltd,No
Http://opendatacommunities.org/id/metropolitan-district-council/leeds,Leeds City Council,31/03/2018,Children and Families,Safeguarding Targeted & Specialist,Supplies and Services,General Amenity For Clients/Residents,285,15/03/2018,1803-00601,0.00,60.00,R,REDACTED PERSONAL DATA,No
Http://opendatacommunities.org/id/metropolitan-district-council/leeds,Leeds City Council,31/03/2018,Children and Families,Safeguarding Targeted & Specialist,Transport,Public Transport Expenses,310,15/03/2018,1803-00602,0.00,45.60,R,REDACTED PERSONAL DATA,No
Http://opendatacommunities.org/id/metropolitan-district-council/leeds,Leeds City Council,31/03/2018,Resources and Housing,Commercial Services,Premises,Plant and Machinery,102,01/03/2018,1803-00603,0.00,239.35,R,Akua Uk Ltd,No
Http://opendatacommunities.org/id/metropolitan-district-council/leeds,Leeds City Council,31/03/2018,Resources and Housing,Commercial Services,Premises,Maintenance Of Buildings,101,01/03/2018,1803-00604,0.00,3880.20,R,Akua Uk Ltd,No
Http://opendatacommunities.org/id/metropolitan-district-council/leeds,Leeds City Council,31/03/2018,Resources and Housing,Leeds Building Services,Supplies and Services,Operational Materials,205,02/03/2018,1803-00605,0.00,54.67,R,Akw Medicare Ltd,No
Http://opendatacommunities.org/id/metropolitan-district-council/leeds,Leeds City Council,31/03/2018,Resources and Housing,Leeds Building Services,Supplies and Services,Operational Materials,205,02/03/2018,1803-00606,0.00,54.67,R,Akw Medicare Ltd,No
Http://opendatacommunities.org/id/metropolitan-district-council/leeds,Leeds City Council,31/03/2018,City Development,Economic Development  ,Supplies and Services,Subsistence,256,04/02/2018,1803-00607,0.00,36.63,R,Al Duomo,Yes
Http://opendatacommunities.org/id/metropolitan-district-council/leeds,Leeds City Council,31/03/2018,Children and Families,Safeguarding Targeted & Specialist  ,Transfer Payments,Leaving Care Grants,635,09/02/2018,1803-00608,0.00,85.82,R,Al Murad Diy Ltd,Yes
Http://opendatacommunities.org/id/metropolitan-district-council/leeds,Leeds City Council,31/03/2018,Children and Families,Safeguarding Targeted & Specialist,Transfer Payments,16 Plus Top Up Allowance,625,02/03/2018,1803-00609,0.00,20.00,R,REDACTED PERSONAL DATA,No
Http://opendatacommunities.org/id/metropolitan-district-council/leeds,Leeds City Council,31/03/2018,Children and Families,Safeguarding Targeted & Specialist,Transfer Payments,16 Plus Top Up Allowance,625,09/03/2018,1803-00610,0.00,20.00,R,REDACTED PERSONAL DATA,No
Http://opendatacommunities.org/id/metropolitan-district-council/leeds,Leeds City Council,31/03/2018,City Development,Libraries  Arts & Heritage,Supplies and Services,Non-Recurring Grants,227,01/03/2018,1803-00611,0.00,1000.00,R,Alan Pergusey,No
Http://opendatacommunities.org/id/metropolitan-district-council/leeds,Leeds City Council,31/03/2018,Children and Families,Learning Skills & Universal,Supplies and Services,Bought In Professional Services,277,09/03/2018,1803-00612,0.00,250.00,R,Alan Pergusey,No
Http://opendatacommunities.org/id/metropolitan-district-council/leeds,Leeds City Council,31/03/2018,Children and Families,Learning Skills & Universal,Supplies and Services,Bought In Professional Services,277,14/03/2018,1803-00613,0.00,250.00,R,Alan Pergusey,No
Http://opendatacommunities.org/id/metropolitan-district-council/leeds,Leeds City Council,31/03/2018,City Development,Highways,Capital,Land,1,19/03/2018,1803-00614,0.00,2250.00,C,REDACTED PERSONAL DATA,No
Http://opendatacommunities.org/id/metropolitan-district-council/leeds,Leeds City Council,31/03/2018,Communities and Environment,Cleaner Neighbourhood Teams  ,Supplies and Services,Clothing & Uniforms,241,14/02/2018,1803-00615,0.00,26.95,R,Albert Haywood & Son L,Yes
Http://opendatacommunities.org/id/metropolitan-district-council/leeds,Leeds City Council,31/03/2018,Resources and Housing,Commercial Services,Transport,Vehicle Spares,345,21/03/2018,1803-00616,0.00,69.86,R,Albert Jagger Limited,No
Http://opendatacommunities.org/id/metropolitan-district-council/leeds,Leeds City Council,31/03/2018,Communities and Environment,Communities,Supplies and Services,Computer Software & Equipment,214,07/03/2018,1803-00617,0.00,1075.00,R,Alcium Software Ltd,No
Http://opendatacommunities.org/id/metropolitan-district-council/leeds,Leeds City Council,31/03/2018,Communities and Environment,Communities,Supplies and Services,Computer Software & Equipment,214,29/03/2018,1803-00618,0.00,1075.00,R,Alcium Software Ltd,No
Http://opendatacommunities.org/id/metropolitan-district-council/leeds,Leeds City Council,31/03/2018,Children and Families,Safeguarding Targeted & Specialist  ,Supplies and Services,Teaching Materials,202,21/02/2018,1803-00619,0.00,52.32,R,Aldi 71 779,Yes
Http://opendatacommunities.org/id/metropolitan-district-council/leeds,Leeds City Council,31/03/2018,Children and Families,Safeguarding Targeted & Specialist  ,Transfer Payments,Leaving Care Grants,635,12/02/2018,1803-00620,0.00,5.78,R,Aldi 88 779,Yes
Http://opendatacommunities.org/id/metropolitan-district-council/leeds,Leeds City Council,31/03/2018,City Development,Libraries  Arts & Heritage  ,Supplies and Services,Food & Drink,231,01/02/2018,1803-00621,0.00,5.02,R,Aldi 89 779,Yes
Http://opendatacommunities.org/id/metropolitan-district-council/leeds,Leeds City Council,31/03/2018,Communities and Environment,Waste Management  ,Transport,Repair & Maintenance of  Plant,342,02/02/2018,1803-00622,0.00,20.82,R,Aldi 89 779,Yes
Http://opendatacommunities.org/id/metropolitan-district-council/leeds,Leeds City Council,31/03/2018,Communities and Environment,Customer Access,Supplies and Services,Other Hired And Contracted Services,265,06/03/2018,1803-00623,0.00,125.50,R,Alena Zueva,No
Http://opendatacommunities.org/id/metropolitan-district-council/leeds,Leeds City Council,31/03/2018,Children and Families,Safeguarding Targeted & Specialist,Support Services,Legal Disbursements,411,07/03/2018,1803-00624,0.00,77.75,R,Alere Toxicology Plc,No
Http://opendatacommunities.org/id/metropolitan-district-council/leeds,Leeds City Council,31/03/2018,Children and Families,Safeguarding Targeted & Specialist,Support Services,Legal Disbursements,411,09/03/2018,1803-00625,0.00,11.68,R,Alere Toxicology Plc,No
Http://opendatacommunities.org/id/metropolitan-district-council/leeds,Leeds City Council,31/03/2018,Children and Families,Safeguarding Targeted & Specialist,Support Services,Legal Disbursements,411,16/03/2018,1803-00626,0.00,103.66,R,Alere Toxicology Plc,No
Http://opendatacommunities.org/id/metropolitan-district-council/leeds,Leeds City Council,31/03/2018,Children and Families,Safeguarding Targeted & Specialist,Support Services,Legal Disbursements,411,20/03/2018,1803-00627,0.00,131.75,R,Alere Toxicology Plc,No
Http://opendatacommunities.org/id/metropolitan-district-council/leeds,Leeds City Council,31/03/2018,Children and Families,Safeguarding Targeted & Specialist,Support Services,Legal Disbursements,411,28/03/2018,1803-00628,0.00,419.00,R,Alere Toxicology Plc,No
Http://opendatacommunities.org/id/metropolitan-district-council/leeds,Leeds City Council,31/03/2018,Children and Families,Safeguarding Targeted & Specialist,Support Services,Legal Disbursements,411,29/03/2018,1803-00629,0.00,23.75,R,Alere Toxicology Plc,No
Http://opendatacommunities.org/id/metropolitan-district-council/leeds,Leeds City Council,31/03/2018,Children and Families,Safeguarding Targeted & Specialist,Support Services,Legal Disbursements,411,09/03/2018,1803-00630,0.00,1670.00,R,Alex Taylor,No
Http://opendatacommunities.org/id/metropolitan-district-council/leeds,Leeds City Council,31/03/2018,Children and Families,Safeguarding Targeted & Specialist,Support Services,Legal Disbursements,411,14/03/2018,1803-00631,0.00,1602.00,R,Alex Taylor,No
Http://opendatacommunities.org/id/metropolitan-district-council/leeds,Leeds City Council,31/03/2018,Resources and Housing,Commercial Services,Supplies and Services,Other Hired And Contracted Services,265,22/03/2018,1803-00632,0.00,100.00,R,Alex Wagg,No
Http://opendatacommunities.org/id/metropolitan-district-council/leeds,Leeds City Council,31/03/2018,Resources and Housing,Commercial Services,Supplies and Services,Other Hired And Contracted Services,265,22/03/2018,1803-00633,0.00,80.00,R,Alex Wagg,No
Http://opendatacommunities.org/id/metropolitan-district-council/leeds,Leeds City Council,31/03/2018,Resources and Housing,Commercial Services,Supplies and Services,Other Hired And Contracted Services,265,22/03/2018,1803-00634,0.00,80.00,R,Alex Wagg,No
Http://opendatacommunities.org/id/metropolitan-district-council/leeds,Leeds City Council,31/03/2018,Resources and Housing,Commercial Services,Supplies and Services,Other Hired And Contracted Services,265,22/03/2018,1803-00635,0.00,80.00,R,Alex Wagg,No
Http://opendatacommunities.org/id/metropolitan-district-council/leeds,Leeds City Council,31/03/2018,Resources and Housing,Commercial Services,Supplies and Services,Other Hired And Contracted Services,265,22/03/2018,1803-00636,0.00,60.00,R,Alex Wagg,No
Http://opendatacommunities.org/id/metropolitan-district-council/leeds,Leeds City Council,31/03/2018,Resources and Housing,Commercial Services,Supplies and Services,Other Hired And Contracted Services,265,22/03/2018,1803-00637,0.00,60.00,R,Alex Wagg,No
Http://opendatacommunities.org/id/metropolitan-district-council/leeds,Leeds City Council,31/03/2018,Adults and Health,Services For Older People - 65 And Over,Third Party Payments,Residential Care Dementia,571,07/03/2018,1803-00638,0.00,14928.43,R,Alexander Residential Home,No
Http://opendatacommunities.org/id/metropolitan-district-council/leeds,Leeds City Council,31/03/2018,Adults and Health,Services For Older People - 65 And Over,Third Party Payments,Residential,580,07/03/2018,1803-00639,0.00,19591.36,R,Alexander Residential Home,No
Http://opendatacommunities.org/id/metropolitan-district-council/leeds,Leeds City Council,31/03/2018,Communities and Environment,Customer Access,Supplies and Services,Other Hired And Contracted Services,265,06/03/2018,1803-00640,0.00,579.25,R,Alexandra Costenco,No
Http://opendatacommunities.org/id/metropolitan-district-council/leeds,Leeds City Council,31/03/2018,Adults and Health,Services For Older People - 65 And Over,Third Party Payments,Residential Care Dementia,571,07/03/2018,1803-00641,0.00,-686.76,R,Alexandra Court,No
Http://opendatacommunities.org/id/metropolitan-district-council/leeds,Leeds City Council,31/03/2018,Adults and Health,Services For Older People - 65 And Over,Third Party Payments,Residential,580,07/03/2018,1803-00642,0.00,14462.19,R,Alexandra Court,No
Http://opendatacommunities.org/id/metropolitan-district-council/leeds,Leeds City Council,31/03/2018,Communities and Environment,Customer Access,Supplies and Services,Other Hired And Contracted Services,265,06/03/2018,1803-00643,0.00,35.75,R,Alexandra Hirst,No
Http://opendatacommunities.org/id/metropolitan-district-council/leeds,Leeds City Council,31/03/2018,Children and Families,Safeguarding Targeted & Specialist,Third Party Payments,Services Rendered By Other Organisations,511,09/03/2018,1803-00644,0.00,499.95,R,REDACTED PERSONAL DATA,No
Http://opendatacommunities.org/id/metropolitan-district-council/leeds,Leeds City Council,31/03/2018,Children and Families,Safeguarding Targeted & Specialist,Third Party Payments,Services Rendered By Other Organisations,511,16/03/2018,1803-00645,0.00,138.60,R,REDACTED PERSONAL DATA,No
Http://opendatacommunities.org/id/metropolitan-district-council/leeds,Leeds City Council,31/03/2018,Resources and Housing,Leeds Building Services,Supplies and Services,Other Hired And Contracted Services,265,02/03/2018,1803-00646,0.00,7690.00,R,Alfred Bagnall & Sons (Leeds) Ltd,No
Http://opendatacommunities.org/id/metropolitan-district-council/leeds,Leeds City Council,31/03/2018,Resources and Housing,Leeds Building Services,Supplies and Services,Other Hired And Contracted Services,265,05/03/2018,1803-00647,0.00,5376.32,R,Alfred Bagnall & Sons (Leeds) Ltd,No
Http://opendatacommunities.org/id/metropolitan-district-council/leeds,Leeds City Council,31/03/2018,Resources and Housing,Leeds Building Services,Supplies and Services,Other Hired And Contracted Services,265,05/03/2018,1803-00648,0.00,9240.00,R,Alfred Bagnall & Sons (Leeds) Ltd,No
Http://opendatacommunities.org/id/metropolitan-district-council/leeds,Leeds City Council,31/03/2018,Resources and Housing,Leeds Building Services,Supplies and Services,Other Hired And Contracted Services,265,09/03/2018,1803-00649,0.00,500.00,R,Alfred Bagnall & Sons (Leeds) Ltd,No
Http://opendatacommunities.org/id/metropolitan-district-council/leeds,Leeds City Council,31/03/2018,Communities and Environment,Customer Access,Supplies and Services,Other Hired And Contracted Services,265,06/03/2018,1803-00650,0.00,380.25,R,Ali Pourakaberian,No
Http://opendatacommunities.org/id/metropolitan-district-council/leeds,Leeds City Council,31/03/2018,Adults and Health,Other Generic Services,Supplies and Services,Conference Meetings,253,29/03/2018,1803-00651,0.00,15.00,R,REDACTED PERSONAL DATA,No
Http://opendatacommunities.org/id/metropolitan-district-council/leeds,Leeds City Council,31/03/2018,Children and Families,Partnerships,Employees,Training & Development,70,16/03/2018,1803-00652,0.00,1416.64,R,REDACTED PERSONAL DATA,No
Http://opendatacommunities.org/id/metropolitan-district-council/leeds,Leeds City Council,31/03/2018,City Development,Libraries  Arts & Heritage,Supplies and Services,Bought In Professional Services,277,23/03/2018,1803-00653,0.00,120.00,R,Alice Withers,No
Http://opendatacommunities.org/id/metropolitan-district-council/leeds,Leeds City Council,31/03/2018,City Development,Libraries  Arts & Heritage,Supplies and Services,Bought In Professional Services,277,23/03/2018,1803-00654,0.00,400.00,R,Alice Withers,No
Http://opendatacommunities.org/id/metropolitan-district-council/leeds,Leeds City Council,31/03/2018,City Development,Recreation,Income,Sporting & Other Recreational Fees,928,12/03/2018,1803-00655,0.00,16.67,R,REDACTED PERSONAL DATA,No
Http://opendatacommunities.org/id/metropolitan-district-council/leeds,Leeds City Council,31/03/2018,Children and Families,Safeguarding Targeted & Specialist,Third Party Payments,Placement Support,550,08/03/2018,1803-00656,0.00,75.71,R,REDACTED PERSONAL DATA,No
Http://opendatacommunities.org/id/metropolitan-district-council/leeds,Leeds City Council,31/03/2018,Children and Families,Safeguarding Targeted & Specialist,Third Party Payments,Services Rendered By Other Organisations,511,27/03/2018,1803-00657,0.00,144.43,R,REDACTED PERSONAL DATA,No
Http://opendatacommunities.org/id/metropolitan-district-council/leeds,Leeds City Council,31/03/2018,Children and Families,Safeguarding Targeted & Specialist,Third Party Payments,Services Rendered By Other Organisations,511,09/03/2018,1803-00658,0.00,166.65,R,REDACTED PERSONAL DATA,No
Http://opendatacommunities.org/id/metropolitan-district-council/leeds,Leeds City Council,31/03/2018,Children and Families,Safeguarding Targeted & Specialist,Third Party Payments,Services Rendered By Other Organisations,511,16/03/2018,1803-00659,0.00,554.40,R,REDACTED PERSONAL DATA,No
Http://opendatacommunities.org/id/metropolitan-district-council/leeds,Leeds City Council,31/03/2018,City Development,Libraries  Arts & Heritage,Supplies and Services,Bought In Professional Services,277,08/03/2018,1803-00660,0.00,720.00,R,Alison Mcintyre,No
Http://opendatacommunities.org/id/metropolitan-district-council/leeds,Leeds City Council,31/03/2018,Children and Families,Safeguarding Targeted & Specialist,Transfer Payments,Leaving Care Allowances,634,01/03/2018,1803-00661,0.00,60.00,R,All Abode,No
Http://opendatacommunities.org/id/metropolitan-district-council/leeds,Leeds City Council,31/03/2018,Children and Families,Safeguarding Targeted & Specialist,Transfer Payments,Leaving Care Allowances,634,09/03/2018,1803-00662,0.00,75.00,R,All Abode,No
Http://opendatacommunities.org/id/metropolitan-district-council/leeds,Leeds City Council,31/03/2018,Resources and Housing,Leeds Building Services,Supplies and Services,Other Hired And Contracted Services,265,02/03/2018,1803-00663,0.00,100.00,R,All Clear Solutions Ltd,No
Http://opendatacommunities.org/id/metropolitan-district-council/leeds,Leeds City Council,31/03/2018,Resources and Housing,Leeds Building Services,Supplies and Services,Other Hired And Contracted Services,265,02/03/2018,1803-00664,0.00,295.00,R,All Clear Solutions Ltd,No
Http://opendatacommunities.org/id/metropolitan-district-council/leeds,Leeds City Council,31/03/2018,Resources and Housing,Leeds Building Services,Supplies and Services,Other Hired And Contracted Services,265,02/03/2018,1803-00665,0.00,195.00,R,All Clear Solutions Ltd,No
Http://opendatacommunities.org/id/metropolitan-district-council/leeds,Leeds City Council,31/03/2018,Resources and Housing,Leeds Building Services,Supplies and Services,Other Hired And Contracted Services,265,02/03/2018,1803-00666,0.00,195.00,R,All Clear Solutions Ltd,No
Http://opendatacommunities.org/id/metropolitan-district-council/leeds,Leeds City Council,31/03/2018,Resources and Housing,Leeds Building Services,Supplies and Services,Other Hired And Contracted Services,265,02/03/2018,1803-00667,0.00,195.00,R,All Clear Solutions Ltd,No
Http://opendatacommunities.org/id/metropolitan-district-council/leeds,Leeds City Council,31/03/2018,Resources and Housing,Leeds Building Services,Supplies and Services,Other Hired And Contracted Services,265,02/03/2018,1803-00668,0.00,195.00,R,All Clear Solutions Ltd,No
Http://opendatacommunities.org/id/metropolitan-district-council/leeds,Leeds City Council,31/03/2018,Resources and Housing,Leeds Building Services,Supplies and Services,Other Hired And Contracted Services,265,02/03/2018,1803-00669,0.00,195.00,R,All Clear Solutions Ltd,No
Http://opendatacommunities.org/id/metropolitan-district-council/leeds,Leeds City Council,31/03/2018,Resources and Housing,Leeds Building Services,Supplies and Services,Other Hired And Contracted Services,265,02/03/2018,1803-00670,0.00,250.00,R,All Clear Solutions Ltd,No
Http://opendatacommunities.org/id/metropolitan-district-council/leeds,Leeds City Council,31/03/2018,Resources and Housing,Leeds Building Services,Supplies and Services,Other Hired And Contracted Services,265,02/03/2018,1803-00671,0.00,195.00,R,All Clear Solutions Ltd,No
Http://opendatacommunities.org/id/metropolitan-district-council/leeds,Leeds City Council,31/03/2018,Resources and Housing,Leeds Building Services,Supplies and Services,Other Hired And Contracted Services,265,06/03/2018,1803-00672,0.00,195.00,R,All Clear Solutions Ltd,No
Http://opendatacommunities.org/id/metropolitan-district-council/leeds,Leeds City Council,31/03/2018,Resources and Housing,Leeds Building Services,Supplies and Services,Other Hired And Contracted Services,265,06/03/2018,1803-00673,0.00,390.00,R,All Clear Solutions Ltd,No
Http://opendatacommunities.org/id/metropolitan-district-council/leeds,Leeds City Council,31/03/2018,Resources and Housing,Leeds Building Services,Supplies and Services,Other Hired And Contracted Services,265,22/03/2018,1803-00674,0.00,195.00,R,All Clear Solutions Ltd,No
Http://opendatacommunities.org/id/metropolitan-district-council/leeds,Leeds City Council,31/03/2018,Resources and Housing,Leeds Building Services,Supplies and Services,Other Hired And Contracted Services,265,22/03/2018,1803-00675,0.00,195.00,R,All Clear Solutions Ltd,No
Http://opendatacommunities.org/id/metropolitan-district-council/leeds,Leeds City Council,31/03/2018,Resources and Housing,Leeds Building Services,Supplies and Services,Other Hired And Contracted Services,265,22/03/2018,1803-00676,0.00,195.00,R,All Clear Solutions Ltd,No
Http://opendatacommunities.org/id/metropolitan-district-council/leeds,Leeds City Council,31/03/2018,Resources and Housing,Leeds Building Services,Supplies and Services,Other Hired And Contracted Services,265,22/03/2018,1803-00677,0.00,195.00,R,All Clear Solutions Ltd,No
Http://opendatacommunities.org/id/metropolitan-district-council/leeds,Leeds City Council,31/03/2018,Resources and Housing,Leeds Building Services,Supplies and Services,Other Hired And Contracted Services,265,22/03/2018,1803-00678,0.00,250.00,R,All Clear Solutions Ltd,No
Http://opendatacommunities.org/id/metropolitan-district-council/leeds,Leeds City Council,31/03/2018,Resources and Housing,Leeds Building Services,Supplies and Services,Other Hired And Contracted Services,265,23/03/2018,1803-00679,0.00,195.00,R,All Clear Solutions Ltd,No
Http://opendatacommunities.org/id/metropolitan-district-council/leeds,Leeds City Council,31/03/2018,Resources and Housing,Leeds Building Services,Supplies and Services,Other Hired And Contracted Services,265,23/03/2018,1803-00680,0.00,195.00,R,All Clear Solutions Ltd,No
Http://opendatacommunities.org/id/metropolitan-district-council/leeds,Leeds City Council,31/03/2018,Resources and Housing,Leeds Building Services,Supplies and Services,Other Hired And Contracted Services,265,23/03/2018,1803-00681,0.00,195.00,R,All Clear Solutions Ltd,No
Http://opendatacommunities.org/id/metropolitan-district-council/leeds,Leeds City Council,31/03/2018,Resources and Housing,Leeds Building Services,Supplies and Services,Other Hired And Contracted Services,265,23/03/2018,1803-00682,0.00,195.00,R,All Clear Solutions Ltd,No
Http://opendatacommunities.org/id/metropolitan-district-council/leeds,Leeds City Council,31/03/2018,Resources and Housing,Leeds Building Services,Supplies and Services,Other Hired And Contracted Services,265,23/03/2018,1803-00683,0.00,195.00,R,All Clear Solutions Ltd,No
Http://opendatacommunities.org/id/metropolitan-district-council/leeds,Leeds City Council,31/03/2018,Resources and Housing,Leeds Building Services,Supplies and Services,Other Hired And Contracted Services,265,27/03/2018,1803-00684,0.00,195.00,R,All Clear Solutions Ltd,No
Http://opendatacommunities.org/id/metropolitan-district-council/leeds,Leeds City Council,31/03/2018,Children and Families,Safeguarding Targeted & Specialist,Third Party Payments,Services Rendered By Other Organisations,511,09/03/2018,1803-00685,0.00,1469.55,R,All Stars Childcare,No
Http://opendatacommunities.org/id/metropolitan-district-council/leeds,Leeds City Council,31/03/2018,Children and Families,Safeguarding Targeted & Specialist,Third Party Payments,Services Rendered By Other Organisations,511,16/03/2018,1803-00686,0.00,4945.92,R,All Stars Childcare,No
Http://opendatacommunities.org/id/metropolitan-district-council/leeds,Leeds City Council as Accountable Body,31/03/2018,Social Services Pooled Budgets,Jcs For People With Learning Disabilitie,Third Party Payments,Sheltered Accommodation,569,07/03/2018,1803-00687,0.00,13578.36,R,Allerton Avenue,No
Http://opendatacommunities.org/id/metropolitan-district-council/leeds,Leeds City Council,31/03/2018,Strategic Accounts,Central Control Accounts (Ex Cttee 07),Supplies and Services,Gdf Suez Gas Contract,201,01/03/2018,1803-00688,0.00,22.90,R,Allerton Bywater Primary School,No
Http://opendatacommunities.org/id/metropolitan-district-council/leeds,Leeds City Council,31/03/2018,Strategic Accounts,Central Control Accounts (Ex Cttee 07),Supplies and Services,Gdf Suez Gas Contract,201,16/03/2018,1803-00689,0.00,267.66,R,Allerton Bywater Primary School,No
Http://opendatacommunities.org/id/metropolitan-district-council/leeds,Leeds City Council,31/03/2018,Communities and Environment,Parks and Countryside,Supplies and Services,Operational Materials,205,23/03/2018,1803-00690,0.00,6.00,R,Allflex Uk Group Ltd,No
Http://opendatacommunities.org/id/metropolitan-district-council/leeds,Leeds City Council,31/03/2018,Communities and Environment,Parks and Countryside,Supplies and Services,Operational Materials,205,23/03/2018,1803-00691,0.00,28.50,R,Allflex Uk Group Ltd,No
Http://opendatacommunities.org/id/metropolitan-district-council/leeds,Leeds City Council,31/03/2018,Communities and Environment,Parks and Countryside,Supplies and Services,Operational Materials,205,23/03/2018,1803-00692,0.00,6.00,R,Allflex Uk Group Ltd,No
Http://opendatacommunities.org/id/metropolitan-district-council/leeds,Leeds City Council,31/03/2018,Communities and Environment,Parks and Countryside,Supplies and Services,Operational Materials,205,27/03/2018,1803-00693,0.00,4.75,R,Allflex Uk Group Ltd,No
Http://opendatacommunities.org/id/metropolitan-district-council/leeds,Leeds City Council,31/03/2018,Resources and Housing,Finance,Supplies and Services,Bank Charges,263,01/03/2018,1803-00694,0.00,-115.05,R,Alliance & Leicester Commercial Bank,No
Http://opendatacommunities.org/id/metropolitan-district-council/leeds,Leeds City Council,31/03/2018,Resources and Housing,Finance,Supplies and Services,Bank Charges,263,06/03/2018,1803-00695,0.00,659.33,R,Alliance & Leicester Commercial Bank,No
Http://opendatacommunities.org/id/metropolitan-district-council/leeds,Leeds City Council,31/03/2018,Resources and Housing,Finance,Supplies and Services,Bank Charges,263,06/03/2018,1803-00696,0.00,100.00,R,Alliance & Leicester Commercial Bank,No
Http://opendatacommunities.org/id/metropolitan-district-council/leeds,Leeds City Council,31/03/2018,Resources and Housing,Commercial Services,Supplies and Services,Other Hired And Contracted Services,265,29/03/2018,1803-00697,0.00,9.80,R,Alliance Electronics Ltd,No
Http://opendatacommunities.org/id/metropolitan-district-council/leeds,Leeds City Council,31/03/2018,City Development,Asset Management,Capital,Other Costs,7,01/03/2018,1803-00698,0.00,6608.90,C,Allied Exploration & Geotechnics Ltd,No
Http://opendatacommunities.org/id/metropolitan-district-council/leeds,Leeds City Council,31/03/2018,City Development,Highways,Capital,Other Costs,7,02/03/2018,1803-00699,0.00,1217.04,C,Allied Exploration & Geotechnics Ltd,No
Http://opendatacommunities.org/id/metropolitan-district-council/leeds,Leeds City Council,31/03/2018,City Development,Highways,Supplies and Services,Other Hired And Contracted Services,265,21/03/2018,1803-00700,0.00,1025.00,R,Allied Exploration & Geotechnics Ltd,No
Http://opendatacommunities.org/id/metropolitan-district-council/leeds,Leeds City Council,31/03/2018,City Development,Highways,Supplies and Services,Other Hired And Contracted Services,265,26/03/2018,1803-00701,0.00,2849.00,R,Allied Exploration & Geotechnics Ltd,No
Http://opendatacommunities.org/id/metropolitan-district-council/leeds,Leeds City Council,31/03/2018,Adults and Health,Other Generic Services,Third Party Payments,Home Care,568,01/03/2018,1803-00702,0.00,16386.84,R,Allied Healthcare,No
Http://opendatacommunities.org/id/metropolitan-district-council/leeds,Leeds City Council,31/03/2018,Adults and Health,Other Generic Services,Third Party Payments,Home Care,568,01/03/2018,1803-00703,0.00,7185.17,R,Allied Healthcare,No
Http://opendatacommunities.org/id/metropolitan-district-council/leeds,Leeds City Council as Accountable Body,31/03/2018,Social Services Pooled Budgets,Jcs For People With Learning Disabilitie,Third Party Payments,Home Care,568,01/03/2018,1803-00704,0.00,365.72,R,Allied Healthcare,No
Http://opendatacommunities.org/id/metropolitan-district-council/leeds,Leeds City Council as Accountable Body,31/03/2018,Social Services Pooled Budgets,Jcs For People With Learning Disabilitie,Third Party Payments,Home Care,568,08/03/2018,1803-00705,0.00,114.00,R,Allied Healthcare,No
Http://opendatacommunities.org/id/metropolitan-district-council/leeds,Leeds City Council,31/03/2018,Adults and Health,Other Generic Services,Third Party Payments,Home Care,568,15/03/2018,1803-00706,0.00,7328.25,R,Allied Healthcare,No
Http://opendatacommunities.org/id/metropolitan-district-council/leeds,Leeds City Council as Accountable Body,31/03/2018,Social Services Pooled Budgets,Jcs For People With Learning Disabilitie,Third Party Payments,Home Care,568,15/03/2018,1803-00707,0.00,15266.69,R,Allied Healthcare,No
Http://opendatacommunities.org/id/metropolitan-district-council/leeds,Leeds City Council,31/03/2018,Adults and Health,Services For Older People - 65 And Over,Third Party Payments,Home Care,568,15/03/2018,1803-00708,0.00,981.46,R,Allied Healthcare,No
Http://opendatacommunities.org/id/metropolitan-district-council/leeds,Leeds City Council,31/03/2018,Adults and Health,Services For Older People - 65 And Over,Third Party Payments,Home Care,568,15/03/2018,1803-00709,0.00,2107.97,R,Allied Healthcare,No
Http://opendatacommunities.org/id/metropolitan-district-council/leeds,Leeds City Council,31/03/2018,Adults and Health,Services For Older People - 65 And Over,Third Party Payments,Home Care,568,15/03/2018,1803-00710,0.00,10609.19,R,Allied Healthcare,No
Http://opendatacommunities.org/id/metropolitan-district-council/leeds,Leeds City Council,31/03/2018,Adults and Health,Services For Older People Under 65 P/Dis,Third Party Payments,Home Care,568,15/03/2018,1803-00711,0.00,1731.55,R,Allied Healthcare,No
Http://opendatacommunities.org/id/metropolitan-district-council/leeds,Leeds City Council,31/03/2018,Adults and Health,Services For Older People - 65 And Over,Third Party Payments,Home Care,568,15/03/2018,1803-00712,0.00,12089.15,R,Allied Healthcare,No
Http://opendatacommunities.org/id/metropolitan-district-council/leeds,Leeds City Council,31/03/2018,Adults and Health,Services For Older People Under 65 P/Dis,Third Party Payments,Home Care,568,15/03/2018,1803-00713,0.00,9078.59,R,Allied Healthcare,No
Http://opendatacommunities.org/id/metropolitan-district-council/leeds,Leeds City Council,31/03/2018,Adults and Health,Services For Older People - 65 And Over,Third Party Payments,Home Care,568,15/03/2018,1803-00714,0.00,11468.69,R,Allied Healthcare,No
Http://opendatacommunities.org/id/metropolitan-district-council/leeds,Leeds City Council,31/03/2018,Adults and Health,Other Generic Services,Third Party Payments,Home Care,568,16/03/2018,1803-00715,0.00,18724.40,R,Allied Healthcare,No
Http://opendatacommunities.org/id/metropolitan-district-council/leeds,Leeds City Council as Accountable Body,31/03/2018,Social Services Pooled Budgets,Jcs For People With Learning Disabilitie,Third Party Payments,Home Care,568,21/03/2018,1803-00716,0.00,946.96,R,Allied Healthcare,No
Http://opendatacommunities.org/id/metropolitan-district-council/leeds,Leeds City Council as Accountable Body,31/03/2018,Social Services Pooled Budgets,Jcs For People With Learning Disabilitie,Third Party Payments,Home Care,568,21/03/2018,1803-00717,0.00,211.28,R,Allied Healthcare,No
Http://opendatacommunities.org/id/metropolitan-district-council/leeds,Leeds City Council,31/03/2018,Children and Families,Partnerships,Third Party Payments,Services Rendered By Voluntary Sector,505,21/03/2018,1803-00718,0.00,684.00,R,Allied Healthcare,No
Http://opendatacommunities.org/id/metropolitan-district-council/leeds,Leeds City Council,31/03/2018,Adults and Health,Other Generic Services,Third Party Payments,Home Care,568,27/03/2018,1803-00719,0.00,16328.86,R,Allied Healthcare,No
Http://opendatacommunities.org/id/metropolitan-district-council/leeds,Leeds City Council,31/03/2018,Adults and Health,Other Generic Services,Third Party Payments,Home Care,568,27/03/2018,1803-00720,0.00,5629.98,R,Allied Healthcare,No
Http://opendatacommunities.org/id/metropolitan-district-council/leeds,Leeds City Council as Accountable Body,31/03/2018,Social Services Pooled Budgets,Jcs For People With Learning Disabilitie,Third Party Payments,Home Care,568,29/03/2018,1803-00721,0.00,16737.91,R,Allied Healthcare,No
Http://opendatacommunities.org/id/metropolitan-district-council/leeds,Leeds City Council,31/03/2018,Resources and Housing,Finance,Supplies and Services,Bank Charges,263,02/03/2018,1803-00722,0.00,9499.08,R,Allpay Limted,No
Http://opendatacommunities.org/id/metropolitan-district-council/leeds,Leeds City Council,31/03/2018,Resources and Housing,Finance,Supplies and Services,Bank Charges,263,02/03/2018,1803-00723,0.00,5988.33,R,Allpay Limted,No
Http://opendatacommunities.org/id/metropolitan-district-council/leeds,Leeds City Council,31/03/2018,Resources and Housing,Finance,Supplies and Services,Bank Charges,263,02/03/2018,1803-00724,0.00,364.54,R,Allpay Limted,No
Http://opendatacommunities.org/id/metropolitan-district-council/leeds,Leeds City Council,31/03/2018,Resources and Housing,Finance,Supplies and Services,Bank Charges,263,02/03/2018,1803-00725,0.00,2444.53,R,Allpay Limted,No
Http://opendatacommunities.org/id/metropolitan-district-council/leeds,Leeds City Council,31/03/2018,Resources and Housing,Finance,Supplies and Services,Bank Charges,263,02/03/2018,1803-00726,0.00,5.83,R,Allpay Limted,No
Http://opendatacommunities.org/id/metropolitan-district-council/leeds,Leeds City Council,31/03/2018,Resources and Housing,Finance,Supplies and Services,Bank Charges,263,02/03/2018,1803-00727,0.00,95.78,R,Allpay Limted,No
Http://opendatacommunities.org/id/metropolitan-district-council/leeds,Leeds City Council,31/03/2018,Strategic Landlord,Housing Management,Supplies and Services,Other Hired And Contracted Services,265,07/03/2018,1803-00728,0.00,362.35,R,Allpay Limted,No
Http://opendatacommunities.org/id/metropolitan-district-council/leeds,Leeds City Council,31/03/2018,Strategic Landlord,Housing Management,Supplies and Services,Other Hired And Contracted Services,265,07/03/2018,1803-00729,0.00,0.38,R,Allpay Limted,No
Http://opendatacommunities.org/id/metropolitan-district-council/leeds,Leeds City Council,31/03/2018,Strategic Landlord,Housing Management,Supplies and Services,Other Hired And Contracted Services,265,20/03/2018,1803-00730,0.00,20.96,R,Allpay Limted,No
Http://opendatacommunities.org/id/metropolitan-district-council/leeds,Leeds City Council,31/03/2018,Resources and Housing,Finance,Supplies and Services,Bank Charges,263,29/03/2018,1803-00731,0.00,5700.64,R,Allpay Limted,No
Http://opendatacommunities.org/id/metropolitan-district-council/leeds,Leeds City Council,31/03/2018,Resources and Housing,Finance,Supplies and Services,Bank Charges,263,29/03/2018,1803-00732,0.00,4.67,R,Allpay Limted,No
Http://opendatacommunities.org/id/metropolitan-district-council/leeds,Leeds City Council,31/03/2018,Resources and Housing,Finance,Supplies and Services,Bank Charges,263,29/03/2018,1803-00733,0.00,334.40,R,Allpay Limted,No
Http://opendatacommunities.org/id/metropolitan-district-council/leeds,Leeds City Council,31/03/2018,Resources and Housing,Finance,Supplies and Services,Bank Charges,263,29/03/2018,1803-00734,0.00,5316.81,R,Allpay Limted,No
Http://opendatacommunities.org/id/metropolitan-district-council/leeds,Leeds City Council,31/03/2018,Resources and Housing,Finance,Supplies and Services,Bank Charges,263,29/03/2018,1803-00735,0.00,2321.31,R,Allpay Limted,No
Http://opendatacommunities.org/id/metropolitan-district-council/leeds,Leeds City Council,31/03/2018,Resources and Housing,Finance,Supplies and Services,Bank Charges,263,29/03/2018,1803-00736,0.00,93.54,R,Allpay Limted,No
Http://opendatacommunities.org/id/metropolitan-district-council/leeds,Leeds City Council,31/03/2018,Children and Families,Safeguarding Targeted & Specialist  ,Third Party Payments,Rents (non supported),552,31/01/2018,1803-00737,0.00,354.24,R,Allpay Moto (Callpay/I,Yes
Http://opendatacommunities.org/id/metropolitan-district-council/leeds,Leeds City Council,31/03/2018,Children and Families,Safeguarding Targeted & Specialist  ,Transfer Payments,Leaving Care Allowances,634,06/02/2018,1803-00738,0.00,60.00,R,Allpay Moto (Callpay/I,Yes
Http://opendatacommunities.org/id/metropolitan-district-council/leeds,Leeds City Council,31/03/2018,Resources and Housing,Strategic Housing Partnership & Support  ,Supplies and Services,Other Hired And Contracted Services,265,26/02/2018,1803-00739,0.00,20.00,R,Allpay Moto (Callpay/I,Yes
Http://opendatacommunities.org/id/metropolitan-district-council/leeds,Leeds City Council,31/03/2018,Resources and Housing,Strategic Housing Partnership & Support  ,Supplies and Services,Other Hired And Contracted Services,265,26/02/2018,1803-00740,0.00,20.00,R,Allpay Moto (Callpay/I,Yes
Http://opendatacommunities.org/id/metropolitan-district-council/leeds,Leeds City Council,31/03/2018,Resources and Housing,Strategic Housing Partnership & Support  ,Supplies and Services,Other Hired And Contracted Services,265,27/02/2018,1803-00741,0.00,20.00,R,Allpay Moto (Callpay/I,Yes
Http://opendatacommunities.org/id/metropolitan-district-council/leeds,Leeds City Council,31/03/2018,Communities and Environment,Parks and Countryside,Transport,Fuel (Non LCC Supplies),321,07/03/2018,1803-00742,0.00,66.39,R,Allstar Business Solutions Ltd,No
Http://opendatacommunities.org/id/metropolitan-district-council/leeds,Leeds City Council,31/03/2018,City Development,Highways,Transport,Fuel (Non LCC Supplies),321,07/03/2018,1803-00743,0.00,196.51,R,Allstar Business Solutions Ltd,No
Http://opendatacommunities.org/id/metropolitan-district-council/leeds,Leeds City Council,31/03/2018,Resources and Housing,Democratic Services,Transport,Fuel (Non LCC Supplies),321,07/03/2018,1803-00744,0.00,253.66,R,Allstar Business Solutions Ltd,No
Http://opendatacommunities.org/id/metropolitan-district-council/leeds,Leeds City Council,31/03/2018,Children and Families,Learning Skills & Universal,Transport,Fuel (Non LCC Supplies),321,07/03/2018,1803-00745,0.00,1648.24,R,Allstar Business Solutions Ltd,No
Http://opendatacommunities.org/id/metropolitan-district-council/leeds,Leeds City Council,31/03/2018,Resources and Housing,Leeds Building Services,Transport,Fuel (Non LCC Supplies),321,15/03/2018,1803-00746,0.00,54.60,R,Allstar Business Solutions Ltd,No
Http://opendatacommunities.org/id/metropolitan-district-council/leeds,Leeds City Council,31/03/2018,Resources and Housing,Leeds Building Services,Transport,Fuel (Non LCC Supplies),321,28/03/2018,1803-00747,0.00,91.38,R,Allstar Business Solutions Ltd,No
Http://opendatacommunities.org/id/metropolitan-district-council/leeds,Leeds City Council,31/03/2018,Resources and Housing,Strategic Housing Partnership & Support,Supplies and Services,Other Hired And Contracted Services,265,07/03/2018,1803-00748,0.00,492.50,R,Almanda Carpets Ltd,No
Http://opendatacommunities.org/id/metropolitan-district-council/leeds,Leeds City Council,31/03/2018,Resources and Housing,Strategic Housing Partnership & Support,Supplies and Services,Other Hired And Contracted Services,265,23/03/2018,1803-00749,0.00,492.50,R,Almanda Carpets Ltd,No
Http://opendatacommunities.org/id/metropolitan-district-council/leeds,Leeds City Council,31/03/2018,Communities and Environment,Parks And Countryside  ,Supplies and Services,Resaleable Materials,204,25/02/2018,1803-00750,0.00,175.00,R,Alob Ltd,Yes
Http://opendatacommunities.org/id/metropolitan-district-council/leeds,Leeds City Council,31/03/2018,Resources and Housing,Strategic Housing Partnership & Support,Supplies and Services,Other Hired And Contracted Services,265,19/03/2018,1803-00751,0.00,320.00,R,Alpha Property Rentals Ltd,No
Http://opendatacommunities.org/id/metropolitan-district-council/leeds,Leeds City Council,31/03/2018,Children and Families,Safeguarding Targeted & Specialist,Support Services,Legal Disbursements,411,02/03/2018,1803-00752,0.00,113.75,R,Alphabiolabs,No
Http://opendatacommunities.org/id/metropolitan-district-council/leeds,Leeds City Council,31/03/2018,Children and Families,Safeguarding Targeted & Specialist,Support Services,Legal Disbursements,411,02/03/2018,1803-00753,0.00,139.67,R,Alphabiolabs,No
Http://opendatacommunities.org/id/metropolitan-district-council/leeds,Leeds City Council,31/03/2018,Children and Families,Safeguarding Targeted & Specialist,Support Services,Legal Disbursements,411,02/03/2018,1803-00754,0.00,116.34,R,Alphabiolabs,No
